Workbook

Sheet Haftung

Sheet Kontakt

Sheet Einleitung

Sheet Hilti Richtdetail
A1: Kappenverankerung mit HPA unter statischen Einwirkungen

Sheet Einwirkungen
B2: =Eingabe!B2 -> HILTI Design-Tool Kappenverankerung 12.3 | H2: =Eingabe!I2 -> Version gültig bis 31.12.2026
A4: Direkte Einwirkungen Anprall
B5: Die Einwirkungen aus dieser Tabelle werden nicht automatisch in Blatt "Eingabe" übernommen.
B7: Anprall Fahrzeug-Rückhaltesystem FRS:
B11: Quellen: DIN EN 1991-2, 4.7.3.3 Absatz (2), Technische Übersichtsliste BASt und Gütegemeinschaft für Stahlschutzplanken Stand 03/2022
B13: Indirekte Einwirkungen

Sheet Produkte
A1: Übersicht der Standard-Produkte. projektspezifische Längen lieferbar.
A3: Neubau und Instandsetzung Kappenverankerung mit HPA, Bundmutter und Stauscheibe
A4: Bereich | B4: Dimension | C4: HPA Kappenverankerung inkl. Bundmutter u. Stauscheibe | D4: Injektionsmörtel
A5: Straßen- / Schienenverkehr (statische Einwirkungen) | B5: 16 | C5: HPA A4 M16x200 inkl. Bundmutter M16 und Stauscheibe (2459587) | D5: HIT-RE 500 V4
C6: HPA A4 M16x220 inkl. Bundmutter M16 und Stauscheibe (2459586)
C7: HPA A4 M16x240 inkl. Bundmutter M16 und Stauscheibe (2459587)
C8: HPA A4 M16x260 inkl. Bundmutter M16 und Stauscheibe (2459588)
C9: HPA A4 M16x300 inkl. Bundmutter M16 und Stauscheibe (2459589)
B10: 20 | C10: HPA A4 M20x220 inkl. Bundmutter M20 und Stauscheibe (2460040)
C11: HPA A4 M20x240 inkl. Bundmutter M20 und Stauscheibe (2460041)
C12: HPA A4 M20x260 inkl. Bundmutter M20 und Stauscheibe (2460042)
C13: HPA A4 M20x300 inkl. Bundmutter M20 und Stauscheibe (2460043)
C14: HPA A4 M20x330 inkl. Bundmutter M20 und Stauscheibe (2460044)
C15: HPA A4 M20x350 inkl. Bundmutter M20 und Stauscheibe (2460045)
C16: HPA A4 M20x400 inkl. Bundmutter M20 und Stauscheibe (2460046)
A18: Neubau und Instandsetzung Kappenverankerung mit HPA, Sechskantmutter und Stauscheibe
A19: Bereich | B19: Dimension | C19: HPA Kappenverankerung inkl. Mutter u. Stauscheibe | D19: Injektionsmörtel
A20: Straßen- / Schienenverkehr (statische Einwirkungen) | B20: 16 | C20: HPA A4 M16x200 inkl. Mutter und Stauscheibe (2329936 / 2458856) | D20: HIT-RE 500 V4
C21: HPA A4 M16x220 inkl. Mutter und Stauscheibe (2329937 / 2458857)
C22: HPA A4 M16x240 inkl. Mutter und Stauscheibe (2329938 / 2458858)
C23: HPA A4 M16x260 inkl. Mutter und Stauscheibe (2329939 / 2458859)
C24: HPA A4 M16x300 inkl. Mutter und Stauscheibe (2330220 / 2458860)
B25: 20 | C25: HPA A4 M20x220 inkl. Mutter und Stauscheibe (2330222 / 2458870)
C26: HPA A4 M20x240 inkl. Mutter und Stauscheibe (2330223 / 2458871)
C27: HPA A4 M20x260 inkl. Mutter und Stauscheibe (2330224 / 2458872)
C28: HPA A4 M20x300 inkl. Mutter und Stauscheibe (2330225 / 2458873)
C29: HPA A4 M20x330 inkl. Mutter und Stauscheibe (2330226)
C30: HPA A4 M20x350 inkl. Mutter und Stauscheibe (2330227 / 2458874)
C31: HPA A4 M20x400 inkl. Mutter und Stauscheibe (2458875)
B32: 24 | C32: HPA A4 M24x240 inkl. Mutter und Stauscheibe (2330229 / 2458876)
C33: HPA A4 M24x260 inkl. Mutter und Stauscheibe (2330230 / 2458877)
C34: HPA A4 M24x300 inkl. Mutter und Stauscheibe (2330231 / 2458878)
C35: HPA A4 M24x450 inkl. Mutter und Stauscheibe (234552 / 2458879)
A38: Nachträgliche Kappenverankerung mit HPA und Sechskantmutter
A39: Bereich | B39: Dimension | C39: HPA Kappenverankerung inkl. Mutter | D39: Injektionsmörtel
A40: Straßen- / Schienenverkehr (statische Einwirkungen) | B40: 16 | C40: HPA A4 M16x200 inkl. Mutter (2331899 / 2458487) | D40: HIT-RE 500 V4
C41: HPA A4 M16x220 inkl. Mutter (2332040 / 2458488)
C42: HPA A4 M16x240 inkl. Mutter (2332041 / 2458489)
C43: HPA A4 M16x260 inkl. Mutter (2332042 / 2458830)
C44: HPA A4 M16x300 inkl. Mutter (2332043 / 2458831)
B45: 20 | C45: HPA A4 M20x220 inkl. Mutter (2332045 / 2458832)
C46: HPA A4 M20x240 inkl. Mutter (2332046 / 2458833)
C47: HPA A4 M20x260 inkl. Mutter (2332047 / 2458834)
C48: HPA A4 M20x300 inkl. Mutter (2332048 / 2458835)
C49: HPA A4 M20x330 inkl. Mutter (2332049)
C50: HPA A4 M20x350 inkl. Mutter (2332050 / 2458836)
C51: HPA A4 M20x400 inkl. Mutter (2458851)
B52: 24 | C52: HPA A4 M24x240 inkl. Mutter (2332052 / 2458852)
C53: HPA A4 M24x260 inkl. Mutter (2332053 / 2458853)
C54: HPA A4 M24x300 inkl. Mutter (2332054 / 2458854)
C55: HPA A4 M24x450 inkl. Mutter (2458855)

Sheet Eingabe
M1: C 20/25 (LP); gerissen | N1: Abminderung Leichtbeton ψred,LWC | P1: ≤
B2: HILTI Design-Tool Kappenverankerung 12.3 | I2: Version gültig bis 31.12.2026 | M2: C 25/30 (LP); gerissen | N2: =IF(MID(C13,1,1)="L",1,0) -> 0 | P2: ≥ | V2: C 20/25 (gerissen) | W2: =IF(G5="Einreihige Ankeranordnung",C7,C7-C17) -> 1010
B3: Bauvorhaben | C3: Instandsetzung Kappe | M3: C 30/37 (LP); gerissen | N3: =IF(N2=1,MIN(1,C14/1200-(5/6)),1) -> 1 | P3: Einreihige Ankeranordnung | V3: C 25/30; gerissen
B4: Kappenverankerung | C4: Kappenanker HPA M20 | F4: Bitumen-Schweißbahn einlagig + Schutzlage, Dicke 8 mm | M4: C 35/45 (LP); gerissen | P4: Zweireihige Ankeranordnung | S4: Dübelanzahl in der Lasteinleitungslänge | V4: C 30/37; gerissen
B5: Tragwerk (Überbau) | F5: =MID(C6,3,2) -> 30 | G5: Zweireihige Ankeranordnung | M5: C 40/50 (LP); gerissen | V5: C 35/45; gerissen
B6: Betongüte | C6: C 30/37; gerissen | F6: Randabstand cT bzw. Reihenabstand s1 prüfen. | M6: C 45/55 (LP); gerissen | S6: Abstand Mitte sx | T6: =J28 -> 660 | U6: [mm] | V6: C 40/50; gerissen
B7: Randabstand cT | C7: 1350 | D7: [mm] | F7: Verankerungslänge hef,gewählt für Bauteildicke Tragwerk hT zu groß. | M7: C 50/60 (LP); gerissen | P7: hTef | Q7: cnom | S7: Abstand Rand sx | T7: =J32 -> 660 | U7: [mm] | V7: C 45/55; gerissen
B8: Bauteildicke Tragwerk hT | C8: 250 | D8: [mm] | F8: Option für maximalen Kopfbolzen-Widerstand: Verringerung cnom | M8: LC25/28; gerissen | N8: Verb.-sp. RE500 V4 | O8: =IF(AE50=16,11,IF(AE50=20,10,IF(AE50=24,9.5,))) -> 10 | P8: 100 | Q8: =C20-(2*C20) -> -16 | V8: C 50/60; gerissen
B9: Drehpunktabstand d | C9: 10 | D9: [mm] | F9: Hinweis: Bitte hef,gewählt / hef,neu prüfen (> 140 mm notwendig?) | M9: LC30/33; gerissen | P9: 120 | Q9: 30
B10: Verankerungslänge hef,gewählt | C10: 100 | D10: [mm] | F10: Art bzw. Dimension Kopfbolzen prüfen. | M10: LC35/38; gerissen | P10: 140 | Q10: 40
B11: Kappe | F11: Option prüfen: Verankerungslänge hef,gewählt erhöhen. | M11: LC40/44; gerissen | P11: 160 | Q11: 50
B12: Kappenbreite b | C12: ≤ 1,70 m | F12: Option für maximalen Widerstand: Bundmutter wählen | M12: LC45/50; gerissen | P12: 180 | Q12: 60
B13: Betongüte | C13: C 40/50 (LP); gerissen | M13: LC50/55; gerissen | P13: 200
B14: Rohdichte ρ | C14: 1800 | D14: [kg/m3] | F14: =MID(C13,3,2) -> 40 | M14: LC55/60; gerissen
B15: Kopfbolzen | C15: Sechskantmutter A4 M20 | M15: einreihige Anordnung | R15: Hebel Dübel 2 | S15: =C7-C17-C9 -> 1000 | T15: [mm]
B16: Randabstand cK | C16: 200 | D16: [mm] | M16: zweireihige Anordnung | R16: Hebel Dübel 1 | S16: =C7-C9 -> 1340 | T16: [mm]
B17: Reihenabstand s1 | C17: 340 | D17: [mm] | M17: Reibungskraft FR | O17: =(((C7+C16+350)*C18)+101500)*(IF(N2=0,2500,C14)/100000000*0.63) -> 5.93775 | P17: kN/m | Q17: =MAX(C26-O17,0.001) -> 81.86225 | R17: kN/m
B18: Kappenhöhe hK | C18: 145 | D18: [mm] | O18: V auf HPA | Q18: V wirkt auf Anschlussbewehrung: nur N aus M + indirekte V
B19: Betondeckung Kopfbolzen cnom | C19: 30 | D19: [mm] | M19: Einwirkungen Mittelbereich | O19: Reihe 1 | P19: Reihe 2 | Q19: Reihe 1 | R19: Reihe 2
B20: Höhe Kopfbolzen | C20: =W44 -> 16 | D20: [mm] | M20: direkte Einw. N aus M | N20: NSd [kN/A] | O20: =IF(G5="Zweireihige Ankeranordnung",(C25*1000/(S16+S15^2/S16)),(C25*1000/(C7-C9)))*J28/1000 -> 12.59089999 | P20: =IF(G5="Zweireihige Ankeranordnung",(C25*1000/(S15+S16^2/S15)),0)*J28/1000 -> 9.396194019 | Q20: =IF(G5="Zweireihige Ankeranordnung",(C25*1000/(S16+S15^2/S16)),(C25*1000/(C7-C9)))*J28/1000 -> 12.59089999 | R20: =IF(G5="Zweireihige Ankeranordnung",(C25*1000/(S15+S16^2/S15)),0)*J28/1000 -> 9.396194019
B21: Verankerungslänge hef,neu | C21: =T67 -> 99 | D21: [mm] | M21: dir.+indir. Einw. Stahl TW/Kappe | N21: VSd,y [kN/A] | O21: =IF(G5="Einreihige Ankeranordnung",(Q17/1000*J28)+C29,(((Q17/2)/1000*J28)+(C29))) -> 39.0145425 | P21: =IF(G5="Einreihige Ankeranordnung",0,(((Q17)/2)/1000*J28)+(C29)) -> 39.0145425 | Q21: =IF(G5="Einreihige Ankeranordnung",C29,C29) -> 12 | R21: =IF(G5="Einreihige Ankeranordnung",0,C29) -> 12
B22: gewählte Gesamtänge HPA | C22: =C10+C21+C20+H80 -> 223 | D22: [mm] | M22: dir.+indir. Einw. Beton TW | N22: VSd,y [kN/A] | O22: =IF(G5="Einreihige Ankeranordnung",(Q17/1000*J28)+C29,(((Q17/2)/1000*J28)+(C29))) -> 39.0145425 | P22: =IF(G5="Einreihige Ankeranordnung",0,(((Q17)/2)/1000*J28)+(C29)) -> 39.0145425 | Q22: =C29 -> 12 | R22: =IF(G5="Einreihige Ankeranordnung",0,C29) -> 12
B23: direkte Einwirkungen | M23: dir.+indir. Einw. Beton Kappe | N23: VSd,y [kN/A] | O23: =IF(G5="Einreihige Ankeranordnung",(Q17/1000*J28)+C29,((Q17)/2/1000*J28)+(C29)) -> 39.0145425 | P23: =IF(G5="Einreihige Ankeranordnung",0,((Q17)/2/1000*J28)+C29) -> 39.0145425 | Q23: =IF(G5="Einreihige Ankeranordnung",C29,C29) -> 12 | R23: =IF(G5="Einreihige Ankeranordnung",0,C29) -> 12 | V23: =Q37 -> Kappenanker HPA M16 | W23: =Q38 -> Kappenanker HPA M20 | X23: =Q39 -> Kappenanker HPA M24 | Y23: =Q40 -> 0 | Z23: =Q41 -> 0
B24: direkte Einwirkung | C24: Wind auf Lärmschutzwand | M24: Einwirkungen Randbereich | O24: Reihe 1 | P24: Reihe 2 | Q24: Reihe 1 | R24: Reihe 2 | U24: =Tragwerk!A16 -> cmin gerissener Beton | V24: =Tragwerk!B16 -> 50 | W24: =Tragwerk!C16 -> 55 | X24: =Tragwerk!D16 -> 60 | Y24: =Tragwerk!D16 -> 60 | Z24: =Tragwerk!D16 -> 60 | AA24: =INDEX($V$24:$X$28,1,MATCH($C$4,$V$23:$X$23)) -> 55 | AB24: c | AC24: =AA24 -> 55
B25: Moment MEd,y,direkt / m | C25: 39.8 | D25: [kNm/m] | F25: optimierter Betonverbinder HPA mit hef,Tragwerk = | J25: =AD83&" mm :" -> 97 mm : | M25: direkte Einw. N aus M | N25: NSd | O25: =IF(G5="Zweireihige Ankeranordnung",(C25*1000/(S16+S15^2/S16))-N16,(C25*1000/(C7-C9))-N15)*J32/1000 -> 12.59089999 | P25: =IF(G5="Zweireihige Ankeranordnung",(C25*1000/(S15+S16^2/S15))-N16,0)*J32/1000 -> 9.396194019 | Q25: =IF(G5="Zweireihige Ankeranordnung",(C25*1000/(S16+S15^2/S16))-N16,(C25*1000/(C7-C9))-N15)*J32/1000 -> 12.59089999 | R25: =IF(G5="Zweireihige Ankeranordnung",(C25*1000/(S15+S16^2/S15))-N16,0)*J32/1000 -> 9.396194019 | U25: =Tragwerk!A17 -> smin gerissener Beton | V25: =Tragwerk!B17 -> 75 | W25: =Tragwerk!C17 -> 90 | X25: =Tragwerk!D17 -> 115 | Y25: =Tragwerk!D17 -> 115 | Z25: =Tragwerk!D17 -> 115 | AA25: =INDEX($V$24:$X$28,2,MATCH($C$4,$V$23:$X$23)) -> 90 | AB25: s | AC25: =AA25 -> 90
B26: Querkraft VEd,y,direkt / m | C26: 87.8 | D26: [kN/m] | F26: =Z110 -> HPA A4 M20x220 inkl. Mutter und Stauscheibe (2330222 / 2458870) | M26: dir.+indir. Einw. Stahl TW/Kappe | N26: VSd,y/x [kN/A] | O26: =(IF(G5="Einreihige Ankeranordnung",SQRT((POWER((Q17/1000*J32)+C30,2))+(POWER(C29,2))),SQRT((POWER(((Q17/2)/1000*J32)+(C30),2))+(POWER((C29),2))))) -> 40.81831117 | P26: =(IF(G5="Einreihige Ankeranordnung",0,SQRT((POWER((((Q17)/2)/1000*J32)+(C30),2))+(POWER((C29),2))))) -> 40.81831117 | Q26: =(IF(G5="Einreihige Ankeranordnung",SQRT((POWER(C30,2))+(POWER(C29,2))),SQRT((POWER((C30),2))+(POWER((C29),2))))) -> 16.97056275 | R26: =(IF(G5="Einreihige Ankeranordnung",0,SQRT((POWER((C30),2))+(POWER((C29),2))))) -> 16.97056275 | AB26: h | AC26: =AA28 -> 141
B28: indirekte Einwirkungen | F28: Abstand Mittelbereich sx,Mitte | J28: 660 | K28: [mm] | M28: dir.+indir. Einw. Beton TW | N28: VSd,y/x [kN/A] | O28: =(IF(G5="Einreihige Ankeranordnung",SQRT((POWER((Q17/1000*J32)+C30,2))+(POWER(C29,2))),SQRT((POWER(((Q17/2)/1000*J32)+(C30),2))+(POWER((C29),2))))) -> 40.81831117 | P28: =IF(G5="Einreihige Ankeranordnung",0,SQRT((POWER((((Q17)/2)/1000*J32)+(C30),2))+(POWER(C30,2)))) -> 40.81831117 | Q28: =SQRT((POWER(C30,2))+(POWER(C29,2))) -> 16.97056275 | R28: =IF(G5="Einreihige Ankeranordnung",0,SQRT((POWER((C30),2)+(POWER(C30,2))))) -> 16.97056275 | U28: =Tragwerk!A20 -> hT,ef + 2 do | V28: =Tragwerk!B20 -> 133 | W28: =Tragwerk!C20 -> 141 | X28: =Tragwerk!D20 -> 153 | Y28: 176 | Z28: 176 | AA28: =INDEX($V$24:$X$28,5,MATCH($C$4,$V$23:$X$23)) -> 141 | AB28: HT/hTef | AC28: =IF(AND(C4="Kappenanker HPA M16",(C8-C10)<36),1,0) -> 0 | AD28: =IF(AND(C4="Kappenanker HPA M16",(C8-AD73)<36),1,0) -> 0 | AE28: =IF(AND(C4="Kappenanker HPA M16",(C8-AG73)<36),1,0) -> 0
B29: Mitte: VEd,y,indirekt | C29: =E111 -> 12 | D29: [kN/HPA] | F29: =IF(Q56=0,"Verankerung Mittelbereich zulässig","Verankerung Mittelbereich nicht zulässig") -> Verankerung Mittelbereich zulässig | M29: dir.+indir. Einw. Beton Kappe | N29: VSd,y/x [kN/A] | O29: =IF(G5="Einreihige Ankeranordnung",SQRT((POWER((Q17/1000*J32)+C30,2))+(POWER(C30,2))),SQRT((POWER(((Q17/2)/1000*J32)+(C30),2))+(POWER(C30,2)))) -> 40.81831117 | P29: =IF(G5="Einreihige Ankeranordnung",0,SQRT((POWER((((Q17/2))/1000*J32)+(C30),2))+(POWER(C30,2)))) -> 40.81831117 | Q29: =IF(G5="Einreihige Ankeranordnung",SQRT((POWER(C30,2))+(POWER(C29,2))),SQRT((POWER((C30),2)+(POWER(C29,2))))) -> 16.97056275 | R29: =IF(G5="Einreihige Ankeranordnung",0,SQRT((POWER(C30,2))+(POWER(C30,2)))) -> 16.97056275 | U29: 2 do | V29: 36 | W29: 44 | X29: 56 | Y29: 0 | Z29: 0 | AA29: =INDEX($V$24:$X$29,6,MATCH($C$4,$V$23:$X$23)) -> 44 | AC29: =IF(AND(C4="Kappenanker HPA M20",(C8-C10)<44),1,0) -> 0 | AD29: =IF(AND(C4="Kappenanker HPA M20",(C8-AD73)<44),1,0) -> 0 | AE29: =IF(AND(C4="Kappenanker HPA M20",(C8-AG73)<44),1,0) -> 0
B30: Rand: VEd,x/y,indirekt | C30: =E111 -> 12 | D30: [kN/HPA] | N30: Winkel TW VSd,y/x [°] | O30: =DEGREES(ATAN(C30/(C30+(Q17/1000*J32)))) -> 10.3004045 | P30: =IF(G5="Einreihige Ankeranordnung",DEGREES(ATAN(C30/(C30+(Q17)/1000*J32))),DEGREES(ATAN((C30/2)/((C30/2)+(((Q17)/2)/1000*J32))))) -> 10.3004045 | Q30: =IF(C3="Sonderfall ohne indirekte Einw.",0,45) -> 45 | R30: =IF(C3="Sonderfall ohne indirekte Einw.",0,45) -> 45 | AC30: =IF(AND(C4="Kappenanker HPA M24",(C8-C10)<56),1,0) -> 0 | AD30: =IF(AND(C4="Kappenanker HPA M24",(C8-AD73)<56),1,0) -> 0 | AE30: =IF(AND(C4="Kappenanker HPA M24",(C8-AG73)<56),1,0) -> 0
N31: VSd,y/x [kN/A]
B32: Übertragung direkte / indirekte Querkraft-Einwirkungen | F32: Abstand Randbereich (6 m vor ÜKO) sx,Rand | J32: 660 | K32: [mm] | N32: Winkel Kappe VSd,y/x [°] | O32: =IF(G5="Einreihige Ankeranordnung",DEGREES(ATAN(C30/(C30+(Q17)/1000*J32))),DEGREES(ATAN((C30/2)/((C30/2)+(((Q17)/2)/1000*J32))))) -> 10.3004045 | P32: =DEGREES(ATAN(C30/(C30+((Q17)/1000*J32)))) -> 10.3004045 | Q32: =IF(C3="Sonderfall ohne indirekte Einw.",0,45) -> 45 | R32: =IF(C3="Sonderfall ohne indirekte Einw.",0,45) -> 45 | S32: 45° wird nicht benötigt, weil in Kappe kein Betonkantenbruch berechnet wird | Y32: hT,eff,min gewählt | AB32: Summe | AC32: =SUM(AC28:AC31) -> 0 | AD32: =SUM(AD28:AD30) -> 0 | AE32: =SUM(AE28:AE30) -> 0
B33: Querkraft Kappe → Tragwerk | C33: Kappenverankerung HPA | F33: =IF(Q71=0,"Verankerung Randbereich zulässig","Verankerung Randbereich nicht zulässig") -> Verankerung Randbereich zulässig | Q33: Dübelwahl C4 | R33: hT,eff,min | S33: do | T33: hk,eff | U33: hTeff | V33: hk gewählt | W33: Bohrdurchmesser für Betondeckung unter Bohrloch | AC33: 2xdo mit htef gewählt | AD33: 2xdo mit hTef mit längerem HPA | AE33: 2xdo mit hTef mit küzerem HPA
B37: Ergebnisse | Q37: Kappenanker HPA M16 | R37: 100 | S37: 18 | W37: =VLOOKUP(C4,Q37:U42,3) -> 22 | Y37: =VLOOKUP(C4,Q37:U42,2) -> 100
B38: Mittelbereich | M38: Anprall KFZ-Rückhaltesystem | Q38: Kappenanker HPA M20 | R38: 100 | S38: 22 | X38: Mindesttragwerkhöhe
D39: Tragwerk | F39: Kappe | H39: Tragwerk | J39: Kappe | M39: Anprall Schrammbord | Q39: Kappenanker HPA M24 | R39: 100 | S39: 28 | X39: =MAX(C10+2*W37,C10) -> 144
D40: Einwirkungen HPA-Reihe 1 | H40: Einwirkungen HPA-Reihe 2 | M40: Wind auf Lärmschutzwand
B41: Zugkraft-Einwirkung | C41: NEd | D41: =O20 -> 12.59089999 | E41: [kN] | F41: =O20 -> 12.59089999 | G41: [kN] | H41: =IF(Eingabe!$G$5="Einreihige Ankeranordnung","",P20) -> 9.396194019 | I41: =IF($G$5="Zweireihige Ankeranordnung","[kN]","") -> [kN] | J41: =IF(Eingabe!$G$5="Einreihige Ankeranordnung","",P20) -> 9.396194019 | K41: =IF($G$5="Zweireihige Ankeranordnung","[kN]","") -> [kN] | N41: Anschlussbewehrung
N42: Kappenverankerung HPA | Q42: Mitte
B43: Querkraft-Einwirkung | C43: VEd,y | D43: =Tragwerk!B93 -> 39.0145425 | E43: [kN] | F43: =Kappe!B84 -> 39.0145425 | G43: [kN] | H43: =IF(Eingabe!$G$5="Einreihige Ankeranordnung","",Tragwerk!G93) -> 39.0145425 | I43: =IF((Eingabe!$G$5="Zweireihige Ankeranordnung"),"[kN]","") -> [kN] | J43: =IF($G$5="Zweireihige Ankeranordnung",Kappe!G84,"") -> 39.0145425 | K43: =IF(AND(Eingabe!$G$5="Zweireihige Ankeranordnung"),"[kN]","") -> [kN] | N43: Schubschwelle | Q43: Dübelreihe 1 | R43: Dübelreihe 2 | T43: Dübelauswahl | V43: Höhe Kopfbolzen HK | W43: gewählt | X43: max. mögl. Verank.-länge Kopf hkeff = Hk - cnom - HK1 | Z43: dp Mutter | AA43: A Mutter maßgeb. | AB43: dp Kopfplatte/U-Sch. | AD43: A Kopfplatte/U-Scheibe maßgeb. | AE43: Dübel-Durchm.
D44: Widerstände HPA-Reihe 1 | H44: Widerstände HPA-Reihe 2 | P44: Ausnutz Tragw. | Q44: =IF(D41>D45,1,0) -> 0 | R44: =IF(H41>H45,1,0) -> 0 | T44: Kappenanker HPA M16 | V44: =IF(C15="Bundmutter HPA-FN A4 M16",2.4,IF(C15="U-Scheibe 50x3 + Muttern M16",16,13)) -> 13 | W44: =VLOOKUP(C4,T44:V46,3) -> 16 | X44: =C18-C19-V44 -> 102 | Z44: =IF(C15="Bundmutter A4 M16",34.5,24) -> 24 | AA44: =IF(C15="Bundmutter A4 M16",734,251) -> 251 | AB44: =IF(C15="U-Scheibe 50x3 + Muttern M16",50,"-") -> - | AD44: =IF(C15="U-Scheibe 50x3 + Muttern M16",1762,"-") -> - | AE44: 16
B45: Zug, Betonausbruch | C45: NRd,c | D45: =HLOOKUP(LEFT($C$4,21),Tragwerk!A14:E52,39) -> 26.45781195 | E45: [kN] | F45: =HLOOKUP(LEFT($C$4,21),Kappe!A12:E60,25) -> 36.96421904 | G45: [kN] | H45: =IF(Eingabe!$G$5="Einreihige Ankeranordnung","",HLOOKUP(LEFT($C$4,21),Tragwerk!F14:J52,39)) -> 26.45781195 | I45: =IF($G$5="Zweireihige Ankeranordnung","[kN]","") -> [kN] | J45: =IF(Eingabe!$G$5="Einreihige Ankeranordnung","",HLOOKUP(LEFT($C$4,21),Kappe!F12:J36,25)) -> 36.96421904 | K45: =IF($G$5="Zweireihige Ankeranordnung","[kN]","") -> [kN] | N45: Zustand I | Q45: =IF(D41>D46,1,0) -> 0 | R45: =IF(H41>H46,1,0) -> 0 | T45: Kappenanker HPA M20 | V45: =IF(C15="Bundmutter HPA-FN A4 M20",3,IF(C15="U-Scheibe 60x4 + Muttern M20",20,16)) -> 16 | X45: =C18-C19-V45 -> 99 | Z45: =IF(C15="Bundmutter A4 M20",42.8,30) -> 30 | AA45: =IF(C15="Bundmutter A4 M20",1125,393) -> 393 | AB45: =IF(C15="U-Scheibe 60x4 + Muttern M20",60,50) -> 50 | AD45: =IF(C15="U-Scheibe 60x4 + Muttern M20",2513,1649) -> 1649 | AE45: 20
B46: Zug, Herausziehen | C46: NRd,p | D46: =HLOOKUP(LEFT($C$4,21),Tragwerk!A14:E52,28) -> 41.62266785 | E46: [kN] | F46: =HLOOKUP(LEFT($C$4,21),Kappe!A12:E60,13) -> 78.6 | G46: [kN] | H46: =IF(Eingabe!$G$5="Einreihige Ankeranordnung","",HLOOKUP(LEFT($C$4,21),Tragwerk!F14:J52,28)) -> 41.62266785 | I46: =IF($G$5="Zweireihige Ankeranordnung","[kN]","") -> [kN] | J46: =IF(Eingabe!$G$5="Einreihige Ankeranordnung","",HLOOKUP(LEFT($C$4,21),Kappe!F12:J36,13)) -> 78.6 | K46: =IF($G$5="Zweireihige Ankeranordnung","[kN]","") -> [kN] | N46: Zustand II | Q46: =IF(D42>D47,1,0) -> 0 | R46: =IF(H42>H47,1,0) -> 0 | T46: Kappenanker HPA M24 | V46: =IF(C15="Bundmutter A4 M24",4,IF(C15="U-Scheibe 72x5 + Muttern M24",24,19)) -> 19 | X46: =C18-C19-V46 -> 96 | Z46: =IF(C15="Bundmutter A4 M24",51,36) -> 36 | AA46: =IF(C15="Bundmutter A4 M24",1590,565) -> 565 | AB46: =IF(C15="U-Scheibe 72x5 + Muttern M24",72,70) -> 70 | AD46: =IF(C15="U-Scheibe 72x5 + Muttern M24",3619,3396) -> 3396 | AE46: 24
B47: Querkraft, Stahlversagen | C47: VRd,s | D47: =HLOOKUP(LEFT($C$4,21),Tragwerk!A14:E69,56) -> 55 | E47: [kN] | F47: =HLOOKUP(LEFT($C$4,21),Kappe!A12:E60,49) -> 55 | G47: [kN] | H47: =IF((Eingabe!$G$5="Zweireihige Ankeranordnung"),HLOOKUP(LEFT($C$4,21),Tragwerk!F14:J69,56),"") -> 55 | I47: =IF($G$5="Zweireihige Ankeranordnung","[kN]","") -> [kN] | J47: =IF(Eingabe!$G$5="Zweireihige Ankeranordnung",HLOOKUP(LEFT($C$4,21),Kappe!F12:J60,49),"") -> 55 | K47: =IF($G$5="Zweireihige Ankeranordnung","[kN]","") -> [kN] | Q47: =IF(D43>D48,1,0) -> 0 | R47: =IF(H43>H48,1,0) -> 0
B48: Querkraft, Betonversagen | C48: VRd,c/cp | D48: =HLOOKUP(LEFT($C$4,21),Tragwerk!A14:E92,79) -> 52.9156239 | E48: [kN] | F48: =HLOOKUP(LEFT($C$4,21),Kappe!A12:E67,56) -> 73.92843809 | G48: [kN] | H48: =IF((Eingabe!$G$5="Zweireihige Ankeranordnung"),HLOOKUP(LEFT($C$4,21),Tragwerk!F14:J92,79),"") -> 52.9156239 | I48: =IF($G$5="Zweireihige Ankeranordnung","[kN]","") -> [kN] | J48: =IF(Eingabe!$G$5="Zweireihige Ankeranordnung",HLOOKUP(LEFT($C$4,21),Kappe!F12:J67,56),"") -> 73.92843809 | K48: =IF($G$5="Zweireihige Ankeranordnung","[kN]","") -> [kN] | N48: berücksichtigen | Q48: =IF(D49>100.9,1,0) -> 0 | R48: =IF(H49>100.9,1,0) -> 0
B49: Ausnutzung Stahl / Beton ≤ 100 [%] | D49: =MAX(Tragwerk!$B$105*100,Tragwerk!$B$106*100) -> 96.13751742 | E49: [%] | F49: =MAX(Kappe!$B$96*100,Kappe!$B$97*100) -> 70.93553182 | G49: [%] | H49: =IF($G$5="Zweireihige Ankeranordnung",MAX(Tragwerk!$G$105*100,Tragwerk!$G$106*100),"") -> 84.47273998 | I49: =IF($G$5="Zweireihige Ankeranordnung","[%]","") -> [%] | J49: =IF($G$5="Zweireihige Ankeranordnung",MAX(Kappe!G96*100,Kappe!G97*100),"") -> 70.93553182 | K49: =IF($G$5="Zweireihige Ankeranordnung","[%]","") -> [%] | N49: nicht berücksichtigen | P49: Ausnutz Kappe | Q49: =IF(F41>F45,1,0) -> 0 | R49: =IF(J41<=J45,0,1) -> 0 | S49: Kopfbolzenart | T49: An | U49: d kopf | V49: An gewählt | W49: An maßgeb. | X49: dp Mutter maßgeb | Y49: Dimension Kopf | Z49: dp- mu gew. | AA49: An,mutter gewählt | AB49: dp,KP/U gewählt | AD49: An,kp gewählt | AE49: D gewählt
B50: Randbereich (je 6 m vor ÜKO) | Q50: =IF(F41>F46,1,0) -> 0 | R50: =IF(J41<=J46,0,1) -> 0 | S50: Bundmutter HPA-FN A4 M16 | T50: 734 | U50: 34.5 | V50: =VLOOKUP(C15,S50:T59,2) -> 393 | W50: =V50 -> 393 | X50: =VLOOKUP(C15,S50:U59,3) -> 30 | Y50: 16 | Z50: =VLOOKUP(C4,T44:Z46,7) -> 30 | AA50: =VLOOKUP(C4,T44:AA46,8) -> 393 | AB50: =VLOOKUP(C4,T44:AB46,9) -> 50 | AD50: =VLOOKUP(C4,T44:AD46,11) -> 1649 | AE50: =VLOOKUP(C4,T44:AE46,12) -> 20
D51: Tragwerk | F51: Kappe | H51: Tragwerk | J51: Kappe | Q51: =IF(F42>F47,1,0) -> 0 | R51: =IF(J42<=J47,0,1) -> 0 | S51: Bundmutter HPA-FN A4 M20 | T51: 1125 | U51: 42.8 | Y51: 20
D52: Einwirkungen HPA-Reihe 1 | H52: Einwirkungen HPA-Reihe 2 | Q52: =IF(F43>F48,1,0) -> 0 | R52: =IF(J43<=J48,0,1) -> 0 | T52: 1649 | U52: 50 | Y52: 20
B53: Zugkraft-Einwirkung | C53: NEd | D53: =O25 -> 12.59089999 | E53: [kN] | F53: =O25 -> 12.59089999 | G53: [kN] | H53: =IF(Eingabe!$G$5="Einreihige Ankeranordnung","",P25) -> 9.396194019 | I53: =IF($G$5="Zweireihige Ankeranordnung","[kN]","") -> [kN] | J53: =IF(Eingabe!$G$5="Einreihige Ankeranordnung","",P25) -> 9.396194019 | K53: =IF($G$5="Zweireihige Ankeranordnung","[kN]","") -> [kN] | Q53: =IF(F49>100.9,1,0) -> 0 | R53: =IF(J49>100.9,1,0) -> 0 | T53: 3396 | U53: 70 | Y53: 24
P54: einreihig | Q54: =IF(SUM(Q44:Q53)=0,0,1) -> 0 | S54: Sechskantmutter A4 M16 | T54: 251 | U54: 24 | Y54: 16
B55: Querkraft-Einwirkung | C55: VEd,x/y | D55: =Tragwerk!M93 -> 40.81831117 | E55: [kN] | F55: =Kappe!L84 -> 40.81831117 | G55: [kN] | H55: =IF(Eingabe!$G$5="Einreihige Ankeranordnung","",Tragwerk!R93) -> 40.81831117 | I55: =IF((Eingabe!$G$5="Zweireihige Ankeranordnung"),"[kN]","") -> [kN] | J55: =IF($G$5="Zweireihige Ankeranordnung",Kappe!Q84,"") -> 40.81831117 | K55: =IF(AND(Eingabe!$G$5="Zweireihige Ankeranordnung"),"[kN]","") -> [kN] | P55: zweireihig | Q55: =IF(SUM(Q44:R53)=0,0,1) -> 0 | S55: Sechskantmutter A4 M20 | T55: 393 | U55: 30 | Y55: 20
D56: Widerstände HPA-Reihe 1 | H56: Widerstände HPA-Reihe 2 | P56: relevant | Q56: =IF(G5="Einreihige Ankeranordnung",Q54,Q55) -> 0 | S56: Sechskantmutter A4 M24 | T56: 565 | U56: 36 | Y56: 24
B57: Zug, Betonausbruch | C57: NRd,c | D57: =HLOOKUP(LEFT($C$4,21),Tragwerk!M14:O52,39) -> 26.45781195 | E57: [kN] | F57: =HLOOKUP(LEFT($C$4,21),Kappe!L12:N60,25) -> 36.96421904 | G57: [kN] | H57: =IF(Eingabe!$G$5="Einreihige Ankeranordnung","",HLOOKUP(LEFT($C$4,21),Tragwerk!R14:T52,39)) -> 26.45781195 | I57: =IF($G$5="Zweireihige Ankeranordnung","[kN]","") -> [kN] | J57: =IF(Eingabe!$G$5="Einreihige Ankeranordnung","",HLOOKUP(LEFT($C$4,21),Kappe!Q12:S36,25)) -> 36.96421904 | K57: =IF($G$5="Zweireihige Ankeranordnung","[kN]","") -> [kN] | Q57: Rand | S57: U-Scheibe 50x3 + Muttern M16 | T57: 1762 | U57: 50 | Y57: 16
B58: Zug, Herausziehen | C58: NRd,p | D58: =HLOOKUP(LEFT($C$4,21),Tragwerk!M14:O52,28) -> 41.62266785 | E58: [kN] | F58: =HLOOKUP(LEFT($C$4,21),Kappe!L12:N60,13) -> 78.6 | G58: [kN] | H58: =IF(Eingabe!$G$5="Einreihige Ankeranordnung","",HLOOKUP(LEFT($C$4,21),Tragwerk!R14:T52,28)) -> 41.62266785 | I58: =IF($G$5="Zweireihige Ankeranordnung","[kN]","") -> [kN] | J58: =IF(Eingabe!$G$5="Einreihige Ankeranordnung","",HLOOKUP(LEFT($C$4,21),Kappe!Q12:S36,13)) -> 78.6 | K58: =IF($G$5="Zweireihige Ankeranordnung","[kN]","") -> [kN] | Q58: Dübelreihe 1 | R58: Dübelreihe 2 | S58: U-Scheibe 60x4 + Muttern M20 | T58: 2513 | U58: 60 | Y58: 20
B59: Querkraft, Stahlversagen | C59: VRd,s | D59: =HLOOKUP(LEFT($C$4,21),Tragwerk!M14:O69,56) -> 55 | E59: [kN] | F59: =HLOOKUP(LEFT($C$4,21),Kappe!L12:N60,49) -> 55 | G59: [kN] | H59: =IF((Eingabe!$G$5="Zweireihige Ankeranordnung"),HLOOKUP(LEFT($C$4,21),Tragwerk!R14:T69,56),"") -> 55 | I59: =IF($G$5="Zweireihige Ankeranordnung","[kN]","") -> [kN] | J59: =IF(Eingabe!$G$5="Zweireihige Ankeranordnung",HLOOKUP(LEFT($C$4,21),Kappe!Q12:S60,49),"") -> 55 | K59: =IF($G$5="Zweireihige Ankeranordnung","[kN]","") -> [kN] | P59: Ausnutz Tragw. | Q59: =IF(D53>D57,1,0) -> 0 | R59: =IF(H53>H57,1,0) -> 0 | S59: U-Scheibe 72x5 + Muttern M24 | T59: 3619 | U59: 72 | Y59: 24
B60: Querkraft, Betonversagen | C60: VRd,c/cp | D60: =HLOOKUP(LEFT($C$4,21),Tragwerk!M14:O92,79) -> 52.9156239 | E60: [kN] | F60: =HLOOKUP(LEFT($C$4,21),Kappe!L12:N67,56) -> 73.92843809 | G60: [kN] | H60: =IF((Eingabe!$G$5="Zweireihige Ankeranordnung"),HLOOKUP(LEFT($C$4,21),Tragwerk!R14:T92,79),"") -> 52.9156239 | I60: =IF($G$5="Zweireihige Ankeranordnung","[kN]","") -> [kN] | J60: =IF(Eingabe!$G$5="Zweireihige Ankeranordnung",HLOOKUP(LEFT($C$4,21),Kappe!Q12:S67,56),"") -> 73.92843809 | K60: =IF($G$5="Zweireihige Ankeranordnung","[kN]","") -> [kN] | Q60: =IF(D53>D58,1,0) -> 0 | R60: =IF(H53>H58,1,0) -> 0
B61: Ausnutzung Stahl / Beton ≤ 100 [%] | D61: =MAX(Tragwerk!$M$105*100,Tragwerk!$M$106*100) -> 100.5783337 | E61: [%] | F61: =MAX(Kappe!L96*100,Kappe!L97*100) -> 74.21511121 | G61: [%] | H61: =IF($G$5="Zweireihige Ankeranordnung",MAX(Tragwerk!$R$105*100,Tragwerk!$R$106*100),"") -> 88.91355625 | I61: =IF($G$5="Zweireihige Ankeranordnung","[%]","") -> [%] | J61: =IF($G$5="Zweireihige Ankeranordnung",MAX(Kappe!Q96*100,Kappe!Q97*100),"") -> 74.21511121 | K61: =IF($G$5="Zweireihige Ankeranordnung","[%]","") -> [%] | Q61: =IF(D54>D59,1,0) -> 0 | R61: =IF(H54>H59,1,0) -> 0
Q62: =IF(D55>D60,1,0) -> 0 | R62: =IF(H55>H60,1,0) -> 0 | S62: Kopfplatte HPA-K M20x50x16
Q63: =IF(D61>100.9,1,0) -> 0 | R63: =IF(H61>100.9,1,0) -> 0 | S63: Kopfplatte HPA-K M24x70x19
P64: Ausnutz Kappe | Q64: =IF(F53>F57,1,0) -> 0 | R64: =IF(J53>J57,1,0) -> 0
Q65: =IF(F53>F58,1,0) -> 0 | R65: =IF(J53>J58,1,0) -> 0 | X65: gewählt | Y65: =VLOOKUP(C15,S50:Y59,7) -> 20 | Z65: für S-Verweis Alphabet berücksichtigen!
Q66: =IF(F54>F59,1,0) -> 0 | R66: =IF(J54>J59,1,0) -> 0 | T66: max. mögl. Kopfbolzen-Verank.-tiefe hef,neu = hk - cnom - Höhe Kopfbolzen
Q67: =IF(F55>F60,1,0) -> 0 | R67: =IF(J55>J60,1,0) -> 0 | T67: =C18-C19-W44 -> 99
Q68: =IF(F61>100.9,1,0) -> 0 | R68: =IF(J61>100.9,1,0) -> 0
P69: einreihig | Q69: =IF(SUM(Q59:Q68)=0,0,1) -> 0
P70: zweireihig | Q70: =IF(SUM(Q59:R68)=0,0,1) -> 0 | S70: gewählter Dübel-Ø | T70: Dübel-Durchm. | U70: Dübellänge l vorh | V70: Art. ohne Art.-Nr. sind Sopo | X70: Auswahl kurz/lang lt. Artikel | AA70: kürzerer HPA gewählt nach Art.-Nr: | AD70: längerer HPA ohne Check hT mit 2xdo | AG70: kürzerer HPA ohne Check hT mit 2xdo
P71: relevant | Q71: =IF(G5="Einreihige Ankeranordnung",Q69,Q70) -> 0 | S71: =AE50 -> 20 | T71: 16 | U71: =IF(S75<200,S75,) -> 0 | V71: ="HPA A4 M16x"&(U71) &" inkl. Mutter und Stauscheibe" -> HPA A4 M16x0 inkl. Mutter und Stauscheibe | Z71: =IF(S71=16,VLOOKUP(X72,U71:V77,2),IF(S71=20,VLOOKUP(X80,U78:V86,2),IF(S71=24,VLOOKUP(X88,U87:V92,2)))) -> HPA A4 M20x220 inkl. Mutter und Stauscheibe (2330222 / 2458870) | AD71: =IF(S71=16,VLOOKUP(X73,U71:U77,1),IF(S71=20,VLOOKUP(X81,U78:U86,1),IF(S71=24,VLOOKUP(X89,U87:U92,1)))) -> 240 | AG71: =IF(S71=16,VLOOKUP(X72,U71:U77,1),IF(S71=20,VLOOKUP(X80,U78:U86,1),IF(S71=24,VLOOKUP(X88,U87:U92,1)))) -> 220
S72: exakte Mindestlänge mit hT,ef gewählt aus C22: | T72: 16 | U72: 200 | V72: HPA A4 M16x200 inkl. Mutter und Stauscheibe (2329936 / 2458856) | X72: =LOOKUP(S75,U71:U77) -> 220 | AA72: längerer HPA gewählt nach Art.-Nr: | AD72: hT,vorh mit längerem HPA | AG72: hT,vorh mit kürzerem HPA
S73: =C22 -> 223 | T73: 16 | U73: 220 | V73: HPA A4 M16x220 inkl. Mutter und Stauscheibe (2329937 / 2458857) | X73: =IF(S75<300,INDEX(U71:U77,MATCH(S75,U71:U77,1)+1),ROUNDUP(S75,-1)) -> 240 | Z73: =IF(S71=16,VLOOKUP(X73,U71:V77,2),IF(S71=20,VLOOKUP(X81,U78:V86,2),IF(S71=24,VLOOKUP(X89,U87:V92,2)))) -> HPA A4 M20x240 inkl. Mutter und Stauscheibe (2330223 / 2458871) | AD73: =AD71-C20-C21-H80 -> 117 | AG73: =AG71-C20-C21-H80 -> 97
S74: auf 0 und 5 gerundete Mindestlänge mit hT,ef gewählt aus C22: | T74: 16 | U74: 240 | V74: HPA A4 M16x240 inkl. Mutter und Stauscheibe (2329938 / 2458858) | AA74: Check mit HT + 2 x do: HPA im Nachweis | AD74: hT,max. möglich mit HPA Durchmesser
S75: =ROUND(C22/5,0)*5 -> 225 | T75: 16 | U75: 260 | V75: HPA A4 M16x260 inkl. Mutter und Stauscheibe (2329939 / 2458859) | Z75: =IF(AE32=0,Z71,Z73) -> HPA A4 M20x220 inkl. Mutter und Stauscheibe (2330222 / 2458870) | AD75: =C8-2*W37 -> 206
T76: 16 | U76: 300 | V76: HPA A4 M16x300 inkl. Mutter und Stauscheibe (2330220 / 2458860) | AD76: längerer HPA mit Check hT mit 2xdo | AG76: kürzerer HPA mit Check hT mit 2xdo
T77: 16 | U77: =IF(S75>U76,S75,) -> 0 | V77: ="HPA A4 M16x"&(U77)&" inkl. Mutter und Stauscheibe" -> HPA A4 M16x0 inkl. Mutter und Stauscheibe | AD77: =IF(AD32=1,"längerer HPA nicht ok","längerer HPA ist ok") -> längerer HPA ist ok | AG77: =IF(AE32=1,"kürzerer HPA nicht ok","kürzerer HPA ist ok") -> kürzerer HPA ist ok
T78: 20 | U78: =IF(S75<220,S75,) -> 0 | V78: ="HPA A4 M20x"&(U78)&" inkl. Mutter und Stauscheibe" -> HPA A4 M20x0 inkl. Mutter und Stauscheibe | AA78: projektspez. Art.-Set wenn 2 x do nicht ok | AD78: Auslastung in TW ok?
C79: Dicke für Nachweis | D79: maßg. Dicke für Nachweis ohne Hebel bis 10 mm | E79: ohne V mit Hebel | F79: Dicke für Dübel-Länge | H79: Dicke für Dübel-Länge | T79: 20 | U79: 220 | V79: HPA A4 M20x220 inkl. Mutter und Stauscheibe (2330222 / 2458870) | Z79: ="HPA A4 spez. M"&S71&"x"&S75 -> HPA A4 spez. M20x225 | AF79: =IF(OR(AND(D49<100.9,D61<100.9,G5="einreihige Ankeranordnung"),AND(D49<100.9,D61<100.9,H49<100.9,H61<100.9)),"ok","nicht ok") -> ok | AG79: (nur informativ!)
B80: Bitumen-Schweißbahn einlagig + Schutzlage, Dicke 8 mm | C80: 0 | D80: =VLOOKUP(F4,B80:C85,2,0) -> 0 | E80: =IF(F4="Bitumen-Schweißbahn zweilagig + Schutzlage, Dicke 13 mm",1,0) -> 0 | F80: 8 | H80: =VLOOKUP(F4,B80:F85,5,0) -> 8 | T80: 20 | U80: 240 | V80: HPA A4 M20x240 inkl. Mutter und Stauscheibe (2330223 / 2458871) | X80: =LOOKUP(S75,U78:U86) -> 220 | AA80: (wird nicht mehr benötigt weil in Z71 drin) | AD80: Länge HPA für Nachweis und Ausdruck
B81: Bitumen-Schweißbahn einlagig, Dicke 5 mm | C81: 0 | F81: 5 | T81: 20 | U81: 260 | V81: HPA A4 M20x260 inkl. Mutter und Stauscheibe (2330224 / 2458872) | X81: =IF(S75<400,INDEX(U78:U86,MATCH(S75,U78:U86,1)+1),ROUNDUP(S75,-1)) -> 240 | AD81: =IF(AE32=0,AG71,IF(AD32=0,AD71,S75)) -> 220
B82: Bitumen-Schweißbahn zweilagig + Schutzlage, Dicke 13 mm | C82: 13 | F82: 13 | T82: 20 | U82: 300 | V82: HPA A4 M20x300 inkl. Mutter und Stauscheibe (2330225 / 2458873) | AD82: tatsächliche hT,ef für Ausdruck, Menge HIT und Nachweise!
B83: Bitumen-Schweißbahn zweilagig, Dicke 10 mm | C83: 0 | F83: 10 | T83: 20 | U83: 330 | V83: HPA A4 M20x330 inkl. Mutter und Stauscheibe (2330226) | AD83: =AD81-C20-C21-H80 -> 97
B84: Flüssigkunststoff-Abdichtung, Dicke 3 mm | C84: 0 | F84: 3 | T84: 20 | U84: 350 | V84: HPA A4 M20x350 inkl. Mutter und Stauscheibe (2330227 / 2458874)
B85: keine Dichtung vorhanden, Dicke 0 mm | C85: 0 | F85: 0 | T85: 20 | U85: 400 | V85: HPA A4 M20x400 inkl. Mutter und Stauscheibe (2458875) | AD85: HIT-Menge für Stauscheibe
T86: 20 | U86: =IF(S75>U85,S75,) -> 0 | V86: ="HPA A4 M20x"&(U86)&" inkl. Mutter und Stauscheibe" -> HPA A4 M20x0 inkl. Mutter und Stauscheibe | AD86: =IF(S71=16,30,IF(S71=20,25,IF(S71=24,20,))) -> 25 | AE86: ml/HPA
T87: 24 | U87: =IF(S75<240,S75,) -> 225 | V87: ="HPA A4 M24x"&(U87)&" inkl. Mutter und Stauscheibe" -> HPA A4 M24x225 inkl. Mutter und Stauscheibe | AD87: HIT-Menge erforderlich je HPA (Neubau, Instandsetzung)
B88: Betrachtung für benötigte Längen bei: | D88: 145/150 | E88: 230 | T88: 24 | U88: 240 | V88: HPA A4 M24x240 inkl. Mutter und Stauscheibe (2330229 / 2458876) | X88: =LOOKUP(S75,U87:U92) -> 225 | AD88: =(AD83*PI()*((W37+2)*(W37+2)-(S71-2)*(S71-2))/4000)+AD86 -> 44.19827271 | AE88: ml/HPA
B89: hT,ef = 120 mm | C89: cnom = 0 | D89: 280 | E89: - | T89: 24 | U89: 260 | V89: HPA A4 M24x260 inkl. Mutter und Stauscheibe (2330230 / 2458877) | X89: =IF(S75<450,INDEX(U87:U92,MATCH(S75,U87:U92,1)+1),ROUNDUP(S75,-1)) -> 240 | AD89: HIT-Menge erforderlich je HPA (nachträgl. Kappenverankerung)
B90: HK = 145/150 und 230 mm | C90: cnom = 30 | D90: 250 | E90: 330 | T90: 24 | U90: 300 | V90: HPA A4 M24x300 inkl. Mutter und Stauscheibe (2330231 / 2458878) | AD90: =(((T67+H80+AD83)*PI()*((W37+2)*(W37+2)-(S71-2)*(S71-2)))/4000)+20 -> 60.37574878 | AE90: ml/HPA
B91: einlag.+V13/zweilagig +V13 | C91: cnom = 50 | D91: 230 | E91: - | T91: 24 | U91: 450 | V91: HPA A4 M24x450 inkl. Mutter und Stauscheibe (2345552 / 2458879) | AD91: HIT maßgebend nach BV
C92: cnom = 60 | D92: 220 | E92: 300 | T92: 24 | U92: =IF(S75>U91,S75,) -> 0 | V92: ="HPA A4 M24x"&(U92)&" inkl. Mutter und Stauscheibe" -> HPA A4 M24x0 inkl. Mutter und Stauscheibe | AD92: =IF(C3="Nachträgliche Kappenverankerung",AD90,AD88) -> 44.19827271 | AE92: ml/HPA
U93: Art.-Nr. nachträgl. Kappenverank. ohne HIW | AD93: =ROUNDUP(AD92,0) -> 45 | AE93: ml/HPA aufgerundet
B94: Betrachtung für benötigte Längen bei: | D94: 145/150 | E94: 230 | T94: 16 | U94: =IF(S75<200,S75,) -> 0 | V94: ="HPA A4 M16x"&(U94)&" inkl. Mutter" -> HPA A4 M16x0 inkl. Mutter
B95: hT,ef = 140 mm | C95: cnom = 0 | D95: 300 | E95: - | T95: 16 | U95: 200 | V95: HPA A4 M16x200 inkl. Mutter (2331899 / 2458487) | X95: =LOOKUP(S75,U94:U100) -> 220
B96: HK = 145/150 und 230 mm | C96: cnom = 30 | D96: 270 | E96: 350 | T96: 16 | U96: 220 | V96: HPA A4 M16x220 inkl. Mutter (2332040 / 2458488) | X96: =IF(S75<300,INDEX(U94:U100,MATCH(S75,U94:U100,1)+1),ROUNDUP(S75,-1)) -> 240
B97: einlag.+V13/zweilagig +V13 | C97: cnom = 50 | D97: 250 | E97: - | T97: 16 | U97: 240 | V97: HPA A4 M16x240 inkl. Mutter (2332041 / 2458489) | AA97: kürzerer HPA gewählt nach Art.-Nr:
C98: cnom = 60 | D98: 240 | E98: 320 | T98: 16 | U98: 260 | V98: HPA A4 M16x260 inkl. Mutter (2332042 / 2458830) | Z98: =IF(S71=16,VLOOKUP(X95,U94:V100,2),IF(S71=20,VLOOKUP(X102,U101:V109,2),IF(S71=24,VLOOKUP(X111,U110:V115,2)))) -> HPA A4 M20x220 inkl. Mutter (2332045 / 2458832)
T99: 16 | U99: 300 | V99: HPA A4 M16x300 inkl. Mutter (2332043 / 2458831) | AA99: längerer HPA gewählt nach Art.-Nr:
B100: Vorschlag: | T100: 16 | U100: =IF(S75>U99,S75,) -> 0 | V100: ="HPA A4 M16x"&(U100)&" inkl. Mutter" -> HPA A4 M16x0 inkl. Mutter | Z100: =IF(S71=16,VLOOKUP(X96,U94:V100,2),IF(S71=20,VLOOKUP(X103,U101:V109,2),IF(S71=24,VLOOKUP(X112,U110:V115,2)))) -> HPA A4 M20x240 inkl. Mutter (2332046 / 2458833)
B101: M16: 240 und 300 | T101: 20 | U101: =IF(S75<220,S75,) -> 0 | V101: ="HPA A4 M20x"&(U101)&" inkl. Mutter" -> HPA A4 M20x0 inkl. Mutter | AA101: Check mit HT + 2 x do: HPA im Nachweis
B102: M20/24: 240 und 250 wird 260, 270 kann auch auf 300 mit hT=170 gebracht werden: ergibt je 4 Größen: 260 / 300 / 330 / 350 | T102: 20 | U102: 220 | V102: HPA A4 M20x220 inkl. Mutter (2332045 / 2458832) | X102: =LOOKUP(S75,U101:U109) -> 220 | Z102: =IF(AE32=0,Z98,Z100) -> HPA A4 M20x220 inkl. Mutter (2332045 / 2458832)
T103: 20 | U103: 240 | V103: HPA A4 M20x240 inkl. Mutter (2332046 / 2458833) | X103: =IF(S75<400,INDEX(U101:U109,MATCH(S75,U101:U109,1)+1),ROUNDUP(S75,-1)) -> 240
T104: 20 | U104: 260 | V104: HPA A4 M20x260 inkl. Mutter (2332047 / 2458834)
B105: Vsd,x/y aus Zwang ensprechend Parameterstudie: | T105: 20 | U105: 300 | V105: HPA A4 M20x300 inkl. Mutter (2332048 / 2458835) | Z105: Zwischenprüfung:
E106: ≤ 1,70 m | F106: 1,70 < b ≤ 2,35 m | G106: 2,35 < b ≤ 2,85 m | H106: 2,85 < b ≤ 3,35 m | I106: 3,35 < b ≤ 3,90 m | J106: 3,90 < b ≤ 5,00 m | K106: 5,00 < b ≤ 6,00 m | T106: 20 | U106: 330 | V106: HPA A4 M20x330 inkl. Mutter (2332049) | Z106: =IF(C3="Nachträgliche Kappenverankerung",Z102,Z75) -> HPA A4 M20x220 inkl. Mutter und Stauscheibe (2330222 / 2458870)
B107: Instandsetzung Kappe | E107: =IF(AND(C3="Instandsetzung Kappe",C12="≤ 1,70 m"),12,0) -> 12 | F107: =IF(AND(C3="Instandsetzung Kappe",C12="1,70 < b ≤ 2,35 m"),15,0) -> 0 | G107: =IF(AND(C3="Instandsetzung Kappe",C12="2,35 < b ≤ 2,85 m"),18,0) -> 0 | H107: =IF(AND(C3="Instandsetzung Kappe",C12="2,85 < b ≤ 3,35 m"),22,0) -> 0 | I107: =IF(AND(C3="Instandsetzung Kappe",C12="3,35 < b ≤ 3,90 m"),25,0) -> 0 | J107: =IF(AND(C3="Instandsetzung Kappe",C12="3,90 < b ≤ 5,00 m"),27.5,0) -> 0 | K107: =IF(AND(C3="Instandsetzung Kappe",C12="5,00 < b ≤ 6,00 m"),30,0) -> 0 | T107: 20 | U107: 350 | V107: HPA A4 M20x350 inkl. Mutter (2332050 / 2458836) | Z107: =IF(C3="Nachträgliche Kappenverankerung",Z139,Z124) -> HPA A4 M20x220 mit Kopfplatte und Stauscheibe
B108: Neubau Kappe und Überbau | E108: =IF(AND(C3="Neubau Kappe und Überbau",C12="≤ 1,70 m"),8,0) -> 0 | F108: =IF(AND(C3="Neubau Kappe und Überbau",C12="1,70 < b ≤ 2,35 m"),13,0) -> 0 | G108: =IF(AND(C3="Neubau Kappe und Überbau",C12="2,35 < b ≤ 2,85 m"),13,0) -> 0 | H108: =IF(AND(C3="Neubau Kappe und Überbau",C12="2,85 < b ≤ 3,35 m"),13,0) -> 0 | I108: =IF(AND(C3="Neubau Kappe und Überbau",C12="3,35 < b ≤ 3,90 m"),14,0) -> 0 | J108: =IF(AND(C3="Neubau Kappe und Überbau",C12="3,90 < b ≤ 5,00 m"),16.5,0) -> 0 | K108: =IF(AND(C3="Neubau Kappe und Überbau",C12="5,00 < b ≤ 6,00 m"),17.5,0) -> 0 | T108: 20 | U108: 400 | V108: HPA A4 M20x400 inkl. Mutter (2458851) | Z108: =IF(C3="Nachträgliche Kappenverankerung","Nachträgliche Kappenverankerung mit Bundmutter nicht möglich.",Z155) -> HPA A4 M20x220 inkl. Bundmutter M20 und Stauscheibe (2460040)
B109: Nachträgliche Kappenverankerung | E109: =IF(AND(C3="Nachträgliche Kappenverankerung",C12="≤ 1,70 m"),8,0) -> 0 | F109: =IF(AND(C3="Nachträgliche Kappenverankerung",C12="1,70 < b ≤ 2,35 m"),13,0) -> 0 | G109: =IF(AND(C3="Nachträgliche Kappenverankerung",C12="2,35 < b ≤ 2,85 m"),13,0) -> 0 | H109: =IF(AND(C3="Nachträgliche Kappenverankerung",C12="2,85 < b ≤ 3,35 m"),13,0) -> 0 | I109: =IF(AND(C3="Nachträgliche Kappenverankerung",C12="3,35 < b ≤ 3,90 m"),14,0) -> 0 | J109: =IF(AND(C3="Nachträgliche Kappenverankerung",C12="3,90 < b ≤ 5,00 m"),16.5,0) -> 0 | K109: =IF(AND(C3="Nachträgliche Kappenverankerung",C12="5,00 < b ≤ 6,00 m"),17.5,0) -> 0 | T109: 20 | U109: =IF(S75>U108,S75,) -> 0 | V109: ="HPA A4 M20x"&(U109)&" inkl. Mutter" -> HPA A4 M20x0 inkl. Mutter | Z109: =IF(OR(C15="Bundmutter HPA-FN A4 M16",C15="Bundmutter HPA-FN A4 M20",C15="Bundmutter HPA-FN A4 M24"),"mit Bundmutter",IF(OR(C15="Sechskantmutter A4 M16",C15="Sechskantmutter A4 M20",C15="Sechskantmutter A4 M24"),"mit Mutter","mit Kopfplatte")) -> mit Mutter
B110: Sonderfall ohne indirekte Einw. | E110: 0 | F110: 0 | G110: 0 | H110: 0 | I110: 0 | J110: 0 | K110: 0 | T110: 24 | U110: =IF(S75<240,S75,) -> 225 | V110: ="HPA A4 M24x"&(U110)&" inkl. Mutter" -> HPA A4 M24x225 inkl. Mutter | Z110: =IF(Z109="mit Kopfplatte",Z107,IF(Z109="mit Bundmutter",Z108,Z106)) -> HPA A4 M20x220 inkl. Mutter und Stauscheibe (2330222 / 2458870)
B111: maßgebender Zwang Vsdxy | E111: =MAX(E107:K110) -> 12 | T111: 24 | U111: 240 | V111: HPA A4 M24x240 inkl. Mutter (2332052 / 2458852) | X111: =LOOKUP(S75,U110:U115) -> 225 | Z111: (Das wird in Eingabe unter Skizze gezeigt)
T112: 24 | U112: 260 | V112: HPA A4 M24x260 inkl. Mutter (2332053 / 2458853) | X112: =IF(S75<450,INDEX(U110:U115,MATCH(S75,U110:U115,1)+1),ROUNDUP(S75,-1)) -> 240 | Z112: =IF(Z109="mit Kopfplatte",Z107,IF(Z109="mit Bundmutter",Z108&"; Einbauart 2d lt. aBG",Z106)) -> HPA A4 M20x220 inkl. Mutter und Stauscheibe (2330222 / 2458870)
T113: 24 | U113: 300 | V113: HPA A4 M24x300 inkl. Mutter (2332054 / 2458854) | Z113: (Das wird in Ausdruck übernommen)
T114: 24 | U114: 450 | V114: HPA A4 M24x450 inkl. Mutter (2458855)
T115: 24 | U115: =IF(S75>U114,S75,) -> 0 | V115: ="HPA A4 M24x"&(U115)&" inkl. Mutter" -> HPA A4 M24x0 inkl. Mutter
U116: Art.-Nr. Kappenverank. mit HPA-K und mit HIW
T117: 20 | U117: =IF(S75<220,S75,) -> 0 | V117: ="HPA A4 M20x"&(U117)&" mit Kopfplatte und Stauscheibe" -> HPA A4 M20x0 mit Kopfplatte und Stauscheibe
T118: 20 | U118: 220 | V118: HPA A4 M20x220 mit Kopfplatte und Stauscheibe | X118: =LOOKUP(S75,U117:U125) -> 220
T119: 20 | U119: 240 | V119: HPA A4 M20x240 mit Kopfplatte und Stauscheibe | X119: =IF(S75<380,INDEX(U117:U125,MATCH(S75,U117:U125,1)+1),ROUNDUP(S75,-1)) -> 240 | AA119: kürzerer HPA gewählt nach Art.-Nr:
T120: 20 | U120: 260 | V120: HPA A4 M20x260 mit Kopfplatte und Stauscheibe | Z120: =IF(S71=16," ",IF(S71=20,VLOOKUP(X118,U117:V125,2),IF(S71=24,VLOOKUP(X127,U126:V131,2)))) -> HPA A4 M20x220 mit Kopfplatte und Stauscheibe
T121: 20 | U121: 300 | V121: HPA A4 M20x300 mit Kopfplatte und Stauscheibe | AA121: längerer HPA gewählt nach Art.-Nr:
T122: 20 | U122: 330 | V122: HPA A4 M20x330 mit Kopfplatte und Stauscheibe | Z122: =IF(S71=16," ",IF(S71=20,VLOOKUP(X119,U117:V125,2),IF(S71=24,VLOOKUP(X128,U126:V131,2)))) -> HPA A4 M20x240 mit Kopfplatte und Stauscheibe
T123: 20 | U123: 350 | V123: HPA A4 M20x350 mit Kopfplatte und Stauscheibe | AA123: Check mit HT + 2 x do: HPA im Nachweis
T124: 20 | U124: 400 | V124: HPA A4 M20x400 mit Kopfplatte und Stauscheibe | Z124: =IF(AE32=0,Z120,Z122) -> HPA A4 M20x220 mit Kopfplatte und Stauscheibe
T125: 20 | U125: =IF(S75>U124,S75,) -> 0 | V125: ="HPA A4 M20x"&(U125)&" mit Kopfplatte und Stauscheibe" -> HPA A4 M20x0 mit Kopfplatte und Stauscheibe
T126: 24 | U126: =IF(S75<240,S75,) -> 225 | V126: ="HPA A4 M24x"&(U126)&" mit Kopfplatte und Stauscheibe" -> HPA A4 M24x225 mit Kopfplatte und Stauscheibe
T127: 24 | U127: 240 | V127: HPA A4 M24x240 mit Kopfplatte und Stauscheibe | X127: =LOOKUP(S75,U126:U131) -> 225
T128: 24 | U128: 260 | V128: HPA A4 M24x260 mit Kopfplatte und Stauscheibe | X128: =IF(S75<450,INDEX(U126:U131,MATCH(S75,U126:U131,1)+1),ROUNDUP(S75,-1)) -> 240
T129: 24 | U129: 300 | V129: HPA A4 M24x300 mit Kopfplatte und Stauscheibe
T130: 24 | U130: 450 | V130: HPA A4 M24x450 mit Kopfplatte und Stauscheibe
T131: 24 | U131: =IF(S75>U130,S75,) -> 0 | V131: ="HPA A4 M24x"&(U131)&" mit Kopfplatte und Stauscheibe" -> HPA A4 M24x0 mit Kopfplatte und Stauscheibe | BQ131: i
U132: Art.-Nr. Kappenverank. mit HPA-K und ohne HIW
T133: 20 | U133: =IF(S75<220,S75,) -> 0 | V133: ="HPA A4 M20x"&(U133)&" mit Kopfplatte" -> HPA A4 M20x0 mit Kopfplatte
T134: 20 | U134: 220 | V134: HPA A4 M20x220 mit Kopfplatte | X134: =LOOKUP(S75,U133:U141) -> 220 | AA134: kürzerer HPA gewählt nach Art.-Nr:
T135: 20 | U135: 240 | V135: HPA A4 M20x240 mit Kopfplatte | X135: =IF(S75<400,INDEX(U133:U141,MATCH(S75,U133:U141,1)+1),ROUNDUP(S75,-1)) -> 240 | Z135: =IF(S71=16," ",IF(S71=20,VLOOKUP(X134,U133:V141,2),IF(S71=24,VLOOKUP(X143,U142:V147,2)))) -> HPA A4 M20x220 mit Kopfplatte
T136: 20 | U136: 260 | V136: HPA A4 M20x260 mit Kopfplatte | AA136: längerer HPA gewählt nach Art.-Nr:
T137: 20 | U137: 300 | V137: HPA A4 M20x300 mit Kopfplatte | Z137: =IF(S71=16," ",IF(S71=20,VLOOKUP(X135,U133:V141,2),IF(S71=24,VLOOKUP(X144,U142:V147,2)))) -> HPA A4 M20x240 mit Kopfplatte
T138: 20 | U138: 330 | V138: HPA A4 M20x330 mit Kopfplatte | AA138: Check mit HT + 2 x do: HPA im Nachweis
T139: 20 | U139: 350 | V139: HPA A4 M20x350 mit Kopfplatte | Z139: =IF(AE32=0,Z135,Z137) -> HPA A4 M20x220 mit Kopfplatte
T140: 20 | U140: 400 | V140: HPA A4 M20x400 mit Kopfplatte
T141: 20 | U141: =IF(S75>U140,S75,) -> 0 | V141: ="HPA A4 M20x"&(U141)&" mit Kopfplatte" -> HPA A4 M20x0 mit Kopfplatte
T142: 24 | U142: =IF(S75<240,S75,) -> 225 | V142: ="HPA A4 M24x"&(U142)&" mit Kopfplatte" -> HPA A4 M24x225 mit Kopfplatte
T143: 24 | U143: 240 | V143: HPA A4 M24x240 mit Kopfplatte | X143: =LOOKUP(S75,U142:U147) -> 225
T144: 24 | U144: 260 | V144: HPA A4 M24x260 mit Kopfplatte | X144: =IF(S75<450,INDEX(U142:U147,MATCH(S75,U142:U147,1)+1),ROUNDUP(S75,-1)) -> 240
T145: 24 | U145: 300 | V145: HPA A4 M24x300 mit Kopfplatte
T146: 24 | U146: 450 | V146: HPA A4 M24x450 mit Kopfplatte
T147: 24 | U147: =IF(S75>U146,S75,) -> 0 | V147: ="HPA A4 M24x"&(U147)&" mit Kopfplatte" -> HPA A4 M24x0 mit Kopfplatte
U148: Art. Kappenverank. mit Bundmutter und mit HIW
T149: 16 | U149: =IF(S75<200,S75,) -> 0 | V149: ="HPA A4 M16x"&(U149) &" inkl. Bundmutter M16 und Stauscheibe" -> HPA A4 M16x0 inkl. Bundmutter M16 und Stauscheibe
T150: 16 | U150: 200 | V150: HPA A4 M16x200 inkl. Bundmutter M16 und Stauscheibe (2459585) | X150: =LOOKUP(S75,U149:U155) -> 220 | AA150: kürzerer HPA gewählt nach Art.-Nr:
T151: 16 | U151: 220 | V151: HPA A4 M16x220 inkl. Bundmutter M16 und Stauscheibe (2459586) | X151: =IF(S75<300,INDEX(U149:U155,MATCH(S75,U149:U155,1)+1),ROUNDUP(S75,-1)) -> 240 | Z151: =IF(S71=16,VLOOKUP(X150,U149:V155,2),IF(S71=20,VLOOKUP(X157,U156:V164,2),IF(S71=24,VLOOKUP(X166,U165:V172,2)))) -> HPA A4 M20x220 inkl. Bundmutter M20 und Stauscheibe (2460040)
T152: 16 | U152: 240 | V152: HPA A4 M16x240 inkl. Bundmutter M16 und Stauscheibe (2459587) | AA152: längerer HPA gewählt nach Art.-Nr:
T153: 16 | U153: 260 | V153: HPA A4 M16x260 inkl. Bundmutter M16 und Stauscheibe (2459588) | Z153: =IF(S71=16,VLOOKUP(X151,U149:V155,2),IF(S71=20,VLOOKUP(X158,U156:V164,2),IF(S71=24,VLOOKUP(X167,U165:V172,2)))) -> HPA A4 M20x240 inkl. Bundmutter M20 und Stauscheibe (2460041)
T154: 16 | U154: 300 | V154: HPA A4 M16x300 inkl. Bundmutter M16 und Stauscheibe (2459589) | AA154: Check mit HT + 2 x do: HPA im Nachweis
T155: 16 | U155: =IF(S75>U154,S75,) -> 0 | V155: ="HPA A4 M16x"&(U155)&" inkl. Bundmutter M16 und Stauscheibe" -> HPA A4 M16x0 inkl. Bundmutter M16 und Stauscheibe | Z155: =IF(AE32=0,Z151,Z153) -> HPA A4 M20x220 inkl. Bundmutter M20 und Stauscheibe (2460040)
T156: 20 | U156: =IF(S75<220,S75,) -> 0 | V156: ="HPA A4 M20x"&(U156)&" inkl. Bundmutter M20 und Stauscheibe" -> HPA A4 M20x0 inkl. Bundmutter M20 und Stauscheibe
T157: 20 | U157: 220 | V157: HPA A4 M20x220 inkl. Bundmutter M20 und Stauscheibe (2460040) | X157: =LOOKUP(S75,U156:U164) -> 220
T158: 20 | U158: 240 | V158: HPA A4 M20x240 inkl. Bundmutter M20 und Stauscheibe (2460041) | X158: =IF(S75<400,INDEX(U156:U164,MATCH(S75,U156:U164,1)+1),ROUNDUP(S75,-1)) -> 240
T159: 20 | U159: 260 | V159: HPA A4 M20x260 inkl. Bundmutter M20 und Stauscheibe (2460042)
T160: 20 | U160: 300 | V160: HPA A4 M20x300 inkl. Bundmutter M20 und Stauscheibe (2460043)
T161: 20 | U161: 330 | V161: HPA A4 M20x330 inkl. Bundmutter M20 und Stauscheibe (2460044)
T162: 20 | U162: 350 | V162: HPA A4 M20x350 inkl. Bundmutter M20 und Stauscheibe (2460045)
T163: 20 | U163: 400 | V163: HPA A4 M20x400 inkl. Bundmutter M20 und Stauscheibe (2460046)
T164: 20 | U164: =IF(S75>U163,S75,) -> 0 | V164: ="HPA A4 M20x"&(U164)&" inkl. Bundmutter M20 und Stauscheibe" -> HPA A4 M20x0 inkl. Bundmutter M20 und Stauscheibe
T165: 24 | U165: =IF(S166<220,S166,) -> 0 | V165: ="Set HPA A4 M24x"&(U165)&" inkl. Bundmutter (Bund oben) u. Stauscheibe" -> Set HPA A4 M24x0 inkl. Bundmutter (Bund oben) u. Stauscheibe
T166: 24 | U166: 220 | V166: Set HPA A4 M24x220 inkl. Bundmutter (Bund oben) u. Stauscheibe | X166: =LOOKUP(S75,U165:U172) -> 220
T167: 24 | U167: 240 | V167: Set HPA A4 M24x240 inkl. Bundmutter (Bund oben) u. Stauscheibe | X167: =IF(S75<450,INDEX(U165:U172,MATCH(S75,U165:U172,1)+1),ROUNDUP(S75,-1)) -> 240
T168: 24 | U168: 260 | V168: Set HPA A4 M24x260 inkl. Bundmutter (Bund oben) u. Stauscheibe
T169: 24 | U169: 300 | V169: Set HPA A4 M24x300 inkl. Bundmutter (Bund oben) u. Stauscheibe
T170: 24 | U170: 350 | V170: Set HPA A4 M24x350 inkl. Bundmutter (Bund oben) u. Stauscheibe
T171: 24 | U171: 450 | V171: Set HPA A4 M24x450 inkl. Bundmutter (Bund oben) u. Stauscheibe
T172: 24 | U172: =IF(S166>U171,S166,) -> 0 | V172: ="Set HPA A4 M24x"&(U172)&" inkl. Bundmutter (Bund oben) u. Stauscheibe" -> Set HPA A4 M24x0 inkl. Bundmutter (Bund oben) u. Stauscheibe
N198: 2

Sheet Exceptionslist (hidden)
D2: Computer_Name
D3: DEFE1057 | E3: =IFERROR(MATCH(D3,D11:D1400,0),0) -> 0 | F3: Formel bei 1399 Usern anpassen!
D4: Domain
D5: hilti.com | E5: =IFERROR(MATCH(D5,F11:F500,0),0) -> 0
D7: User Credentials | E7: =E3+E5 -> 0
D10: Computer Name | F10: Domain | J10: E-Mail | K10: Warning
C11: 1 | D11: DESKTOP-KBJI55T | E11: (PC Lützow privat) | F11: max-boegl.biz | H11: Region | I11: DE | J11: =VLOOKUP(I11,H15:I19,2,) -> planer-support@hilti.com | K11: =VLOOKUP(I11,H15:J19,3,) -> Achtung, die erforderliche Autorisierung fehlt. Wenn Sie das Tool verwenden möchten, dann kontaktieren sie Hilti unter :
C12: 2 | D12: pc2 | F12: ssiftgn.local
C13: 3 | D13: STATIK-PC | F13: kuk.de
C14: 4 | D14: KAFFINE10 | F14: ls.mswv.ad.lvnbb.de
C15: 5 | D15: PC-Markoten-2 | F15: strassen.nrw.de | H15: DE | I15: planer-support@hilti.com | J15: Achtung, die erforderliche Autorisierung fehlt. Wenn Sie das Tool verwenden möchten, dann kontaktieren sie Hilti unter :
C16: 6 | D16: LT-12 | F16: wtm-hh.local | H16: AT | I16: atteamengineering@hilti.com | J16: Achtung, die erforderliche Autorisierung fehlt. Wenn Sie das Tool verwenden möchten, dann kontaktieren sie Hilti unter :
C17: 7 | D17: DESKTOP-PJ1I98R | F17: nblindschulte | H17: CH | I17: CHTeamInhaustechnik@hilti.com | J17: Achtung, die erforderliche Autorisierung fehlt. Wenn Sie das Tool verwenden möchten, dann kontaktieren sie Hilti unter :
C18: 8 | D18: WFS050 | F18: suh-ing.local | H18: NL | I18: NLTeamTechnischAdvies@hilti.com
C19: 9 | D19: IBW-PC-05 | F19: SRV-NET1.bin.site | H19: PL | I19: PROFISpomoc.pl@hilti.com
C20: 10 | D20: PC-SMARTIN | F20: inros-lackner.de; ilag.ilc.intern
C21: 11 | D21: PC-TKUSCHKE | F21: h-f.local
C22: 12 | D22: PC-KLIPSTEIN | F22: gehlen-ing.local
C23: 13 | D23: PC-NLICH | F23: kmp.local
C24: 14 | D24: Voelkel-PC | F24: S.LAP-CONSULT.COM
C25: 15 | D25: PC-GOEPFERT-14 | F25: trebes.local
C26: 16 | D26: A-BohlanderJ | F26: kmp.local
C27: 17 | D27: SBU-CL-W1010 | F27: grassl.local
C28: 18 | D28: PC-001 | F28: IFW-INGENIEURE.DE
C29: 19 | D29: PCFLESCH101 | F29: domain
C30: 20 | D30: PCFLESCH102
C31: 21 | D31: PCFLESCH103
C32: 22 | D32: PC-W10-HHM
C33: 23 | D33: MAG0001
C34: 24 | D34: PCMD004
C35: 25 | D35: Igl-PC
C36: 26 | D36: NILGES-PC
C37: 27 | D37: OLI-16000
C38: 28 | D38: Oli-Ryzen_5
C39: 29 | D39: STATIK2
C40: 30 | D40: KUPFERSC-DC8100
C41: 31 | D41: MULTIMONITOR-W7
C42: 32 | D42: pc129
C43: 33 | D43: ws128
C44: 34 | D44: ws129
C45: 35 | D45: Rvogler2-PC
C46: 36 | D46: LC-PC01
C47: 37 | D47: LSHOP381
C48: 38 | D48: SRP-KC-181
C49: 39 | D49: PC-Loebbert
C50: 40 | D50: PC-JENNY
C51: 41 | D51: PC-LUEDERS
C52: 42 | D52: KAULE-PC
C53: 43 | D53: NBSchellenbauer
C54: 44 | D54: WKS799
C55: 45 | D55: WVW10NB12
C56: 46 | D56: WVW7WS02
C57: 47 | D57: WVW7PC04
C58: 48 | D58: WVW7PC19
C59: 49 | D59: WVW7PC14
C60: 50 | D60: PC-GAERTNER2
C61: 51 | D61: PC-Engler
C62: 52 | D62: CLN-A-34
C63: 53 | D63: PCDH
C64: 54 | D64: USER-PC
C65: 55 | D65: BERND-PC
C66: 56 | D66: BDC-C521C-B
C67: 57 | D67: SBU-CL-W1014
C68: 58 | D68: DEKOE-WS-VAM33
C69: 59 | D69: DESKTOP-KHNL9OO
C70: 60 | D70: PCBA-2018-10
C71: 61 | D71: ALFONS-2018
C72: 62 | D72: PC-MS
C73: 63 | D73: JEN-H17-WD
C74: 64 | D74: SBU-01
C75: 65 | D75: RT
C76: 66 | D76: PC-Noack
C77: 67 | D77: FOSNB562
C78: 68 | D78: EROS
C79: 69 | D79: W10-42
C80: 70 | D80: W10-11
C81: 71 | D81: EU2023
C82: 72 | D82: KNEPPERGES
C83: 73 | D83: PC-PEULERS
C84: 74 | D84: PC-01344
C85: 75 | D85: PC-01754
C86: 76 | D86: iMac
C87: 77 | D87: PC-KRAFFT
C88: 78 | D88: DESKTOP
C89: 79 | D89: 5CG6274TGF
C90: 80 | D90: PC-SEITEL
C91: 81 | D91: COREL
C92: 82 | D92: PC-Reisacher
C93: 83 | D93: MA-LAPTOP-WIN10
C94: 84 | D94: LT-RAUSCH
C95: 85 | D95: PD1322
C96: 86 | D96: MAG-NB20180423
C97: 87 | D97: C13
C98: 88 | D98: PC02-PUH-0216
C99: 89 | D99: PC05
C100: 90 | D100: BERTRAM-HP
C101: 91 | D101: WS-IFW-09
C102: 92 | D102: WS-IFW-08
C103: 93 | D103: WS-IFW-07
C104: 94 | D104: SP-20140202
C105: 95 | D105: PC-01626
C106: 96 | D106: PC-LORENZ-14
C107: 97 | D107: NB-BECKMANN
C108: 98 | D108: Kleffel-PC
C109: 99 | D109: LAPTOP-M0LIVF7O
C110: 100 | D110: PC-Pfann
C111: 101 | D111: BEPWS73
C112: 102 | D112: BEPNB18
C113: 103 | D113: PC-SCHMIDLE
C114: 104 | D114: PC-STRASSER
C115: 105 | D115: PDA1531
C116: 106 | D116: LAPTOP-P73
C117: 107 | D117: PC-SCHLENGER
C118: 108 | D118: PC-SGABLER
C119: 109 | D119: SCALEO
C120: 110 | D120: FJNEU2014-PC
C121: 111 | D121: M6600-01
C122: 112 | D122: NBKOEPPLJ
C123: 113 | D123: WIN7-03
C124: 114 | D124: CRISTIAN-NEU
C125: 115 | D125: Antje-10
C126: 116 | D126: PC128
C127: 117 | D127: CAD-PET
C128: 118 | D128: SCHNEIDER1
C129: 119 | D129: SCHOBER-CARSTEN
C130: 120 | D130: HANS-CHRISTIAN
C131: 121 | D131: SCHORR-TONI
C132: 122 | D132: WE-NB-DOMHARDT2
C133: 123 | D133: WE-NB-ROST
C134: 124 | D134: WE-PC-ALJOMAAA
C135: 125 | D135: PL-PC-SPINDLER
C136: 126 | D136: PL-NB-FREITAG
C137: 127 | D137: WE-PC-MOOR
C138: 128 | D138: PC-KF
C139: 129 | D139: PL-PC-SEIFERT
C140: 130 | D140: WE-NB-WEISS2
C141: 131 | D141: WE-PC-PILLE
C142: 132 | D142: WE-NB-SETZ2
C143: 133 | D143: LAPP21
C144: 134 | D144: PC03
C145: 135 | D145: THESING-NEU
C146: 136 | D146: PC-JGRIMMINGER
C147: 137 | D147: PCH.ibvs.local
C148: 138 | D148: NBFI20
C149: 139 | D149: SOMMERHAEUSER
C150: 140 | D150: WTBOE68
C151: 141 | D151: WTBOE99
C152: 142 | D152: PC056
C153: 143 | D153: KIEL-NEU
C154: 144 | D154: MGN-PC221104
C155: 145 | D155: 20101215PC1
C156: 146 | D156: PONT-DE-NORMAND
C157: 147 | D157: PC-KK
C158: 148 | D158: BJHU23_2013
C159: 149 | D159: CLN-A-41
C160: 150 | D160: WIN7-13-1-PC
C161: 151 | D161: FOSS-CAD
C162: 152 | D162: Jung-Win10
C163: 153 | D163: VOCKRODT-WIN10
C164: 154 | D164: RPW-12-2019
C165: 155 | D165: KGB-PC
C166: 156 | D166: PC01
C167: 157 | D167: LEISTNER29
C168: 158 | D168: STATIK-04
C169: 159 | D169: Statik-01
C170: 160 | D170: Mueller-PC
C171: 161 | D171: TUNGER10-PC
C172: 162 | D172: Vogelsang10-PC
C173: 163 | D173: Bernhardt-PC
C174: 164 | D174: KB-KELLERMANN
C175: 165 | D175: L630C0001
C176: 166 | D176: L630C0104
C177: 167 | D177: L630C0102
C178: 168 | D178: KB-MAMBRETTI
C179: 169 | D179: KB-HOHM
C180: 170 | D180: WS-036
C181: 171 | D181: W7BEYER
C182: 172 | D182: EDV-111172
C183: 173 | D183: EDV-700087
C184: 174 | D184: NBBOE05
C185: 175 | D185: LEISTNER27
C186: 176 | D186: PC2
C187: 177 | D187: PC6
C188: 178 | D188: EDT-44
C189: 179 | D189: EDT-41
C190: 180 | D190: CE-330
C191: 181 | D191: EDT-137
C192: 182 | D192: PC-003
C193: 183 | D193: BALDAUF-PC
C194: 184 | D194: STEEGER
C195: 185 | D195: ME-T460-02
C196: 186 | D196: node12231
C197: 187 | D197: SBL23
C198: 188 | D198: 5CG8312ZJC
C199: 189 | D199: PC-CAD-17
C200: 190 | D200: WIN7-30
C201: 191 | D201: Juergen
C202: 192 | D202: KSIC-335W10B64.KSIC.local
C203: 193 | D203: Fackler-PC
C204: 194 | D204: Bruno-PC
... 1148 more rows

Sheet Ausdruck_2-reihig
A1: Baumaßnahme | D1: x | I1: Bauwerksnummer (ASB)
A2: Straßenbauverwaltung | D2: y | I2: 12345
A3: Aufsteller | D3: z | I3: Datum | J3: 2024-06-10
B4: Projekt- und Montage-Übersicht
B6: Geometrie
B26: Randbereich in Kappenlängsrichtung jeweils 6 m vor Übergangskonstruktion (ÜKO)
A29: Bauvorhaben | G29: Kappenverankerung
B31: =Eingabe!C3 -> Instandsetzung Kappe
A32: Tragwerk (Überbau)
B34: Betongüte | D34: =Eingabe!C6 -> C 30/37; gerissen
B35: Randabstand cT | D35: =Eingabe!C7 -> 1350 | E35: [mm]
B36: Drehpunktabstand d | D36: =Eingabe!C9 -> 10 | E36: =Eingabe!D17 -> [mm]
B37: Abstand längs sx,Mittelbereich | D37: =Eingabe!J28 -> 660 | E37: =Eingabe!D10 -> [mm]
B38: Abstand längs sx,Randbereich | D38: =Eingabe!J32 -> 660 | E38: [mm]
B39: Reihenabstand s1 | D39: =Eingabe!C17 -> 340 | E39: [mm]
B40: Bauteildicke Tragwerk hT | D40: =Eingabe!C8 -> 250 | E40: [mm]
B41: Verankerungslänge hef | D41: =Eingabe!AD83 -> 97 | E41: [mm]
B42: Bohrloch-Ø do | D42: =Eingabe!W37 -> 22 | E42: [mm]
A44: Kappe
B46: Betongüte | D46: =Eingabe!C13 -> C 40/50 (LP); gerissen
B47: Rohdichte ρ | D47: =Eingabe!C14&" [kg/m3]" -> 1800 [kg/m3]
B48: Kappenbreite b | D48: =LEFT(Eingabe!C12,FIND("m",Eingabe!C12)-1) -> ≤ 1,70 | E48: [m]
B49: Randabstand cK | D49: =Eingabe!C16 -> 200 | E49: [mm]
B50: Kopfbolzenart | C50: =Eingabe!C15 -> Sechskantmutter A4 M20
B51: Betondeckung Kopfbolzen cnom | D51: =IF(Eingabe!C19=0,"0",Eingabe!C19) -> 30 | E51: [mm]
B52: Kappenhöhe hK | D52: =Eingabe!C18 -> 145 | E52: [mm]
B53: Verankerungslänge hef,neu (Bundm.) | D53: =Eingabe!C21 -> 99 | E53: [mm]
B54: Gewindehöhe hK,Gew | D54: =SUM(Eingabe!C20,Eingabe!C21) -> 115 | E54: [mm] | G54: =Eingabe!Z112 -> HPA A4 M20x220 inkl. Mutter und Stauscheibe (2330222 / 2458870)
A55: Dichtungsschicht
B56: =LEFT(Eingabe!F4,FIND(",",Eingabe!F4)-1) -> Bitumen-Schweißbahn einlagig + Schutzlage | G56: zzgl. Injektionsmörtel HIT-RE 500 V4
B57: Dicke | D57: =IF(Eingabe!H80<1,"0",Eingabe!H80) -> 8 | E57: [mm] | G57: HIT-Menge: | H57: ="≈ "&Eingabe!AD93 -> ≈ 45 | I57: ml/HPA
B58: =Eingabe!B2 -> HILTI Design-Tool Kappenverankerung 12.3 | G58: =Eingabe!I2 -> Version gültig bis 31.12.2026
A59: Bauteil | D59: Kappenverankerung | I59: Seite | J59: 1
A60: Kapitel / Vorgang | D60: Mittelkappe | I60: Archiv-Nr. | J60: 1234
A61: Baumaßnahme | D61: =D1 -> x | I61: Bauwerksnummer (ASB)
A62: Straßenbauverwaltung | D62: =D2 -> y | I62: =I2 -> 12345
A63: Aufsteller | D63: =D3 -> z | I63: Datum | J63: =J3 -> 2024-06-10
A65: Einwirkungen
B67: Direkte Einwirkungen:
B68: =Eingabe!C24 -> Wind auf Lärmschutzwand
B69: Moment MEd,y,direkt : | G69: =IF(Eingabe!C25=0,"0,0",Eingabe!C25) -> 39.8 | H69: [kNm/m]
B70: Querkraft VEd,y, direkt : | G70: =Eingabe!C26 -> 87.8 | H70: [kN/m]
B71: Indirekte Einwirkungen: (Aus numerischen Berechnungen auf Basis Änderung konstanter Temperaturanteil aus Klima, konstantem Temperatur- unterschied zwischen verschiedenen Bauteilen sowie Kriechen und Schwinden in Abhängigkeit von Kappenlänge, -querschnitt, Kappenausführung, Dübelanzahl und -steifigkeit; Prof. Dr. U. Freundt, Gutachten zur Befestigung von Brückenkappen mittels Hilti Kappenverankerung HPA (ehem. HCC), Weimar 30.7.2015)
B72: Mitte: VEd,y,indirekt : | G72: =IF(Eingabe!C29>0,Eingabe!C29,"0,0") -> 12 | H72: [kN/HPA]
B73: Rand: VEd,x/y,indirekt : | G73: =IF(Eingabe!C30>0,Eingabe!C30,"0,0") -> 12 | H73: [kN/HPA]
A75: Resultierende Einwirkungen / HPA
C76: Tragwerk | D76: Kappe | G76: Tragwerk | H76: Kappe
C77: Mittelbereich
C79: HPA-Reihe 1 | G79: HPA-Reihe 2
B80: NEd | C80: =Eingabe!D41 -> 12.59089999 | D80: =Eingabe!F41 -> 12.59089999 | G80: =Eingabe!H41 -> 9.396194019 | H80: =Eingabe!J41 -> 9.396194019
C81: =Eingabe!D42 -> 0 | D81: =Eingabe!F42 -> 0 | G81: =Eingabe!H42 -> 0 | H81: =Eingabe!J42 -> 0
B82: VEd,y * | C82: =Eingabe!D43 -> 39.0145425 | D82: =Eingabe!F43 -> 39.0145425 | G82: =Eingabe!H43 -> 39.0145425 | H82: =Eingabe!J43 -> 39.0145425
C84: Randbereich (6m vor ÜKO)
C86: HPA-Reihe 1 [kN] | G86: HPA-Reihe 2 [kN]
B87: NEd | C87: =Eingabe!D53 -> 12.59089999 | D87: =Eingabe!F53 -> 12.59089999 | G87: =Eingabe!H53 -> 9.396194019 | H87: =Eingabe!J53 -> 9.396194019
C88: =Eingabe!D54 -> 0 | D88: =Eingabe!F54 -> 0 | G88: =Eingabe!H54 -> 0 | H88: =Eingabe!J54 -> 0
B89: VEd,x/y * | C89: =Eingabe!D55 -> 40.81831117 | D89: =Eingabe!F55 -> 40.81831117 | G89: =Eingabe!H55 -> 40.81831117 | H89: =Eingabe!J55 -> 40.81831117
B90: * Der durch die Kappe erzeugte Reibwiderstand wurde berücksichtigt mit: | I90: FR [kN/m] = | J90: =Eingabe!O17 -> 5.93775
A91: Widerstände / HPA
C93: Mittelbereich
C94: Tragwerk | D94: Kappe | G94: Tragwerk | H94: Kappe
C95: HPA-Reihe 1 | G95: HPA-Reihe 2
B96: NRd,s | C96: =D136 -> 91.71122995 | D96: =D214 -> 91.71122995 | G96: =D280 -> 91.71122995 | H96: =D362 -> 91.71122995
B97: NRd,c | C97: =Eingabe!D45 -> 26.45781195 | D97: =Eingabe!F45 -> 36.96421904 | G97: =Eingabe!H45 -> 26.45781195 | H97: =Eingabe!J45 -> 36.96421904
B98: NRd,p | C98: =Eingabe!D46 -> 41.62266785 | D98: =Eingabe!F46 -> 78.6 | G98: =Eingabe!H46 -> 41.62266785 | H98: =Eingabe!J46 -> 78.6
B99: VRd,s | C99: =Eingabe!D47 -> 55 | D99: =Eingabe!F47 -> 55 | G99: =Eingabe!H47 -> 55 | H99: =Eingabe!J47 -> 55
B100: VRd,c/cp | C100: =Eingabe!D48 -> 52.9156239 | D100: =Eingabe!F48 -> 73.92843809 | G100: =Eingabe!H48 -> 52.9156239 | H100: =Eingabe!J48 -> 73.92843809
B101: Ausnutzung | C101: =Eingabe!D49 -> 96.13751742 | D101: =Eingabe!F49 -> 70.93553182 | G101: =Eingabe!H49 -> 84.47273998 | H101: =Eingabe!J49 -> 70.93553182
C102: =Eingabe!F29 -> Verankerung Mittelbereich zulässig
C104: Randbereich (6m vor ÜKO)
C105: Tragwerk | D105: Kappe | G105: Tragwerk | H105: Kappe
C106: HPA-Reihe 1 | G106: HPA-Reihe 2
B107: NRd,s | C107: =D429 -> 91.71122995 | D107: =D513 -> 91.71122995 | G107: =D583 -> 91.71122995 | H107: =D662 -> 91.71122995
B108: NRd,c | C108: =Eingabe!D57 -> 26.45781195 | D108: =Eingabe!F57 -> 36.96421904 | G108: =Eingabe!H57 -> 26.45781195 | H108: =Eingabe!J57 -> 36.96421904
B109: NRd,p | C109: =Eingabe!D58 -> 41.62266785 | D109: =Eingabe!F58 -> 78.6 | G109: =Eingabe!H58 -> 41.62266785 | H109: =Eingabe!J58 -> 78.6
B110: VRd,s | C110: =Eingabe!D59 -> 55 | D110: =Eingabe!F59 -> 55 | G110: =Eingabe!H59 -> 55 | H110: =Eingabe!J59 -> 55
B111: VRd,c/cp | C111: =Eingabe!D60 -> 52.9156239 | D111: =Eingabe!F60 -> 73.92843809 | G111: =Eingabe!H60 -> 52.9156239 | H111: =Eingabe!J60 -> 73.92843809
B112: Aunutzung | C112: =Eingabe!D61 -> 100.5783337 | D112: =Eingabe!F61 -> 74.21511121 | G112: =Eingabe!H61 -> 88.91355625 | H112: =Eingabe!J61 -> 74.21511121
C113: =Eingabe!F33 -> Verankerung Randbereich zulässig
A115: Zugkraftübertragung Kappe → Tragwerk (Überbau): Kappenverankerung HPA
A116: =" Querkraftübertragung Kappe → Tragwerk (Überbau): "&(Eingabe!C33) -> Querkraftübertragung Kappe → Tragwerk (Überbau): Kappenverankerung HPA
D117: =IF(Eingabe!C24="Anprall an KFZ-Rückhaltesystem",Kappe!#REF!,"") -> 
A118: Bauteil | D118: =D59 -> Kappenverankerung | I118: Seite | J118: =J59+1 -> 2
A119: Kapitel / Vorgang | D119: =D60 -> Mittelkappe | I119: Archiv-Nr. | J119: =J60 -> 1234
A120: Baumaßnahme | D120: =D1 -> x | I120: Bauwerksnummer (ASB)
A121: Straßenbauverwaltung | D121: =D2 -> y | I121: =I2 -> 12345
A122: Aufsteller | D122: =D3 -> z | I122: Datum | J122: =J3 -> 2024-06-10
A124: Verwendbarkeits- und Anwendbarkeitsnachweise / Prüfungen / Gutachten
B125: 1. Dübelsystem HIT-RE 500 V4 nach ETA-20/0541 2. Hilti Betonverbinder HPA nach Z-21.8-2118 3. Dichtheitsprüfungen mit Berichten der Bautechnischen Versuchsanstalt an der HTL Rankweil 4. Dichtheitsprüfung unter dynamischer Querkraft-Einwirkung; Bericht der Bautechnischen Versuchsanstalt an der HTL Rankweil 5. Gutachten 20-083/1.1.1, Nachträgliche Verankerung von Brückenkappen und Lärmschutzwänden auf Brückenkappen mit Injektionssystem HIT RE 500 V4; Ingenieurbüro Schiessl Gehlen Sodeikat GmbH 6. "Befestigungen mit Kopfbolzen am Bauteilrand mit und ohne Rückhängebewehrung unter Querlasten senkrecht zum Rand"; Eligehausen, Asmus, Sharma; Der Prüfingenieur, Mai 2016
A130: Mittelbereich Tragwerk (Überbau) HPA-Reihe 1
A132: Zugkraft-Einwirkung
B133: Stahlversagen
C134: NRk,s | D134: =INDEX(Tragwerk!$B$23:$D$23,1,MATCH(Eingabe!$C$4,Tragwerk!$B$14:$D$14)) -> 171.5 | E134: [kN] | G134: Charakt. Zugtragfähigkeit lt. ETA
C135: γMs | D135: =Tragwerk!$B$24 -> 1.87 | E135: [-] | G135: Teilsicherheitsbeiwert lt. ETA
C136: NRd,s | D136: =INDEX(Tragwerk!B25:D25,1,MATCH(Eingabe!C4,Tragwerk!B14:D14)) -> 91.71122995 | E136: [kN] | G136: Bemessungswert des Widerstandes
C137: NEd,Mitte | D137: =Tragwerk!$B$62 -> 12.59089999 | E137: [kN] | G137: Bemessungswert der Einwirkung
C138: bN,s | D138: =D137/D136 -> 0.1372885305 | E138: [-] | G138: Ausnutzungsgrad
B140: Kombiniertes Versagen Herausziehen / Betonausbruch
C141: N0Rk,p | D141: =INDEX(Tragwerk!$B$27:$D$27,1,MATCH(Eingabe!$C$4,Tragwerk!$B$14:$D$14)) -> 60.94689748 | E141: [kN] | G141: DIN EN 1992-4
C142: scr,Np | D142: =INDEX(Tragwerk!$B$28:$D$28,1,MATCH(Eingabe!$C$4,Tragwerk!$B$14:$D$14)) -> 291 | E142: [mm] | G142: DIN EN 1992-4
C143: A0p,N | D143: =INDEX(Tragwerk!$B$29:$D$29,1,MATCH(Eingabe!$C$4,Tragwerk!$B$14:$D$14)) -> 84681 | E143: [mm²] | G143: DIN EN 1992-4
C144: Ap,N | D144: =INDEX(Tragwerk!$B$30:$D$30,1,MATCH(Eingabe!$C$4,Tragwerk!$B$14:$D$14)) -> 84681 | E144: [mm²] | G144: DIN EN 1992-4
C145: ψs,Np | D145: =INDEX(Tragwerk!$B$31:$D$31,1,MATCH(Eingabe!$C$4,Tragwerk!$B$14:$D$14)) -> 1 | E145: [-] | G145: DIN EN 1992-4
C146: ψre,N | D146: =INDEX(Tragwerk!$B$32:$D$32,1,MATCH(Eingabe!$C$4,Tragwerk!$B$14:$D$14)) -> 0.985 | E146: [-] | G146: DIN EN 1992-4
C147: ψc | D147: =INDEX(Tragwerk!$B$38:$D$38,1,MATCH(Eingabe!$C$4,Tragwerk!$B$14:$D$14)) -> 1.04 | E147: [-] | G147: Erhöhungsfaktor lt. ETA
C148: γMp | D148: =Tragwerk!$B$40 -> 1.5 | E148: [-] | G148: DIN EN 1992-4
C149: NRd,p | D149: =INDEX(Tragwerk!B41:D41,1,MATCH(Eingabe!C4,Tragwerk!B14:D14)) -> 41.62266785 | E149: [kN] | G149: Bemessungswert des Widerstandes
C150: NEd,Mitte | D150: =Tragwerk!$B$62 -> 12.59089999 | E150: [kN] | G150: Bemessungswert der Einwirkung
C151: bN,p | D151: =D150/D149 -> 0.3025010321 | E151: [-] | G151: Ausnutzungsgrad
B153: Betonausbruch
C154: N0Rk,c | D154: =INDEX(Tragwerk!B43:D43,1,MATCH(Eingabe!$C$4,Tragwerk!$B$14:$D$14)) -> 40.29108419 | E154: [kN] | G154: DIN EN 1992-4
C155: A0c,N | D155: =INDEX(Tragwerk!B44:D44,1,MATCH(Eingabe!$C$4,Tragwerk!$B$14:$D$14)) -> 84681 | E155: [mm²] | G155: DIN EN 1992-4
C156: Ac,N | D156: =INDEX(Tragwerk!B45:D45,1,MATCH(Eingabe!$C$4,Tragwerk!$B$14:$D$14)) -> 84681 | E156: [mm²] | G156: DIN EN 1992-4
C157: ys,N | D157: =INDEX(Tragwerk!B46:D46,1,MATCH(Eingabe!$C$4,Tragwerk!$B$14:$D$14)) -> 1 | E157: [-] | G157: DIN EN 1992-4
C158: yre,N | D158: =INDEX(Tragwerk!B47:D47,1,MATCH(Eingabe!$C$4,Tragwerk!$B$14:$D$14)) -> 0.985 | E158: [-] | G158: DIN EN 1992-4
C159: yec,N | D159: =INDEX(Tragwerk!B48:D48,1,MATCH(Eingabe!$C$4,Tragwerk!$B$14:$D$14)) -> 1 | E159: [-] | G159: DIN EN 1992-4
C160: NRk,c | D160: =INDEX(Tragwerk!B50:D50,1,MATCH(Eingabe!$C$4,Tragwerk!$B$14:$D$14)) -> 39.68671793 | E160: [kN] | G160: DIN EN 1992-4
C161: γMc | D161: =Tragwerk!$B$51 -> 1.5 | E161: [-] | G161: DIN EN 1992-4
C162: NRd,c | D162: =Eingabe!D45 -> 26.45781195 | E162: [kN] | G162: Bemessungswert des Widerstandes
C163: NEd,Mitte | D163: =Tragwerk!$B$62 -> 12.59089999 | E163: [kN] | G163: Bemessungswert der Einwirkung
C164: bN,c | D164: =D163/D162 -> 0.4758859126 | E164: [-] | G164: Ausnutzungsgrad
A166: Querkraft-Einwirkung
B167: Stahlversagen mit/ohne Hebelarm
C168: MRk,s | D168: =IF(Eingabe!E80=0,"-",INDEX(Tragwerk!B67:D67,1,MATCH(Eingabe!$C$4,Tragwerk!$B$14:$D$14))) -> - | E168: [Nm] | G168: Charakt. Quertragfähigkeit lt. ETA
C169: γMs | D169: =Tragwerk!$B$68 -> 1.56 | E169: [-] | G169: Teilsicherheitsbeiwert lt. ETA
C170: VRd,s | D170: =INDEX(Tragwerk!B69:D69,1,MATCH(Eingabe!$C$4,Tragwerk!$B$14:$D$14)) -> 55 | E170: [kN] | G170: Bemessungswert Stahlwiderstand
C171: VEd,Mitte | D171: =Tragwerk!$B$70 -> 39.0145425 | E171: [kN] | G171: Bemessungswert der Einwirkung
C172: bV,s | D172: =D171/D170 -> 0.7093553182 | E172: [-] | G172: Ausnutzungsgrad
A173: Bauteil | D173: =D59 -> Kappenverankerung | I173: Seite | J173: =J59+2 -> 3
A174: Kapitel / Vorgang | D174: =D60 -> Mittelkappe | I174: Archiv-Nr. | J174: =J60 -> 1234
A175: Baumaßnahme | D175: =D1 -> x | I175: Bauwerksnummer (ASB)
A176: Straßenbauverwaltung | D176: =D2 -> y | I176: =I2 -> 12345
A177: Aufsteller | D177: =D3 -> z | I177: Datum | J177: =J3 -> 2024-06-10
B179: Betonausbruch auf der lastabgewandten Seite
C180: k8 | D180: =Tragwerk!$B$73 -> 2 | E180: [-] | G180: Faktor lt. ETA
C181: VRk,cp | D181: =INDEX(Tragwerk!B74:D74,1,MATCH(Eingabe!$C$4,Tragwerk!$B$14:$D$14)) -> 79.37343585 | E181: [kN] | G181: DIN EN 1992-4
C182: γMc | D182: =Tragwerk!$B$75 -> 1.5 | E182: [-] | G182: DIN EN 1992-4
C183: VRd,cp | D183: =INDEX(Tragwerk!B76:D76,1,MATCH(Eingabe!$C$4,Tragwerk!$B$14:$D$14)) -> 52.9156239 | E183: [kN] | G183: Bemessungswert des Widerstandes
C184: VEd,Mitte | D184: =Tragwerk!$B$93 -> 39.0145425 | E184: [kN] | G184: Bemessungswert der Einwirkung
C185: bV,cp | D185: =D184/D183 -> 0.7372972219 | E185: [-] | G185: Ausnutzungsgrad
B187: Betonkantenbruch
C188: α | D188: =INDEX(Tragwerk!B78:D78,1,MATCH(Eingabe!$C$4,Tragwerk!$B$14:$D$14)) -> 0.02680519574 | E188: [-] | G188: DIN EN 1992-4
C189: β | D189: =INDEX(Tragwerk!B79:D79,1,MATCH(Eingabe!$C$4,Tragwerk!$B$14:$D$14)) -> 0.043066467 | E189: [-] | G189: DIN EN 1992-4
C190: V0Rk,c | D190: =INDEX(Tragwerk!B80:D80,1,MATCH(Eingabe!$C$4,Tragwerk!$B$14:$D$14)) -> 609.4636447 | E190: [kN] | G190: DIN EN 1992-4
C191: A0c,V | D191: =INDEX(Tragwerk!B81:D81,1,MATCH(Eingabe!$C$4,Tragwerk!$B$14:$D$14)) -> 8201250 | E191: [mm²] | G191: DIN EN 1992-4
C192: Ac,V | D192: =INDEX(Tragwerk!B82:D82,1,MATCH(Eingabe!$C$4,Tragwerk!$B$14:$D$14)) -> 1012500 | E192: [mm²] | G192: DIN EN 1992-4
C193: ψh,V | D193: =INDEX(Tragwerk!B84:D84,1,MATCH(Eingabe!$C$4,Tragwerk!$B$14:$D$14)) -> 2.846049894 | E193: [-] | G193: DIN EN 1992-4
C194: ψre,V | D194: =Tragwerk!B87 -> 1.2 | E194: [-] | G194: DIN EN 1992-4
C195: VRk,c | D195: =INDEX(Tragwerk!B88:D88,1,MATCH(Eingabe!$C$4,Tragwerk!$B$14:$D$14)) -> 256.9724358 | E195: [kN] | G195: DIN EN 1992-4
C196: γMc | D196: =Tragwerk!B89 -> 1.5 | E196: [-] | G196: DIN EN 1992-4
C197: VRd,c | D197: =INDEX(Tragwerk!B90:D90,1,MATCH(Eingabe!$C$4,Tragwerk!$B$14:$D$14)) -> 171.3149572 | E197: [kN] | G197: Bemessungswert des Widerstandes
C198: VEd,Mitte | D198: =Tragwerk!B93 -> 39.0145425 | E198: [kN] | G198: Bemessungswert der Einwirkung
C199: bV,c | D199: =D198/D197 -> 0.2277357631 | E199: [-] | G199: Ausnutzungsgrad
A201: Kombinierter Ausnutzungsgrad Zugkraft- und Querkraft-Einwirkung
C203: bN+V,Stahl | D203: =INDEX(Tragwerk!B98:D98,1,MATCH(Eingabe!$C$4,Tragwerk!$B$14:$D$14)) -> 0.7093553182 | E203: [-] | G203: Ausnutzung Zug-/Querkraft-Einwirkung: Stahl
C204: bN+V,Beton | D204: =INDEX(Tragwerk!B99:D99,1,MATCH(Eingabe!$C$4,Tragwerk!$B$14:$D$14)) -> 0.9613751742 | E204: [-] | G204: Ausnutzung Zug-/Querkraft-Einwirkung: Beton
A208: Mittelbereich Kappe HPA-Reihe 1
A210: Zugkraft-Einwirkung
B211: Stahlversagen
C212: NRk,s | D212: =INDEX(Kappe!B17:D17,1,MATCH(Eingabe!$C$4,Kappe!$B$12:$D$12)) -> 171.5 | E212: [kN] | G212: Charakt. Zugtragfähigkeit lt. ETA
C213: γMs | D213: =Kappe!$B$18 -> 1.87 | E213: [-] | G213: Teilsicherheitsbeiwert lt. ETA
C214: NRd,s | D214: =INDEX(Kappe!B19:D19,1,MATCH(Eingabe!$C$4,Kappe!$B$12:$D$12)) -> 91.71122995 | E214: [kN] | G214: Bemessungswert des Widerstandes
C215: NEd,Mitte | D215: =Kappe!$B$53 -> 12.59089999 | E215: [kN] | G215: Bemessungswert der Einwirkung
C216: bN,s | D216: =D215/D214 -> 0.1372885305 | E216: [-] | G216: Ausnutzungsgrad
B218: Herausziehen
C219: AMutter | D219: =INDEX(Kappe!B21:D21,1,MATCH(Eingabe!$C$4,Kappe!$B$12:$D$12)) -> 393 | E219: [mm²] | G219: Kopfbolzenfläche
C220: yred,LWC | D220: =Eingabe!N3 -> 1 | E220: [-] | G220: Abminderung Leichtbeton
C221: NRk,p | D221: =INDEX(Kappe!B22:D22,1,MATCH(Eingabe!$C$4,Kappe!$B$12:$D$12)) -> 117.9 | E221: [kN] | G221: DIN EN 1992-4
C222: γMp | D222: =Kappe!B23 -> 1.5 | E222: [-] | G222: DIN EN 1992-4
C223: NRd,p | D223: =INDEX(Kappe!B24:D24,1,MATCH(Eingabe!$C$4,Kappe!$B$12:$D$12)) -> 78.6 | E223: [kN] | G223: Bemessungswert des Widerstandes
C224: NEd,Mitte | D224: =Kappe!$B$53 -> 12.59089999 | E224: [kN] | G224: Bemessungswert der Einwirkung
C225: bN,p | D225: =D224/D223 -> 0.1601895672 | E225: [-] | G225: Ausnutzungsgrad
A226: Bauteil | D226: =D59 -> Kappenverankerung | I226: Seite | J226: =J59+3 -> 4
A227: Kapitel / Vorgang | D227: =D60 -> Mittelkappe | I227: Archiv-Nr. | J227: =J60 -> 1234
A228: Baumaßnahme | D228: =D1 -> x | I228: Bauwerksnummer (ASB)
A229: Straßenbauverwaltung | D229: =D2 -> y | I229: =I2 -> 12345
A230: Aufsteller | D230: =D3 -> z | I230: Datum | J230: =J3 -> 2024-06-10
B231: Betonausbruch
C232: N0Rk,c | D232: =INDEX(Kappe!B27:D27,1,MATCH(Eingabe!$C$4,Kappe!$B$12:$D$12)) -> 55.44632857 | E232: [kN] | G232: DIN EN 1992-4
C233: A0c,N | D233: =INDEX(Kappe!B28:D28,1,MATCH(Eingabe!$C$4,Kappe!$B$12:$D$12)) -> 88209 | E233: [mm²] | G233: DIN EN 1992-4
C234: Ac,N | D234: =INDEX(Kappe!B29:D29,1,MATCH(Eingabe!$C$4,Kappe!$B$12:$D$12)) -> 88209 | E234: [mm²] | G234: DIN EN 1992-4 bzw. DAfStb Heft 615
C235: k | D235: =INDEX(Kappe!B26:D26,1,MATCH(Eingabe!$C$4,Kappe!$B$12:$D$12)) -> 8.9 | E235: [-] | G235: DIN EN 1992-4 bzw. DAfStb Heft 615
C236: ys,N | D236: =INDEX(Kappe!B30:D30,1,MATCH(Eingabe!$C$4,Kappe!$B$12:$D$12)) -> 1 | E236: [-] | G236: DIN EN 1992-4
C237: yre,N | D237: =INDEX(Kappe!B31:D31,1,MATCH(Eingabe!$C$4,Kappe!$B$12:$D$12)) -> 1 | E237: [-] | G237: DIN EN 1992-4
C238: yec,N | D238: =INDEX(Kappe!B32:D32,1,MATCH(Eingabe!$C$4,Kappe!$B$12:$D$12)) -> 1 | E238: [-] | G238: DIN EN 1992-4
C239: yucr,N | D239: =INDEX(Kappe!B33:D33,1,MATCH(Eingabe!$C$4,Kappe!$B$12:$D$12)) -> 1 | E239: [-] | G239: DIN EN 1992-4
C240: yred,LWC | D240: =Eingabe!N3 -> 1 | E240: [-] | G240: Abminderung Leichtbeton
C241: NRk,c | D241: =INDEX(Kappe!B34:D34,1,MATCH(Eingabe!$C$4,Kappe!$B$12:$D$12)) -> 55.44632857 | E241: [kN] | G241: DIN EN 1992-4
C242: γMc | D242: =Kappe!$B$35 -> 1.5 | E242: [-] | G242: DIN EN 1992-4
C243: NRd,c | D243: =INDEX(Kappe!B36:D36,1,MATCH(Eingabe!$C$4,Kappe!$B$12:$D$12)) -> 36.96421904 | E243: [kN] | G243: Bemessungswert des Widerstandes
C244: NEd,Mitte | D244: =Kappe!$B$53 -> 12.59089999 | E244: [kN] | G244: Bemessungswert der Einwirkung
C245: bN,c | D245: =D244/D243 -> 0.3406239956 | E245: [-] | G245: Ausnutzungsgrad
A247: Querkraft-Einwirkung
B248: Stahlversagen mit/ohne Hebelarm
C249: MRk,s | D249: =IF(Eingabe!E80=0,"-",INDEX(Kappe!B58:D58,1,MATCH(Eingabe!$C$4,Kappe!$B$12:$D$12))) -> - | E249: [Nm] | G249: Charakt. Quertragfähigkeit lt. ETA
C250: γMs | D250: =Kappe!$B$59 -> 1.56 | E250: [-] | G250: Teilsicherheitsbeiwert lt. ETA
C251: VRd,s | D251: =INDEX(Kappe!B60:D60,1,MATCH(Eingabe!$C$4,Kappe!$B$12:$D$12)) -> 55 | E251: [kN] | G251: Bemessungswert Stahlwiderstand
C252: VEd,Mitte | D252: =Kappe!$B$61 -> 39.0145425 | E252: [kN] | G252: Bemessungswert der Einwirkung
C253: bV,s | D253: =D252/D251 -> 0.7093553182 | E253: [-] | G253: Ausnutzungsgrad
B255: Betonausbruch auf der lastabgewandten Seite
... 395 more rows

Sheet Ausdruck_1-reihig (hidden)
A1: Baumaßnahme | D1: BAB | I1: Bauwerksnummer (ASB)
A2: Straßenbauverwaltung | D2: A | I2: 123456
A3: Aufsteller | D3: Ingenieurbüro | I3: Datum | J3: 2025-01-08
B4: Projekt- und Montage-Übersicht
B6: Geometrie
B24: Randbereich in Kappenlängsrichtung jeweils 6 m vor Übergangskonstruktion (ÜKO)
A29: Bauvorhaben | G29: Kappenverankerung
B31: =Eingabe!C3 -> Instandsetzung Kappe
A32: Tragwerk (Überbau)
B34: Betongüte | D34: =Eingabe!C6 -> C 30/37; gerissen
B35: Randabstand cT | D35: =Eingabe!C7 -> 1350 | E35: [mm]
B36: Drehpunktabstand d | D36: =Eingabe!C9 -> 10 | E36: [mm]
B37: Abstand längs sx,Mitte | D37: =Eingabe!J28 -> 660 | E37: [mm]
B38: Abstand längs sx,Randbereich | D38: =Eingabe!J32 -> 660 | E38: [mm]
B39: Bauteildicke Tragwerk hT | D39: =Eingabe!C8 -> 250 | E39: [mm]
B40: Verankerungslänge hef | D40: =Eingabe!AD83 -> 97 | E40: [mm]
B41: Bohrloch-Ø do | D41: =Eingabe!W37 -> 22 | E41: [mm]
A43: Kappe
B45: Betongüte | D45: =Eingabe!C13 -> C 40/50 (LP); gerissen
B46: Rohdichte ρ | D46: =Eingabe!C14&" [kg/m3]" -> 1800 [kg/m3]
B47: Kappenbreite b | D47: =LEFT(Eingabe!C12,FIND("m",Eingabe!C12)-1) -> ≤ 1,70 | E47: [m]
B48: Randabstand cK | D48: =Eingabe!C16 -> 200 | E48: [mm]
B49: Kopfbolzenart | C49: =Eingabe!C15 -> Sechskantmutter A4 M20
B50: Betondeckung Kopfb. cnom | D50: =IF(Eingabe!C19=0,"0",Eingabe!C19) -> 30 | E50: [mm]
B51: Kappenhöhe hK | D51: =Eingabe!C18 -> 145 | E51: [mm]
B52: Verankerungslänge hef,neu (Bundm.) | D52: =Eingabe!C21 -> 99 | E52: [mm]
B53: Gewindehöhe hK,Gew | D53: =SUM(Eingabe!C20,Eingabe!C21) -> 115 | E53: [mm] | G53: =Eingabe!Z112 -> HPA A4 M20x220 inkl. Mutter und Stauscheibe (2330222 / 2458870)
A54: Dichtungsschicht
B55: =LEFT(Eingabe!F4,FIND(",",Eingabe!F4)-1) -> Bitumen-Schweißbahn einlagig + Schutzlage | G55: zzgl. Injektionsmörtel HIT-RE 500 V4
B56: Dicke | D56: =IF(Eingabe!H80<1,"0",Eingabe!H80) -> 8 | E56: [mm] | G56: HIT-Menge: | H56: ="≈ "&Eingabe!AD93 -> ≈ 45 | I56: ml/HPA
B57: =Eingabe!B2 -> HILTI Design-Tool Kappenverankerung 12.3 | G57: =Eingabe!I2 -> Version gültig bis 31.12.2026
A58: Bauteil | D58: Mittelkappe | I58: Seite | J58: 1
A59: Kapitel / Vorgang | D59: Kappenverankerung | I59: Archiv-Nr. | J59: 1234
A60: Baumaßnahme | D60: =D1 -> BAB | I60: Bauwerksnummer (ASB)
A61: Straßenbauverwaltung | D61: =D2 -> A | I61: =I2 -> 123456
A62: Aufsteller | D62: =D3 -> Ingenieurbüro | I62: Datum | J62: =J3 -> 2025-01-08
A63: Einwirkungen
B65: Direkte Einwirkungen:
B66: =Eingabe!C24 -> Wind auf Lärmschutzwand
B67: Moment MEd,y,direkt : | G67: =IF(Eingabe!C25=0,"0,0",Eingabe!C25) -> 39.8 | H67: [kNm/m]
B68: Querkraft VEd,y, direkt : | G68: =Eingabe!C26 -> 87.8 | H68: [kN/m]
B69: Indirekte Einwirkungen: (Aus numerischen Berechnungen auf Basis Änderung konstanter Temperaturanteil aus Klima, konstantem Temperaturunterschied zwischen verschiedenen Bauteilen sowie Kriechen und Schwinden in Abhängigkeit von Kappenlänge, -querschnitt, Kappenausführung, Dübelanzahl und -steifigkeit; Prof. Dr. U. Freundt, Gutachten zur Befestigung von Brückenkappen mittels Hilti Kappenverankerung HPA (ehem. HCC), Weimar 30.7.2015)
B70: Mitte: VEd,y,indirekt : | G70: =IF(Eingabe!C29>0,Eingabe!C29,"0,0") -> 12 | H70: [kN/HPA]
B71: Rand: VEd,x/y,indirekt : | G71: =IF(Eingabe!C30>0,Eingabe!C30,"0,0") -> 12 | H71: [kN/HPA]
A73: Resultierende Einwirkungen / HPA
C74: Tragwerk | D74: Kappe
B75: Mittelbereich
C77: HPA-Reihe 1
B78: NEd | C78: =Eingabe!D41 -> 12.59089999 | D78: =Eingabe!F41 -> 12.59089999
C79: =Eingabe!D42 -> 0 | D79: =Eingabe!F42 -> 0
B80: VEd,y * | C80: =Eingabe!D43 -> 39.0145425 | D80: =Eingabe!F43 -> 39.0145425
B82: Randbereich (6m vor ÜKO)
C84: HPA-Reihe 1 [kN]
B85: NEd | C85: =Eingabe!D53 -> 12.59089999 | D85: =Eingabe!F53 -> 12.59089999
C86: =Eingabe!D54 -> 0 | D86: =Eingabe!F54 -> 0
B87: VEd,x/y * | C87: =Eingabe!D55 -> 40.81831117 | D87: =Eingabe!F55 -> 40.81831117
B88: * Der durch die Kappe erzeugte Reibwiderstand wurde berücksichtigt mit: | I88: FR [kN/m] = | J88: =Eingabe!O17 -> 5.93775
A89: Widerstände / HPA
B91: Mittelbereich
C92: Tragwerk | D92: Kappe
C93: HPA-Reihe 1
B94: NRd,s | C94: =D129 -> 91.71122995 | D94: =D207 -> 91.71122995
B95: NRd,c | C95: =Eingabe!D45 -> 26.45781195 | D95: =Eingabe!F45 -> 36.96421904
B96: NRd,p | C96: =Eingabe!D46 -> 41.62266785 | D96: =Eingabe!F46 -> 78.6
B97: VRd,s | C97: =Eingabe!D47 -> 55 | D97: =Eingabe!F47 -> 55
B98: VRd,c/cp | C98: =Eingabe!D48 -> 52.9156239 | D98: =Eingabe!F48 -> 73.92843809
B99: Ausnutzung | C99: =Eingabe!D49 -> 96.13751742 | D99: =Eingabe!F49 -> 70.93553182
B100: =Eingabe!F29 -> Verankerung Mittelbereich zulässig
B102: Randbereich (6m vor ÜKO)
C103: Tragwerk | D103: Kappe
C104: HPA-Reihe 1
B105: NRd,s | C105: =D274 -> 91.71122995 | D105: =D358 -> 91.71122995
B106: NRd,c | C106: =Eingabe!D57 -> 26.45781195 | D106: =Eingabe!F57 -> 36.96421904
B107: NRd,p | C107: =Eingabe!D58 -> 41.62266785 | D107: =Eingabe!F58 -> 78.6
B108: VRd,s | C108: =Eingabe!D59 -> 55 | D108: =Eingabe!F59 -> 55
B109: VRd,c/cp | C109: =Eingabe!D60 -> 52.9156239 | D109: =Eingabe!F60 -> 73.92843809
B110: Ausnutzung | C110: =Eingabe!D61 -> 100.5783337 | D110: =Eingabe!F61 -> 74.21511121
B111: =Eingabe!F33 -> Verankerung Randbereich zulässig
A113: Zugkraftübertragung Kappe → Tragwerk (Überbau): Kappenverankerung HPA
A114: Querkraftübertragung Kappe → Tragwerk (Überbau): Kappenverankerung HPA
A115: Bauteil | D115: =D58 -> Mittelkappe | I115: Seite | J115: =J58+1 -> 2
A116: Kapitel / Vorgang | D116: =D59 -> Kappenverankerung | I116: Archiv-Nr. | J116: =J59 -> 1234
A117: Baumaßnahme | D117: =D1 -> BAB | I117: Bauwerksnummer (ASB)
A118: Straßenbauverwaltung | D118: =D2 -> A | I118: =I2 -> 123456
A119: Aufsteller | D119: =D3 -> Ingenieurbüro | I119: Datum | J119: =J3 -> 2025-01-08
A121: Verwendbarkeits- und Anwendbarkeitsnachweise / Prüfungen / Gutachten
B122: 1. Dübelsystem HIT-RE 500 V4 nach ETA-20/0541 2. Hilti Betonverbinder HPA nach Z-21.8-2118 3. Dichtheitsprüfungen mit Berichten der Bautechnischen Versuchsanstalt an der HTL Rankweil 4. Dichtheitsprüfung unter dynamischer Querkraft-Einwirkung; Bericht der Bautechnischen Versuchsanstalt an der HTL Rankweil 5. Gutachten 20-083/1.1.1, Nachträgliche Verankerung von Brückenkappen und Lärmschutzwänden auf Brückenkappen mit Injektionssystem HIT RE 500 V4; Ingenieurbüro Schiessl Gehlen Sodeikat GmbH 6. "Befestigungen mit Kopfbolzen am Bauteilrand mit und ohne Rückhängebewehrung unter Querlasten senkrecht zum Rand"; Eligehausen, Asmus, Sharma; Der Prüfingenieur, Mai 2016
A123: Mittelbereich Tragwerk (Überbau)
A125: Zugkraft-Einwirkung
B126: Stahlversagen
C127: NRk,s | D127: =INDEX(Tragwerk!$B$23:$D$23,1,MATCH(Eingabe!$C$4,Tragwerk!$B$14:$D$14)) -> 171.5 | E127: [kN] | G127: Charakt. Zugtragfähigkeit lt. ETA
C128: γMs | D128: =Tragwerk!$B$24 -> 1.87 | E128: [-] | G128: Teilsicherheitsbeiwert lt. ETA
C129: NRd,s | D129: =INDEX(Tragwerk!B25:D25,1,MATCH(Eingabe!C4,Tragwerk!B14:D14)) -> 91.71122995 | E129: [kN] | G129: Bemessungswert des Widerstandes
C130: NEd,Mitte | D130: =Tragwerk!$B$62 -> 12.59089999 | E130: [kN] | G130: Bemessungswert der Einwirkung
C131: bN,s | D131: =D130/D129 -> 0.1372885305 | E131: [-] | G131: Ausnutzungsgrad
B133: Kombiniertes Versagen Herausziehen / Betonausbruch
C134: N0Rk,p | D134: =INDEX(Tragwerk!$B$27:$D$27,1,MATCH(Eingabe!$C$4,Tragwerk!$B$14:$D$14)) -> 60.94689748 | E134: [kN] | G134: DIN EN 1992-4
C135: scr,Np | D135: =INDEX(Tragwerk!$B$28:$D$28,1,MATCH(Eingabe!$C$4,Tragwerk!$B$14:$D$14)) -> 291 | E135: [mm] | G135: DIN EN 1992-4
C136: A0p,N | D136: =INDEX(Tragwerk!$B$29:$D$29,1,MATCH(Eingabe!$C$4,Tragwerk!$B$14:$D$14)) -> 84681 | E136: [mm²] | G136: DIN EN 1992-4
C137: Ap,N | D137: =INDEX(Tragwerk!$B$30:$D$30,1,MATCH(Eingabe!$C$4,Tragwerk!$B$14:$D$14)) -> 84681 | E137: [mm²] | G137: DIN EN 1992-4
C138: ψs,Np | D138: =INDEX(Tragwerk!$B$31:$D$31,1,MATCH(Eingabe!$C$4,Tragwerk!$B$14:$D$14)) -> 1 | E138: [-] | G138: DIN EN 1992-4
C139: ψre,N | D139: =INDEX(Tragwerk!$B$32:$D$32,1,MATCH(Eingabe!$C$4,Tragwerk!$B$14:$D$14)) -> 0.985 | E139: [-] | G139: DIN EN 1992-4
C140: ψc | D140: =INDEX(Tragwerk!$B$38:$D$38,1,MATCH(Eingabe!$C$4,Tragwerk!$B$14:$D$14)) -> 1.04 | E140: [-] | G140: Erhöhungsfaktor lt. ETA
C141: γMp | D141: =Tragwerk!$B$40 -> 1.5 | E141: [-] | G141: DIN EN 1992-4
C142: NRd,p | D142: =INDEX(Tragwerk!B41:D41,1,MATCH(Eingabe!C4,Tragwerk!B14:D14)) -> 41.62266785 | E142: [kN] | G142: Bemessungswert des Widerstandes
C143: NEd,Mitte | D143: =Tragwerk!$B$62 -> 12.59089999 | E143: [kN] | G143: Bemessungswert der Einwirkung
C144: bN,p | D144: =D143/D142 -> 0.3025010321 | E144: [-] | G144: Ausnutzungsgrad
B146: Betonausbruch
C147: N0Rk,c | D147: =INDEX(Tragwerk!B43:D43,1,MATCH(Eingabe!$C$4,Tragwerk!$B$14:$D$14)) -> 40.29108419 | E147: [kN] | G147: DIN EN 1992-4
C148: A0c,N | D148: =INDEX(Tragwerk!B44:D44,1,MATCH(Eingabe!$C$4,Tragwerk!$B$14:$D$14)) -> 84681 | E148: [mm²] | G148: DIN EN 1992-4
C149: Ac,N | D149: =INDEX(Tragwerk!B45:D45,1,MATCH(Eingabe!$C$4,Tragwerk!$B$14:$D$14)) -> 84681 | E149: [mm²] | G149: DIN EN 1992-4
C150: ys,N | D150: =INDEX(Tragwerk!B46:D46,1,MATCH(Eingabe!$C$4,Tragwerk!$B$14:$D$14)) -> 1 | E150: [-] | G150: DIN EN 1992-4
C151: yre,N | D151: =INDEX(Tragwerk!B47:D47,1,MATCH(Eingabe!$C$4,Tragwerk!$B$14:$D$14)) -> 0.985 | E151: [-] | G151: DIN EN 1992-4
C152: yec,N | D152: =INDEX(Tragwerk!B48:D48,1,MATCH(Eingabe!$C$4,Tragwerk!$B$14:$D$14)) -> 1 | E152: [-] | G152: DIN EN 1992-4
C153: NRk,c | D153: =INDEX(Tragwerk!B50:D50,1,MATCH(Eingabe!$C$4,Tragwerk!$B$14:$D$14)) -> 39.68671793 | E153: [kN] | G153: DIN EN 1992-4
C154: γMc | D154: =Tragwerk!$B$51 -> 1.5 | E154: [-] | G154: DIN EN 1992-4
C155: NRd,c | D155: =INDEX(Tragwerk!B52:D52,1,MATCH(Eingabe!$C$4,Tragwerk!$B$14:$D$14)) -> 26.45781195 | E155: [kN] | G155: Bemessungswert des Widerstandes
C156: NEd,Mitte | D156: =Tragwerk!$B$62 -> 12.59089999 | E156: [kN] | G156: Bemessungswert der Einwirkung
C157: bN,c | D157: =D156/D155 -> 0.4758859126 | E157: [-] | G157: Ausnutzungsgrad
A159: Querkraft-Einwirkung
B160: Stahlversagen mit/ohne Hebelarm
C161: MRk,s | D161: =IF(Eingabe!E80=0,"-",INDEX(Tragwerk!B67:D67,1,MATCH(Eingabe!$C$4,Tragwerk!$B$14:$D$14))) -> - | E161: [Nm] | G161: Charakt. Quertragfähigkeit lt. ETA
C162: γMs | D162: =Tragwerk!$B$68 -> 1.56 | E162: [-] | G162: Teilsicherheitsbeiwert lt. ETA
C163: VRd,s | D163: =INDEX(Tragwerk!B69:D69,1,MATCH(Eingabe!$C$4,Tragwerk!$B$14:$D$14)) -> 55 | E163: [kN] | G163: Bemessungswert Stahlwiderstand
C164: VEd,Mitte | D164: =Tragwerk!$B$70 -> 39.0145425 | E164: [kN] | G164: Bemessungswert der Einwirkung
C165: bV,s | D165: =D164/D163 -> 0.7093553182 | E165: [-] | G165: Ausnutzungsgrad
A166: Bauteil | D166: =D58 -> Mittelkappe | I166: Seite | J166: =J58+2 -> 3
A167: Kapitel / Vorgang | D167: =D59 -> Kappenverankerung | I167: Archiv-Nr. | J167: =J59 -> 1234
A168: Baumaßnahme | D168: =D1 -> BAB | I168: Bauwerksnummer (ASB)
A169: Straßenbauverwaltung | D169: =D2 -> A | I169: =I2 -> 123456
A170: Aufsteller | D170: =D3 -> Ingenieurbüro | I170: Datum | J170: =J3 -> 2025-01-08
B172: Betonausbruch auf der lastabgewandten Seite
C173: k8 | D173: =Tragwerk!$B$73 -> 2 | E173: [-] | G173: Faktor lt. ETA
C174: VRk,cp | D174: =INDEX(Tragwerk!B74:D74,1,MATCH(Eingabe!$C$4,Tragwerk!$B$14:$D$14)) -> 79.37343585 | E174: [kN] | G174: DIN EN 1992-4
C175: γMc | D175: =Tragwerk!$B$75 -> 1.5 | E175: [-] | G175: DIN EN 1992-4
C176: VRd,cp | D176: =INDEX(Tragwerk!B76:D76,1,MATCH(Eingabe!$C$4,Tragwerk!$B$14:$D$14)) -> 52.9156239 | E176: [kN] | G176: Bemessungswert des Widerstandes
C177: VEd,Mitte | D177: =Tragwerk!$B$93 -> 39.0145425 | E177: [kN] | G177: Bemessungswert der Einwirkung
C178: bV,cp | D178: =D177/D176 -> 0.7372972219 | E178: [-] | G178: Ausnutzungsgrad
B180: Betonkantenbruch
C181: α | D181: =INDEX(Tragwerk!B78:D78,1,MATCH(Eingabe!$C$4,Tragwerk!$B$14:$D$14)) -> 0.02680519574 | E181: [-] | G181: DIN EN 1992-4
C182: β | D182: =INDEX(Tragwerk!B79:D79,1,MATCH(Eingabe!$C$4,Tragwerk!$B$14:$D$14)) -> 0.043066467 | E182: [-] | G182: DIN EN 1992-4
C183: V0Rk,c | D183: =INDEX(Tragwerk!B80:D80,1,MATCH(Eingabe!$C$4,Tragwerk!$B$14:$D$14)) -> 609.4636447 | E183: [kN] | G183: DIN EN 1992-4
C184: A0c,V | D184: =INDEX(Tragwerk!B81:D81,1,MATCH(Eingabe!$C$4,Tragwerk!$B$14:$D$14)) -> 8201250 | E184: [mm²] | G184: DIN EN 1992-4
C185: Ac,V | D185: =INDEX(Tragwerk!B82:D82,1,MATCH(Eingabe!$C$4,Tragwerk!$B$14:$D$14)) -> 1012500 | E185: [mm²] | G185: DIN EN 1992-4
C186: ψh,V | D186: =INDEX(Tragwerk!B84:D84,1,MATCH(Eingabe!$C$4,Tragwerk!$B$14:$D$14)) -> 2.846049894 | E186: [-] | G186: DIN EN 1992-4
C187: ψre,V | D187: =Tragwerk!B87 -> 1.2 | E187: [-] | G187: DIN EN 1992-4
C188: VRk,c | D188: =INDEX(Tragwerk!B88:D88,1,MATCH(Eingabe!$C$4,Tragwerk!$B$14:$D$14)) -> 256.9724358 | E188: [kN] | G188: DIN EN 1992-4
C189: γMc | D189: =Tragwerk!B89 -> 1.5 | E189: [-] | G189: DIN EN 1992-4
C190: VRd,c | D190: =INDEX(Tragwerk!B90:D90,1,MATCH(Eingabe!$C$4,Tragwerk!$B$14:$D$14)) -> 171.3149572 | E190: [kN] | G190: Bemessungswert des Widerstandes
C191: VEd,Mitte | D191: =Tragwerk!B93 -> 39.0145425 | E191: [kN] | G191: Bemessungswert der Einwirkung
C192: bV,c | D192: =D191/D190 -> 0.2277357631 | E192: [-] | G192: Ausnutzungsgrad
A194: Kombinierter Ausnutzungsgrad Zugkraft- und Querkraft-Einwirkung Mittelbereich
C196: bN+V,Stahl | D196: =INDEX(Tragwerk!B98:D98,1,MATCH(Eingabe!$C$4,Tragwerk!$B$14:$D$14)) -> 0.7093553182 | E196: [-] | G196: Ausnutzung Zug-/Querkraft-Einwirkung: Stahl
C197: bN+V,Beton | D197: =INDEX(Tragwerk!B99:D99,1,MATCH(Eingabe!$C$4,Tragwerk!$B$14:$D$14)) -> 0.9613751742 | E197: [-] | G197: Ausnutzung Zug-/Querkraft-Einwirkung: Beton
A201: Mittelbereich Kappe
A203: Zugkraft-Einwirkung
B204: Stahlversagen
C205: NRk,s | D205: =INDEX(Kappe!B17:D17,1,MATCH(Eingabe!$C$4,Kappe!$B$12:$D$12)) -> 171.5 | E205: [kN] | G205: Charakt. Zugtragfähigkeit lt. ETA
C206: γMs | D206: =Kappe!$B$18 -> 1.87 | E206: [-] | G206: Teilsicherheitsbeiwert lt. ETA
C207: NRd,s | D207: =INDEX(Kappe!B19:D19,1,MATCH(Eingabe!$C$4,Kappe!$B$12:$D$12)) -> 91.71122995 | E207: [kN] | G207: Bemessungswert des Widerstandes
C208: NEd,Mitte | D208: =Kappe!$B$53 -> 12.59089999 | E208: [kN] | G208: Bemessungswert der Einwirkung
C209: bN,s | D209: =D208/D207 -> 0.1372885305 | E209: [-] | G209: Ausnutzungsgrad
B211: Herausziehen
C212: AMutter | D212: =INDEX(Kappe!B21:D21,1,MATCH(Eingabe!$C$4,Kappe!$B$12:$D$12)) -> 393 | E212: [mm²] | G212: Kopfbolzenfläche
C213: yred,LWC | D213: =Eingabe!N3 -> 1 | E213: [-] | G213: Abminderung Leichtbeton
C214: NRk,p | D214: =INDEX(Kappe!B22:D22,1,MATCH(Eingabe!$C$4,Kappe!$B$12:$D$12)) -> 117.9 | E214: [kN] | G214: DIN EN 1992-4
C215: γMp | D215: =Kappe!B23 -> 1.5 | E215: [-] | G215: DIN EN 1992-4
C216: NRd,p | D216: =INDEX(Kappe!B24:D24,1,MATCH(Eingabe!$C$4,Kappe!$B$12:$D$12)) -> 78.6 | E216: [kN] | G216: Bemessungswert des Widerstandes
C217: NEd,Mitte | D217: =Kappe!$B$53 -> 12.59089999 | E217: [kN] | G217: Bemessungswert der Einwirkung
C218: bN,p | D218: =D217/D216 -> 0.1601895672 | E218: [-] | G218: Ausnutzungsgrad
A219: Bauteil | D219: =D58 -> Mittelkappe | I219: Seite | J219: =J58+3 -> 4
A220: Kapitel / Vorgang | D220: =D59 -> Kappenverankerung | I220: Archiv-Nr. | J220: =J59 -> 1234
A221: Baumaßnahme | D221: =D1 -> BAB | I221: Bauwerksnummer (ASB)
A222: Straßenbauverwaltung | D222: =D2 -> A | I222: =I2 -> 123456
A223: Aufsteller | D223: =D3 -> Ingenieurbüro | I223: Datum | J223: =J3 -> 2025-01-08
B225: Betonausbruch
C226: N0Rk,c | D226: =INDEX(Kappe!B27:D27,1,MATCH(Eingabe!$C$4,Kappe!$B$12:$D$12)) -> 55.44632857 | E226: [kN] | G226: DIN EN 1992-4
C227: A0c,N | D227: =INDEX(Kappe!B28:D28,1,MATCH(Eingabe!$C$4,Kappe!$B$12:$D$12)) -> 88209 | E227: [mm²] | G227: DIN EN 1992-4
C228: Ac,N | D228: =INDEX(Kappe!B29:D29,1,MATCH(Eingabe!$C$4,Kappe!$B$12:$D$12)) -> 88209 | E228: [mm²] | G228: DIN EN 1992-4 bzw. DAfStb Heft 615
C229: k | D229: =INDEX(Kappe!B26:D26,1,MATCH(Eingabe!$C$4,Kappe!$B$12:$D$12)) -> 8.9 | E229: [-] | G229: DIN EN 1992-4 bzw. DAfStb Heft 615
C230: ys,N | D230: =INDEX(Kappe!B30:D30,1,MATCH(Eingabe!$C$4,Kappe!$B$12:$D$12)) -> 1 | E230: [-] | G230: DIN EN 1992-4
C231: yre,N | D231: =INDEX(Kappe!B31:D31,1,MATCH(Eingabe!$C$4,Kappe!$B$12:$D$12)) -> 1 | E231: [-] | G231: DIN EN 1992-4
C232: yec,N | D232: =INDEX(Kappe!B32:D32,1,MATCH(Eingabe!$C$4,Kappe!$B$12:$D$12)) -> 1 | E232: [-] | G232: DIN EN 1992-4
C233: yucr,N | D233: =INDEX(Kappe!B33:D33,1,MATCH(Eingabe!$C$4,Kappe!$B$12:$D$12)) -> 1 | E233: [-] | G233: DIN EN 1992-4
C234: yred,LWC | D234: =Eingabe!N3 -> 1 | E234: [-] | G234: Abminderung Leichtbeton
C235: NRk,c | D235: =INDEX(Kappe!B34:D34,1,MATCH(Eingabe!$C$4,Kappe!$B$12:$D$12)) -> 55.44632857 | E235: [kN] | G235: DIN EN 1992-4
C236: γMc | D236: =Kappe!$B$35 -> 1.5 | E236: [-] | G236: DIN EN 1992-4
C237: NRd,c | D237: =INDEX(Kappe!B36:D36,1,MATCH(Eingabe!$C$4,Kappe!$B$12:$D$12)) -> 36.96421904 | E237: [kN] | G237: Bemessungswert des Widerstandes
C238: NEd,Mitte | D238: =Kappe!$B$53 -> 12.59089999 | E238: [kN] | G238: Bemessungswert der Einwirkung
C239: bN,c | D239: =D238/D237 -> 0.3406239956 | E239: [-] | G239: Ausnutzungsgrad
A241: Querkraft-Einwirkung
B242: Stahlversagen mit/ohne Hebelarm
C243: MRk,s | D243: =IF(Eingabe!E80=0,"-",INDEX(Kappe!B58:D58,1,MATCH(Eingabe!$C$4,Kappe!$B$12:$D$12))) -> - | E243: [Nm] | G243: Charakt. Quertragfähigkeit lt. ETA
C244: γMs | D244: =Kappe!$B$59 -> 1.56 | E244: [-] | G244: Teilsicherheitsbeiwert lt. ETA
C245: VRd,s | D245: =INDEX(Kappe!B60:D60,1,MATCH(Eingabe!$C$4,Kappe!$B$12:$D$12)) -> 55 | E245: [kN] | G245: Bemessungswert Stahlwiderstand
C246: VEd,Mitte | D246: =Kappe!$B$61 -> 39.0145425 | E246: [kN] | G246: Bemessungswert der Einwirkung
C247: bV,s | D247: =D246/D245 -> 0.7093553182 | E247: [-] | G247: Ausnutzungsgrad
B249: Betonausbruch auf der lastabgewandten Seite
C250: k8 | D250: =Kappe!$B$64 -> 2 | E250: [-] | G250: Z-21.8-2118
C251: VRk,cp | D251: =INDEX(Kappe!B65:D65,1,MATCH(Eingabe!$C$4,Kappe!$B$12:$D$12)) -> 110.8926571 | E251: [kN] | G251: DIN EN 1992-4
... 141 more rows

Sheet Ausdruck_2-reihig+Bew.,Schw. (hidden)
A1: Baumaßnahme | D1: Brücke über die | I1: Bauwerksnummer (ASB)
A2: Straßenbauverwaltung | D2: XY | I2: 4948579
A3: Aufsteller | D3: Ingenieurbüro | I3: Datum | J3: 2022-12-02
A5: Projekt- und Montageübersicht
B7: Geometrie
B26: Randbereich in Kappenlängsrichtung jeweils 6 m vor Übergangskonstruktion (ÜKO)
A30: Bauvorhaben | G30: Kappenverankerung
B32: =Eingabe!C3 -> Instandsetzung Kappe
A33: Tragwerk (Überbau)
B35: Betongüte | D35: =Eingabe!C6 -> C 30/37; gerissen
B36: Randabstand cT | D36: =Eingabe!C7 -> 1350 | E36: [mm]
B37: Drehpunktabstand d | D37: =Eingabe!C9 -> 10 | E37: [mm]
B38: Abstand längs sx,Mittelbereich | D38: =Eingabe!J28 -> 660 | E38: =Eingabe!D10 -> [mm]
B39: Abstand längs sx,Randbereich | D39: =Eingabe!J32 -> 660 | E39: [mm]
B40: Reihenabstand s1 | D40: =Eingabe!C17 -> 340 | E40: [mm]
B41: Bauteildicke Tragwerk hT | D41: =Eingabe!C8 -> 250 | E41: [mm]
B42: Verankerungslänge hef | D42: =Eingabe!AD83 -> 97 | E42: [mm]
B43: Bohrloch-Ø do | D43: =Eingabe!W37 -> 22 | E43: [mm]
A45: Kappe
B47: Betongüte | D47: =Eingabe!C13 -> C 40/50 (LP); gerissen
B48: Rohdichte ρ | D48: =Eingabe!C14&" [kg/m3]" -> 1800 [kg/m3]
B49: Kappenbreite b | D49: =LEFT(Eingabe!C12,FIND("m",Eingabe!C12)-1) -> ≤ 1,70 | E49: [m]
B50: Randabstand cK | D50: =Eingabe!C16 -> 200 | E50: [mm]
B51: Kopfbolzenart | C51: =Eingabe!C15 -> Sechskantmutter A4 M20
B52: Betondeckung Kopfb. cnom | D52: =IF(Eingabe!C19=0,"0",Eingabe!C19) -> 30 | E52: [mm]
B53: Kappenhöhe hK | D53: =Eingabe!C18 -> 145 | E53: [mm]
B54: Verankerungslänge hef,neu (Bundm.) | D54: =Eingabe!C21 -> 99 | E54: =Eingabe!D16 -> [mm]
B55: Gewindehöhe hK,Gew | D55: =SUM(Eingabe!C21+Eingabe!C20) -> 115 | E55: =Eingabe!D17 -> [mm] | G55: =Eingabe!Z112 -> HPA A4 M20x220 inkl. Mutter und Stauscheibe (2330222 / 2458870)
A56: Dichtungsschicht
B57: =LEFT(Eingabe!F4,FIND(",",Eingabe!F4)-1) -> Bitumen-Schweißbahn einlagig + Schutzlage | G57: zzgl. Injektionsmörtel HIT-RE 500 V4
B58: Dicke | D58: =IF(Eingabe!H80<1,"0",Eingabe!H80) -> 8 | E58: =Eingabe!D21 -> [mm] | G58: HIT-Menge: | H58: ="≈ "&Eingabe!AD93 -> ≈ 45 | I58: ml/HPA
B59: =Eingabe!B2 -> HILTI Design-Tool Kappenverankerung 12.3 | G59: =Eingabe!I2 -> Version gültig bis 31.12.2026
A60: Bauteil | D60: Mittelkappe Nord | I60: Seite | J60: 1
A61: Kapitel / Vorgang | D61: Kappenverankerung | I61: Archiv-Nr. | J61: 1234
A62: Baumaßnahme | D62: =D1 -> Brücke über die | I62: Bauwerksnummer (ASB)
A63: Straßenbauverwaltung | D63: =D2 -> XY | I63: =I2 -> 4948579
A64: Aufsteller | D64: =D3 -> Ingenieurbüro | I64: Datum | J64: =J3 -> 2022-12-02
A66: Einwirkungen
B68: Direkte Einwirkungen:
B69: =Eingabe!C24 -> Wind auf Lärmschutzwand
B70: Moment MEd,y,direkt : | G70: =IF(Eingabe!C25=0,"0,0",Eingabe!C25) -> 39.8 | H70: [kNm/m]
B71: Querkraft VEd,y, direkt : | G71: =Eingabe!C26 -> 87.8 | H71: [kN/m]
B72: Indirekte Einwirkungen: (Aus numerischen Berechnungen auf Basis Änderung konstanter Temperaturanteil aus Klima, konstantem Temperaturunterschied zwischen verschiedenen Bauteilen sowie Kriechen und Schwinden in Abhängigkeit von Kappenlänge, -querschnitt, Kappenausführung, Dübelanzahl und -steifigkeit; Prof. Dr. U. Freundt, Gutachten zur Befestigung von Brückenkappen mittels Hilti Kappenverankerung HPA (ehem. HCC), Weimar 30.7.2015)
B73: Mitte: VEd,y,indirekt : | G73: =IF(Eingabe!C29>0,Eingabe!C29,"0,0") -> 12 | H73: [kN/HPA]
B74: Rand: VEd,x/y,indirekt : | G74: =IF(Eingabe!C30>0,Eingabe!C30,"0,0") -> 12 | H74: [kN/HPA]
A76: Resultierende Einwirkungen / HPA
C77: Tragwerk | D77: Kappe | G77: Tragwerk | H77: Kappe
C78: Mittelbereich
C80: HPA-Reihe 1 | G80: HPA-Reihe 2
B81: NEd | C81: =Eingabe!D41 -> 12.59089999 | D81: =Eingabe!F41 -> 12.59089999 | G81: =Eingabe!H41 -> 9.396194019 | H81: =Eingabe!J41 -> 9.396194019
C82: =Eingabe!D42 -> 0 | D82: =Eingabe!F42 -> 0 | G82: =Eingabe!H42 -> 0 | H82: =Eingabe!J42 -> 0
B83: VEd,y * | C83: =Eingabe!D43 -> 39.0145425 | D83: =Eingabe!F43 -> 39.0145425 | G83: =Eingabe!H43 -> 39.0145425 | H83: =Eingabe!J43 -> 39.0145425
C85: Randbereich (6m vor ÜKO)
C87: HPA-Reihe 1 [kN] | G87: HPA-Reihe 2 [kN]
B88: NEd | C88: =Eingabe!D53 -> 12.59089999 | D88: =Eingabe!F53 -> 12.59089999 | G88: =Eingabe!H53 -> 9.396194019 | H88: =Eingabe!J53 -> 9.396194019
C89: =Eingabe!D54 -> 0 | D89: =Eingabe!F54 -> 0 | G89: =Eingabe!H54 -> 0 | H89: =Eingabe!J54 -> 0
B90: VEd,x/y * | C90: =Eingabe!D55 -> 40.81831117 | D90: =Eingabe!F55 -> 40.81831117 | G90: =Eingabe!H55 -> 40.81831117 | H90: =Eingabe!J55 -> 40.81831117
B91: * Der durch die Kappe erzeugte Reibwiderstand wurde berücksichtigt mit: | I91: FR [kN/m] = | J91: =Eingabe!O17 -> 5.93775
A92: Widerstände / HPA
C94: Mittelbereich
C95: Tragwerk | D95: Kappe | G95: Tragwerk | H95: Kappe
C96: HPA-Reihe 1 | G96: HPA-Reihe 2
B97: NRd,s | C97: =D132 -> 91.71122995 | D97: =D210 -> 91.71122995 | G97: =D273 -> 91.71122995 | H97: =D356 -> 91.71122995
B98: NRd,c | C98: =Eingabe!D45 -> 26.45781195 | D98: =Eingabe!F45 -> 36.96421904 | G98: =Eingabe!H45 -> 26.45781195 | H98: =Eingabe!J45 -> 36.96421904
B99: NRd,p | C99: =Eingabe!D46 -> 41.62266785 | D99: =Eingabe!F46 -> 78.6 | G99: =Eingabe!H46 -> 41.62266785 | H99: =Eingabe!J46 -> 78.6
B100: VRd,s | C100: =Eingabe!D47 -> 55 | D100: =Eingabe!F47 -> 55 | G100: =Eingabe!H47 -> 55 | H100: =Eingabe!J47 -> 55
B101: VRd,c/cp | C101: =Eingabe!D48 -> 52.9156239 | D101: =Eingabe!F48 -> 73.92843809 | G101: =Eingabe!H48 -> 52.9156239 | H101: =Eingabe!J48 -> 73.92843809
B102: Ausnutzung | C102: =Eingabe!D49 -> 96.13751742 | D102: =Eingabe!F49 -> 70.93553182 | G102: =Eingabe!H49 -> 84.47273998 | H102: =Eingabe!J49 -> 70.93553182
C103: =Eingabe!F29 -> Verankerung Mittelbereich zulässig
C105: Randbereich (6m vor ÜKO)
C106: Tragwerk | D106: Kappe | G106: Tragwerk | H106: Kappe
C107: HPA-Reihe 1 | G107: HPA-Reihe 2
B108: NRd,s | C108: =D419 -> 91.71122995 | D108: =D501 -> 91.71122995 | G108: =D563 -> 91.71122995 | H108: =D563 -> 91.71122995
B109: NRd,c | C109: =Eingabe!D57 -> 26.45781195 | D109: =Eingabe!F57 -> 36.96421904 | G109: =Eingabe!H57 -> 26.45781195 | H109: =Eingabe!J57 -> 36.96421904
B110: NRd,p | C110: =Eingabe!D58 -> 41.62266785 | D110: =Eingabe!F58 -> 78.6 | G110: =Eingabe!H58 -> 41.62266785 | H110: =Eingabe!J58 -> 78.6
B111: VRd,s | C111: =Eingabe!D59 -> 55 | D111: =Eingabe!F59 -> 55 | G111: =Eingabe!H59 -> 55 | H111: =Eingabe!J59 -> 55
B112: VRd,c/cp | C112: =Eingabe!D60 -> 52.9156239 | D112: =Eingabe!F60 -> 73.92843809 | G112: =Eingabe!H60 -> 52.9156239 | H112: =Eingabe!J60 -> 73.92843809
B113: Ausnutzung | C113: =Eingabe!D61 -> 100.5783337 | D113: =Eingabe!F61 -> 74.21511121 | G113: =Eingabe!H61 -> 88.91355625 | H113: =Eingabe!J61 -> 74.21511121
C114: =Eingabe!F33 -> Verankerung Randbereich zulässig
A116: Zugkraftübertragung Kappe → Tragwerk (Überbau): Kappenverankerung HPA
A117: =" Querkraftübertragung Kappe → Tragwerk (Überbau): "&(Eingabe!C33) -> Querkraftübertragung Kappe → Tragwerk (Überbau): Kappenverankerung HPA
A118: Bauteil | D118: =D60 -> Mittelkappe Nord | I118: Seite | J118: =J60+1 -> 2
A119: Kapitel / Vorgang | D119: =D61 -> Kappenverankerung | I119: Archiv-Nr. | J119: =J61 -> 1234
A120: Baumaßnahme | D120: =D1 -> Brücke über die | I120: Bauwerksnummer (ASB)
A121: Straßenbauverwaltung | D121: =D2 -> XY | I121: =I2 -> 4948579
A122: Aufsteller | D122: =D3 -> Ingenieurbüro | I122: Datum | J122: =J3 -> 2022-12-02
A124: Verwendbarkeits- und Anwendbarkeitsnachweise / Prüfungen / Gutachten
B125: 1. Dübelsystem HIT-RE 500 V4 nach ETA-20/0541 2. Hilti Betonverbinder HPA nach Z-21.8-2118 3. Dichtheitsprüfungen mit Berichten der Bautechnischen Versuchsanstalt an der HTL Rankweil 4. Dichtheitsprüfung unter dynamischer Querkraft-Einwirkung; Bericht der Bautechnischen Versuchsanstalt an der HTL Rankweil 5. Gutachten 20-083/1.1.1, Nachträgliche Verankerung von Brückenkappen und Lärmschutzwänden auf Brückenkappen mit Injektionssystem HIT RE 500 V4; Ingenieurbüro Schiessl Gehlen Sodeikat GmbH
A126: Mittelbereich Tragwerk (Überbau) HPA-Reihe 1
A128: Zugkraft-Einwirkung
B129: Stahlversagen
C130: NRk,s | D130: =INDEX(Tragwerk!$B$23:$D$23,1,MATCH(Eingabe!$C$4,Tragwerk!$B$14:$D$14)) -> 171.5 | E130: [kN] | G130: Charakt. Zugtragfähigkeit lt. ETA
C131: γMs | D131: =Tragwerk!$B$24 -> 1.87 | E131: [-] | G131: Teilsicherheitsbeiwert lt. ETA
C132: NRd,s | D132: =INDEX(Tragwerk!B25:D25,1,MATCH(Eingabe!C4,Tragwerk!B14:D14)) -> 91.71122995 | E132: [kN] | G132: Bemessungswert des Widerstandes
C133: NEd,Mitte | D133: =Tragwerk!$B$62 -> 12.59089999 | E133: [kN] | G133: Bemessungswert der Einwirkung
C134: bN,s | D134: =D133/D132 -> 0.1372885305 | E134: [-] | G134: Ausnutzungsgrad
B136: Kombiniertes Versagen Herausziehen / Betonausbruch
C137: N0Rk,p | D137: =INDEX(Tragwerk!$B$27:$D$27,1,MATCH(Eingabe!$C$4,Tragwerk!$B$14:$D$14)) -> 60.94689748 | E137: [kN] | G137: DIN EN 1992-4
C138: scr,Np | D138: =INDEX(Tragwerk!$B$28:$D$28,1,MATCH(Eingabe!$C$4,Tragwerk!$B$14:$D$14)) -> 291 | E138: [mm] | G138: DIN EN 1992-4
C139: A0p,N | D139: =INDEX(Tragwerk!$B$29:$D$29,1,MATCH(Eingabe!$C$4,Tragwerk!$B$14:$D$14)) -> 84681 | E139: [mm²] | G139: DIN EN 1992-4
C140: Ap,N | D140: =INDEX(Tragwerk!$B$30:$D$30,1,MATCH(Eingabe!$C$4,Tragwerk!$B$14:$D$14)) -> 84681 | E140: [mm²] | G140: DIN EN 1992-4
C141: ψs,Np | D141: =INDEX(Tragwerk!$B$31:$D$31,1,MATCH(Eingabe!$C$4,Tragwerk!$B$14:$D$14)) -> 1 | E141: [-] | G141: DIN EN 1992-4
C142: ψre,N | D142: =INDEX(Tragwerk!$B$32:$D$32,1,MATCH(Eingabe!$C$4,Tragwerk!$B$14:$D$14)) -> 0.985 | E142: [-] | G142: DIN EN 1992-4
C143: ψc | D143: =INDEX(Tragwerk!$B$38:$D$38,1,MATCH(Eingabe!$C$4,Tragwerk!$B$14:$D$14)) -> 1.04 | E143: [-] | G143: Erhöhungsfaktor lt. ETA
C144: γMp | D144: =Tragwerk!$B$40 -> 1.5 | E144: [-] | G144: DIN EN 1992-4
C145: NRd,p | D145: =INDEX(Tragwerk!B41:D41,1,MATCH(Eingabe!C4,Tragwerk!B14:D14)) -> 41.62266785 | E145: [kN] | G145: Bemessungswert des Widerstandes
C146: NEd,Mitte | D146: =Tragwerk!$B$62 -> 12.59089999 | E146: [kN] | G146: Bemessungswert der Einwirkung
C147: bN,p | D147: =D146/D145 -> 0.3025010321 | E147: [-] | G147: Ausnutzungsgrad
B149: Betonausbruch
C150: N0Rk,c | D150: =INDEX(Tragwerk!B43:D43,1,MATCH(Eingabe!$C$4,Tragwerk!$B$14:$D$14)) -> 40.29108419 | E150: [kN] | G150: DIN EN 1992-4
C151: A0c,N | D151: =INDEX(Tragwerk!B44:D44,1,MATCH(Eingabe!$C$4,Tragwerk!$B$14:$D$14)) -> 84681 | E151: [mm²] | G151: DIN EN 1992-4
C152: Ac,N | D152: =INDEX(Tragwerk!B45:D45,1,MATCH(Eingabe!$C$4,Tragwerk!$B$14:$D$14)) -> 84681 | E152: [mm²] | G152: DIN EN 1992-4
C153: ys,N | D153: =INDEX(Tragwerk!B46:D46,1,MATCH(Eingabe!$C$4,Tragwerk!$B$14:$D$14)) -> 1 | E153: [-] | G153: DIN EN 1992-4
C154: yre,N | D154: =INDEX(Tragwerk!B47:D47,1,MATCH(Eingabe!$C$4,Tragwerk!$B$14:$D$14)) -> 0.985 | E154: [-] | G154: DIN EN 1992-4
C155: yec,N | D155: =INDEX(Tragwerk!B48:D48,1,MATCH(Eingabe!$C$4,Tragwerk!$B$14:$D$14)) -> 1 | E155: [-] | G155: DIN EN 1992-4
C156: NRk,c | D156: =INDEX(Tragwerk!B50:D50,1,MATCH(Eingabe!$C$4,Tragwerk!$B$14:$D$14)) -> 39.68671793 | E156: [kN] | G156: DIN EN 1992-4
C157: γMc | D157: =Tragwerk!$B$51 -> 1.5 | E157: [-] | G157: DIN EN 1992-4
C158: NRd,c | D158: =INDEX(Tragwerk!B52:D52,1,MATCH(Eingabe!$C$4,Tragwerk!$B$14:$D$14)) -> 26.45781195 | E158: [kN] | G158: Bemessungswert des Widerstandes
C159: NEd,Mitte | D159: =Tragwerk!$B$62 -> 12.59089999 | E159: [kN] | G159: Bemessungswert der Einwirkung
C160: bN,c | D160: =D159/D158 -> 0.4758859126 | E160: [-] | G160: Ausnutzungsgrad
A162: Querkraft-Einwirkung
B163: Stahlversagen mit/ohne Hebelarm
C164: MRk,s | D164: =IF(Eingabe!E80=0,"-",INDEX(Tragwerk!B67:D67,1,MATCH(Eingabe!$C$4,Tragwerk!$B$14:$D$14))) -> - | E164: [Nm] | G164: Charakt. Quertragfähigkeit lt. ETA
C165: γMs | D165: =Tragwerk!$B$68 -> 1.56 | E165: [-] | G165: Teilsicherheitsbeiwert lt. ETA
C166: VRd,s | D166: =INDEX(Tragwerk!B69:D69,1,MATCH(Eingabe!$C$4,Tragwerk!$B$14:$D$14)) -> 55 | E166: [kN] | G166: Bemessungswert Stahlwiderstand
C167: VEd,Mitte | D167: =Tragwerk!$B$70 -> 39.0145425 | E167: [kN] | G167: Bemessungswert der Einwirkung
C168: bV,s | D168: =D167/D166 -> 0.7093553182 | E168: [-] | G168: Ausnutzungsgrad
A169: Bauteil | D169: =D60 -> Mittelkappe Nord | I169: Seite | J169: =J60+2 -> 3
A170: Kapitel / Vorgang | D170: =D61 -> Kappenverankerung | I170: Archiv-Nr. | J170: =J61 -> 1234
A171: Baumaßnahme | D171: =D1 -> Brücke über die | I171: Bauwerksnummer (ASB)
A172: Straßenbauverwaltung | D172: =D2 -> XY | I172: =I2 -> 4948579
A173: Aufsteller | D173: =D3 -> Ingenieurbüro | I173: Datum | J173: =J3 -> 2022-12-02
B175: Betonausbruch auf der lastabgewandten Seite
C176: k8 | D176: =Tragwerk!$B$73 -> 2 | E176: [-] | G176: Faktor lt. ETA
C177: VRk,cp | D177: =INDEX(Tragwerk!B74:D74,1,MATCH(Eingabe!$C$4,Tragwerk!$B$14:$D$14)) -> 79.37343585 | E177: [kN] | G177: DIN EN 1992-4
C178: γMc | D178: =Tragwerk!$B$75 -> 1.5 | E178: [-] | G178: DIN EN 1992-4
C179: VRd,cp | D179: =INDEX(Tragwerk!B76:D76,1,MATCH(Eingabe!$C$4,Tragwerk!$B$14:$D$14)) -> 52.9156239 | E179: [kN] | G179: Bemessungswert des Widerstandes
C180: VEd,Mitte | D180: =Tragwerk!$B$93 -> 39.0145425 | E180: [kN] | G180: Bemessungswert der Einwirkung
C181: bV,cp | D181: =D180/D179 -> 0.7372972219 | E181: [-] | G181: Ausnutzungsgrad
B183: Betonkantenbruch
C184: α | D184: =INDEX(Tragwerk!B78:D78,1,MATCH(Eingabe!$C$4,Tragwerk!$B$14:$D$14)) -> 0.02680519574 | E184: [-] | G184: DIN EN 1992-4
C185: β | D185: =INDEX(Tragwerk!B79:D79,1,MATCH(Eingabe!$C$4,Tragwerk!$B$14:$D$14)) -> 0.043066467 | E185: [-] | G185: DIN EN 1992-4
C186: V0Rk,c | D186: =INDEX(Tragwerk!B80:D80,1,MATCH(Eingabe!$C$4,Tragwerk!$B$14:$D$14)) -> 609.4636447 | E186: [kN] | G186: DIN EN 1992-4
C187: A0c,V | D187: =INDEX(Tragwerk!B81:D81,1,MATCH(Eingabe!$C$4,Tragwerk!$B$14:$D$14)) -> 8201250 | E187: [mm²] | G187: DIN EN 1992-4
C188: Ac,V | D188: =INDEX(Tragwerk!B82:D82,1,MATCH(Eingabe!$C$4,Tragwerk!$B$14:$D$14)) -> 1012500 | E188: [mm²] | G188: DIN EN 1992-4
C189: ψh,V | D189: =INDEX(Tragwerk!B84:D84,1,MATCH(Eingabe!$C$4,Tragwerk!$B$14:$D$14)) -> 2.846049894 | E189: [-] | G189: DIN EN 1992-4
C190: ψre,V | D190: =Tragwerk!B87 -> 1.2 | E190: [-] | G190: DIN EN 1992-4
C191: VRk,c | D191: =INDEX(Tragwerk!B88:D88,1,MATCH(Eingabe!$C$4,Tragwerk!$B$14:$D$14)) -> 256.9724358 | E191: [kN] | G191: DIN EN 1992-4
C192: γMc | D192: =Tragwerk!B89 -> 1.5 | E192: [-] | G192: DIN EN 1992-4
C193: VRd,c | D193: =INDEX(Tragwerk!B90:D90,1,MATCH(Eingabe!$C$4,Tragwerk!$B$14:$D$14)) -> 171.3149572 | E193: [kN] | G193: Bemessungswert des Widerstandes
C194: VEd,Mitte | D194: =Tragwerk!B93 -> 39.0145425 | E194: [kN] | G194: Bemessungswert der Einwirkung
C195: bV,c | D195: =IF(D193="entfällt","entfällt",D194/D193) -> 0.2277357631 | E195: [-] | G195: Ausnutzungsgrad
A197: Kombinierter Ausnutzungsgrad Zugkraft- und Querkraft-Einwirkung
C199: bN+V,Stahl | D199: =INDEX(Tragwerk!B98:D98,1,MATCH(Eingabe!$C$4,Tragwerk!$B$14:$D$14)) -> 0.7093553182 | E199: [-] | G199: Ausnutzung Zug-/Querkraft-Einwirkung: Stahl
C200: bN+V,Beton | D200: =INDEX(Tragwerk!B99:D99,1,MATCH(Eingabe!$C$4,Tragwerk!$B$14:$D$14)) -> 0.9613751742 | E200: [-] | G200: Ausnutzung Zug-/Querkraft-Einwirkung: Beton
A204: Mittelbereich Kappe HPA-Reihe 1
A206: Zugkraft-Einwirkung
B207: Stahlversagen
C208: NRk,s | D208: =INDEX(Kappe!B17:D17,1,MATCH(Eingabe!$C$4,Kappe!$B$12:$D$12)) -> 171.5 | E208: [kN] | G208: Charakt. Zugtragfähigkeit lt. ETA
C209: γMs | D209: =Kappe!$B$18 -> 1.87 | E209: [-] | G209: Teilsicherheitsbeiwert lt. ETA
C210: NRd,s | D210: =INDEX(Kappe!B19:D19,1,MATCH(Eingabe!$C$4,Kappe!$B$12:$D$12)) -> 91.71122995 | E210: [kN] | G210: Bemessungswert des Widerstandes
C211: NEd,Mitte | D211: =Kappe!$B$53 -> 12.59089999 | E211: [kN] | G211: Bemessungswert der Einwirkung
C212: bN,s | D212: =D211/D210 -> 0.1372885305 | E212: [-] | G212: Ausnutzungsgrad
B214: Herausziehen
C215: AMutter | D215: =INDEX(Kappe!B21:D21,1,MATCH(Eingabe!$C$4,Kappe!$B$12:$D$12)) -> 393 | E215: [mm²] | G215: Kopfbolzenfläche
C216: yred,LWC | D216: =Eingabe!N3 -> 1 | E216: [-] | G216: Abminderung Leichtbeton
C217: NRk,p | D217: =INDEX(Kappe!B22:D22,1,MATCH(Eingabe!$C$4,Kappe!$B$12:$D$12)) -> 117.9 | E217: [kN] | G217: DIN EN 1992-4
C218: γMp | D218: =Kappe!B23 -> 1.5 | E218: [-] | G218: DIN EN 1992-4
C219: NRd,p | D219: =INDEX(Kappe!B24:D24,1,MATCH(Eingabe!$C$4,Kappe!$B$12:$D$12)) -> 78.6 | E219: [kN] | G219: Bemessungswert des Widerstandes
C220: NEd,Mitte | D220: =Kappe!$B$53 -> 12.59089999 | E220: [kN] | G220: Bemessungswert der Einwirkung
C221: bN,p | D221: =D220/D219 -> 0.1601895672 | E221: [-] | G221: Ausnutzungsgrad
A222: Bauteil | D222: =D60 -> Mittelkappe Nord | I222: Seite | J222: =J60+3 -> 4
A223: Kapitel / Vorgang | D223: =D61 -> Kappenverankerung | I223: Archiv-Nr. | J223: =J61 -> 1234
A224: Baumaßnahme | D224: =D1 -> Brücke über die | I224: Bauwerksnummer (ASB)
A225: Straßenbauverwaltung | D225: =D2 -> XY | I225: =I2 -> 4948579
A226: Aufsteller | D226: =D3 -> Ingenieurbüro | I226: Datum | J226: =J3 -> 2022-12-02
B228: Betonausbruch
C229: N0Rk,c | D229: =INDEX(Kappe!B27:D27,1,MATCH(Eingabe!$C$4,Kappe!$B$12:$D$12)) -> 55.44632857 | E229: [kN] | G229: DIN EN 1992-4
C230: A0c,N | D230: =INDEX(Kappe!B28:D28,1,MATCH(Eingabe!$C$4,Kappe!$B$12:$D$12)) -> 88209 | E230: [mm²] | G230: DIN EN 1992-4
C231: Ac,N | D231: =INDEX(Kappe!B29:D29,1,MATCH(Eingabe!$C$4,Kappe!$B$12:$D$12)) -> 88209 | E231: [mm²] | G231: DIN EN 1992-4 bzw. DAfStb Heft 615
C232: k | D232: =INDEX(Kappe!B26:D26,1,MATCH(Eingabe!$C$4,Kappe!$B$12:$D$12)) -> 8.9 | E232: [-] | G232: DIN EN 1992-4 bzw. DAfStb Heft 615
C233: ys,N | D233: =INDEX(Kappe!B30:D30,1,MATCH(Eingabe!$C$4,Kappe!$B$12:$D$12)) -> 1 | E233: [-] | G233: DIN EN 1992-4
C234: yre,N | D234: =INDEX(Kappe!B31:D31,1,MATCH(Eingabe!$C$4,Kappe!$B$12:$D$12)) -> 1 | E234: [-] | G234: DIN EN 1992-4
C235: yec,N | D235: =INDEX(Kappe!B32:D32,1,MATCH(Eingabe!$C$4,Kappe!$B$12:$D$12)) -> 1 | E235: [-] | G235: DIN EN 1992-4
C236: yucr,N | D236: =INDEX(Kappe!B33:D33,1,MATCH(Eingabe!$C$4,Kappe!$B$12:$D$12)) -> 1 | E236: [-] | G236: DIN EN 1992-4
C237: yred,LWC | D237: =Eingabe!N3 -> 1 | E237: [-] | G237: Abminderung Leichtbeton
C238: NRk,c | D238: =INDEX(Kappe!B34:D34,1,MATCH(Eingabe!$C$4,Kappe!$B$12:$D$12)) -> 55.44632857 | E238: [kN] | G238: DIN EN 1992-4
C239: γMc | D239: =Kappe!$B$35 -> 1.5 | E239: [-] | G239: DIN EN 1992-4
C240: NRd,c | D240: =INDEX(Kappe!B36:D36,1,MATCH(Eingabe!$C$4,Kappe!$B$12:$D$12)) -> 36.96421904 | E240: [kN] | G240: Bemessungswert des Widerstandes
C241: NEd,Mitte | D241: =Kappe!$B$53 -> 12.59089999 | E241: [kN] | G241: Bemessungswert der Einwirkung
C242: bN,c | D242: =D241/D240 -> 0.3406239956 | E242: [-] | G242: Ausnutzungsgrad
A244: Querkraft-Einwirkung
B245: Stahlversagen mit/ohne Hebelarm
C246: MRk,s | D246: =IF(Eingabe!E80=0,"-",INDEX(Kappe!B58:D58,1,MATCH(Eingabe!$C$4,Kappe!$B$12:$D$12))) -> - | E246: [Nm] | G246: Charakt. Quertragfähigkeit lt. ETA
C247: γMs | D247: =Kappe!$B$59 -> 1.56 | E247: [-] | G247: Teilsicherheitsbeiwert lt. ETA
C248: VRd,s | D248: =INDEX(Kappe!B60:D60,1,MATCH(Eingabe!$C$4,Kappe!$B$12:$D$12)) -> 55 | E248: [kN] | G248: Bemessungswert Stahlwiderstand
C249: VSd,Mitte | D249: =Kappe!$B$61 -> 39.0145425 | E249: [kN] | G249: Bemessungswert der Einwirkung
C250: bV,s | D250: =D249/D248 -> 0.7093553182 | E250: [-] | G250: Ausnutzungsgrad
B252: Betonausbruch auf der lastabgewandten Seite
C253: k8 | D253: =Kappe!$B$64 -> 2 | E253: [-] | G253: Z-21.8-2118
... 392 more rows

Sheet Ausdruck_1-reihig+Bew.,Schw. (hidden)
A1: Baumaßnahme | D1: x | I1: Bauwerksnummer (ASB)
A2: Straßenbauverwaltung | D2: y
A3: Aufsteller | D3: z | I3: Datum | J3: 2024-05-15
B4: Projekt- und Montageübersicht
B6: Geometrie
B24: Randbereich in Kappenlängsrichtung jeweils 6 m vor Übergangs-Konstruktion (ÜKO)
A28: Bauvorhaben | G28: Kappenverankerung
B29: =Eingabe!C3 -> Instandsetzung Kappe
A31: Tragwerk (Überbau)
B33: Betongüte | D33: =Eingabe!C6 -> C 30/37; gerissen
B34: Randabstand cT | D34: =Eingabe!C7 -> 1350 | E34: [mm]
B35: Drehpunktabstand d | D35: =Eingabe!C9 -> 10 | E35: [mm]
B36: Abstand längs sx,Mittelbereich | D36: =Eingabe!J28 -> 660 | E36: [mm]
B37: Abstand längs sx,Randbereich | D37: =Eingabe!J32 -> 660 | E37: [mm]
B38: Bauteildicke Tragwerk hT | D38: =Eingabe!C8 -> 250 | E38: [mm]
B39: Verankerungslänge hef | D39: =Eingabe!AD83 -> 97 | E39: [mm]
B40: Bohrloch-Ø do | D40: =Eingabe!W37 -> 22 | E40: [mm]
A42: Kappe
B44: Betongüte | D44: =Eingabe!C13 -> C 40/50 (LP); gerissen
B45: Rohdichte ρ | D45: =Eingabe!C14&" [kg/m3]" -> 1800 [kg/m3]
B46: Kappenbreite b | D46: =LEFT(Eingabe!C12,FIND("m",Eingabe!C12)-1) -> ≤ 1,70 | E46: [m]
B47: Randabstand cK | D47: =Eingabe!C16 -> 200 | E47: [mm]
B48: Kopfbolzenart | C48: =Eingabe!C15 -> Sechskantmutter A4 M20
B49: Betondeckung Kopfb. cnom | D49: =IF(Eingabe!C19=0,"0",Eingabe!C19) -> 30 | E49: [mm]
B50: Kappenhöhe hK | D50: =Eingabe!C18 -> 145 | E50: [mm]
B51: Verankerungslänge hef,neu (Bundm.) | D51: =Eingabe!C21 -> 99 | E51: [mm]
B52: Gewindehöhe hK,Gew | D52: =SUM(Eingabe!C20,Eingabe!C21) -> 115 | E52: [mm] | G52: =Eingabe!Z112 -> HPA A4 M20x220 inkl. Mutter und Stauscheibe (2330222 / 2458870)
A53: Dichtungsschicht
B54: =LEFT(Eingabe!F4,FIND(",",Eingabe!F4)-1) -> Bitumen-Schweißbahn einlagig + Schutzlage | G54: zzgl. Injektionsmörtel HIT-RE 500 V4
B55: Dicke | D55: =IF(Eingabe!H80<1,"0",Eingabe!H80) -> 8 | E55: [mm] | G55: HIT-Menge: | H55: ="≈ "&Eingabe!AD93 -> ≈ 45 | I55: ml/HPA
B56: =Eingabe!B2 -> HILTI Design-Tool Kappenverankerung 12.3 | G56: =Eingabe!I2 -> Version gültig bis 31.12.2026
A57: Bauteil | D57: AK Rand Max | I57: Seite | J57: 1
A58: Kapitel / Vorgang | D58: Kappenverankerung | I58: Archiv-Nr.
A59: Baumaßnahme | D59: =D1 -> x | I59: Bauwerksnummer (ASB)
A60: Straßenbauverwaltung | D60: =D2 -> y | I60: =I2 -> 0
A61: Aufsteller | D61: =D3 -> z | I61: Datum | J61: =J3 -> 2024-05-15
A62: Einwirkungen
B64: Direkte Einwirkungen:
B65: =Eingabe!C24 -> Wind auf Lärmschutzwand
B66: Moment MEd,y,direkt : | G66: =IF(Eingabe!C25=0,"0,0",Eingabe!C25) -> 39.8 | H66: [kNm/m]
B67: Querkraft VEd,y, direkt : | G67: =Eingabe!C26 -> 87.8 | H67: [kN/m]
B68: Indirekte Einwirkungen: (Aus numerischen Berechnungen auf Basis Änderung konstanter Temperaturanteil aus Klima, konstantem Temperaturunterschied zwischen verschiedenen Bauteilen sowie Kriechen und Schwinden in Abhängigkeit von Kappenlänge, -querschnitt, Kappenausführung, Dübelanzahl und -steifigkeit; Prof. Dr. U. Freundt, Gutachten zur Befestigung von Brückenkappen mittels Hilti Kappenverankerung HPA (ehem. HCC), Weimar 30.7.2015)
B69: Mitte: VEd,y,indirekt : | G69: =IF(Eingabe!C29>0,Eingabe!C29,"0,0") -> 12 | H69: [kN/HPA]
B70: Rand: VEd,x/y,indirekt : | G70: =IF(Eingabe!C30>0,Eingabe!C30,"0,0") -> 12 | H70: [kN/HPA]
A72: Resultierende Einwirkungen / HPA
C73: Tragwerk | D73: Kappe
B74: Mittelbereich
C76: HPA-Reihe 1
B77: NEd | C77: =Eingabe!D41 -> 12.59089999 | D77: =Eingabe!F41 -> 12.59089999
C78: =Eingabe!D42 -> 0 | D78: =Eingabe!F42 -> 0
B79: VEd,y,Beton * | C79: =Eingabe!D43 -> 39.0145425 | D79: =Eingabe!F43 -> 39.0145425
B81: Randbereich (6m vor ÜKO)
C83: HPA-Reihe 1 [kN]
B84: NEd | C84: =Eingabe!D53 -> 12.59089999 | D84: =Eingabe!F53 -> 12.59089999
C85: =Eingabe!D54 -> 0 | D85: =Eingabe!F54 -> 0
B86: VEd,x/y,Beton * | C86: =Eingabe!D55 -> 40.81831117 | D86: =Eingabe!F55 -> 40.81831117
B87: * Der durch die Kappe erzeugte Reibwiderstand wurde berücksichtigt mit: | I87: FR [kN/m] = | J87: =Eingabe!O17 -> 5.93775
A88: Widerstände / HPA
B90: Mittelbereich
C91: Tragwerk | D91: Kappe
C92: HPA-Reihe 1
B93: NRd,s | C93: =D128 -> 91.71122995 | D93: =D206 -> 91.71122995
B94: NRd,c | C94: =Eingabe!D45 -> 26.45781195 | D94: =Eingabe!F45 -> 36.96421904
B95: NRd,p | C95: =Eingabe!D46 -> 41.62266785 | D95: =Eingabe!F46 -> 78.6
B96: VRd,s | C96: =Eingabe!D47 -> 55 | D96: =Eingabe!F47 -> 55
B97: VRd,c/cp | C97: =Eingabe!D48 -> 52.9156239 | D97: =Eingabe!F48 -> 73.92843809
B98: Ausnutzung | C98: =Eingabe!D49 -> 96.13751742 | D98: =Eingabe!F49 -> 70.93553182
B99: =Eingabe!F29 -> Verankerung Mittelbereich zulässig
B101: Randbereich (6m vor ÜKO)
C102: Tragwerk | D102: Kappe
C103: HPA-Reihe 1
B104: NRd,s | C104: =D269 -> 91.71122995 | D104: =D352 -> 91.71122995
B105: NRd,c | C105: =Eingabe!D57 -> 26.45781195 | D105: =Eingabe!F57 -> 36.96421904
B106: NRd,p | C106: =Eingabe!D58 -> 41.62266785 | D106: =Eingabe!F58 -> 78.6
B107: VRd,s | C107: =Eingabe!D59 -> 55 | D107: =Eingabe!F59 -> 55
B108: VRd,c/cp | C108: =Eingabe!D60 -> 52.9156239 | D108: =Eingabe!F60 -> 73.92843809
B109: Ausnutzung | C109: =Eingabe!D61 -> 100.5783337 | D109: =Eingabe!F61 -> 74.21511121
B110: =Eingabe!F33 -> Verankerung Randbereich zulässig
A112: Zugkraftübertragung Kappe → Tragwerk (Überbau): Kappenverankerung HPA
A113: =" Querkraftübertragung Kappe → Tragwerk (Überbau): "&(Eingabe!C33) -> Querkraftübertragung Kappe → Tragwerk (Überbau): Kappenverankerung HPA
A114: Bauteil | D114: =D57 -> AK Rand Max | I114: Seite | J114: =J57+1 -> 2
A115: Kapitel / Vorgang | D115: =D58 -> Kappenverankerung | I115: Archiv-Nr. | J115: =J58 -> 0
A116: Baumaßnahme | D116: =D1 -> x | I116: Bauwerksnummer (ASB)
A117: Straßenbauverwaltung | D117: =D2 -> y | I117: =I2 -> 0
A118: Aufsteller | D118: =D3 -> z | I118: Datum | J118: =J3 -> 2024-05-15
A120: Verwendbarkeits- und Anwendbarkeitsnachweise / Prüfungen / Gutachten
B121: 1. Dübelsystem HIT-RE 500 V4 nach ETA-20/0541 2. Hilti Betonverbinder HPA nach Z-21.8-2118 3. Dichtheitsprüfungen mit Berichten der Bautechnischen Versuchsanstalt an der HTL Rankweil 4. Dichtheitsprüfung unter dynamischer Querkraft-Einwirkung; Bericht der Bautechnischen Versuchsanstalt an der HTL Rankweil 5. Gutachten 20-083/1.1.1, Nachträgliche Verankerung von Brückenkappen und Lärmschutzwänden auf Brückenkappen mit Injektionssystem HIT RE 500 V4; Ingenieurbüro Schiessl Gehlen Sodeikat GmbH
A122: Mittelbereich Tragwerk (Überbau)
A124: Zugkraft-Einwirkung
B125: Stahlversagen
C126: NRk,s | D126: =INDEX(Tragwerk!$B$23:$D$23,1,MATCH(Eingabe!$C$4,Tragwerk!$B$14:$D$14)) -> 171.5 | E126: [kN] | G126: Charakteristische Zugtragfähigkeit lt. ETA
C127: γMs | D127: =Tragwerk!$B$24 -> 1.87 | E127: [-] | G127: Teilsicherheitsbeiwert lt. ETA
C128: NRd,s | D128: =INDEX(Tragwerk!B25:D25,1,MATCH(Eingabe!C4,Tragwerk!B14:D14)) -> 91.71122995 | E128: [kN] | G128: Bemessungswert des Widerstandes
C129: NEd,Mitte | D129: =Tragwerk!$B$62 -> 12.59089999 | E129: [kN] | G129: Bemessungswert der Einwirkung
C130: bN,s | D130: =D129/D128 -> 0.1372885305 | E130: [-] | G130: Ausnutzungsgrad
B132: Kombiniertes Versagen Herausziehen / Betonausbruch
C133: NRk,p | D133: =INDEX(Tragwerk!$B$27:$D$27,1,MATCH(Eingabe!$C$4,Tragwerk!$B$14:$D$14)) -> 60.94689748 | E133: [kN] | G133: DIN EN 1992-4
C134: scr,Np | D134: =INDEX(Tragwerk!$B$28:$D$28,1,MATCH(Eingabe!$C$4,Tragwerk!$B$14:$D$14)) -> 291 | E134: [mm] | G134: Charakt. Achsabstand DIN EN 1992-4
C135: A0p,N | D135: =INDEX(Tragwerk!$B$29:$D$29,1,MATCH(Eingabe!$C$4,Tragwerk!$B$14:$D$14)) -> 84681 | E135: [mm²] | G135: Fläche lt. DIN EN 1992-4
C136: Ap,N | D136: =INDEX(Tragwerk!$B$30:$D$30,1,MATCH(Eingabe!$C$4,Tragwerk!$B$14:$D$14)) -> 84681 | E136: [mm²] | G136: Fläche lt. DIN EN 1992-4
C137: ψs,Np | D137: =INDEX(Tragwerk!$B$31:$D$31,1,MATCH(Eingabe!$C$4,Tragwerk!$B$14:$D$14)) -> 1 | E137: [-] | G137: DIN EN 1992-4
C138: ψre,N | D138: =INDEX(Tragwerk!$B$32:$D$32,1,MATCH(Eingabe!$C$4,Tragwerk!$B$14:$D$14)) -> 0.985 | E138: [-] | G138: DIN EN 1992-4
C139: ψc | D139: =Tragwerk!$B$38 -> 1.04 | E139: [-] | G139: Erhöhungsfaktor lt. ETA
C140: γMp | D140: =Tragwerk!$B$40 -> 1.5 | E140: [-] | G140: DIN EN 1992-4
C141: NRd,p | D141: =INDEX(Tragwerk!B41:D41,1,MATCH(Eingabe!C4,Tragwerk!B14:D14)) -> 41.62266785 | E141: [kN] | G141: Bemessungswert des Widerstandes
C142: NEd,Mitte | D142: =Tragwerk!$B$62 -> 12.59089999 | E142: [kN] | G142: Bemessungswert der Einwirkung
C143: bN,p | D143: =D142/D141 -> 0.3025010321 | E143: [-] | G143: Ausnutzungsgrad
B145: Betonausbruch
C146: N0Rk,c | D146: =INDEX(Tragwerk!B43:D43,1,MATCH(Eingabe!$C$4,Tragwerk!$B$14:$D$14)) -> 40.29108419 | E146: [kN] | G146: DIN EN 1992-4
C147: A0c,N | D147: =INDEX(Tragwerk!B44:D44,1,MATCH(Eingabe!$C$4,Tragwerk!$B$14:$D$14)) -> 84681 | E147: [mm²] | G147: DIN EN 1992-4
C148: Ac,N | D148: =INDEX(Tragwerk!B45:D45,1,MATCH(Eingabe!$C$4,Tragwerk!$B$14:$D$14)) -> 84681 | E148: [mm²] | G148: DIN EN 1992-4
C149: ys,N | D149: =INDEX(Tragwerk!B46:D46,1,MATCH(Eingabe!$C$4,Tragwerk!$B$14:$D$14)) -> 1 | E149: [-] | G149: DIN EN 1992-4
C150: yre,N | D150: =INDEX(Tragwerk!B47:D47,1,MATCH(Eingabe!$C$4,Tragwerk!$B$14:$D$14)) -> 0.985 | E150: [-] | G150: DIN EN 1992-4
C151: yec,N | D151: =INDEX(Tragwerk!B48:D48,1,MATCH(Eingabe!$C$4,Tragwerk!$B$14:$D$14)) -> 1 | E151: [-] | G151: DIN EN 1992-4
C152: NRk,c | D152: =INDEX(Tragwerk!B50:D50,1,MATCH(Eingabe!$C$4,Tragwerk!$B$14:$D$14)) -> 39.68671793 | E152: [kN] | G152: DIN EN 1992-4
C153: γMc | D153: =Tragwerk!$B$51 -> 1.5 | E153: [-] | G153: DIN EN 1992-4
C154: NRd,c | D154: =INDEX(Tragwerk!B52:D52,1,MATCH(Eingabe!$C$4,Tragwerk!$B$14:$D$14)) -> 26.45781195 | E154: [kN] | G154: Bemessungswert des Widerstandes
C155: NEd,Mitte | D155: =Tragwerk!$B$62 -> 12.59089999 | E155: [kN] | G155: Bemessungswert der Einwirkung
C156: bN,c | D156: =D155/D154 -> 0.4758859126 | E156: [-] | G156: Ausnutzungsgrad
A158: Querkraft-Einwirkung
B159: Stahlversagen mit/ohne Hebelarm
C160: MRk,s | D160: =IF(Eingabe!E80=0,"-",INDEX(Tragwerk!B67:D67,1,MATCH(Eingabe!$C$4,Tragwerk!$B$14:$D$14))) -> - | E160: [Nm] | G160: Charakt. Quertragfähigkeit lt. ETA
C161: γMs | D161: =Tragwerk!$B$68 -> 1.56 | E161: [-] | G161: Teilsicherheitsbeiwert lt. ETA
C162: VRd,s | D162: =INDEX(Tragwerk!B69:D69,1,MATCH(Eingabe!$C$4,Tragwerk!$B$14:$D$14)) -> 55 | E162: [kN] | G162: Bemessungswert Stahlwiderstand
C163: VEd,Mitte | D163: =Tragwerk!$B$70 -> 39.0145425 | E163: [kN] | G163: Bemessungswert der Einwirkung
C164: bV,s | D164: =D163/D162 -> 0.7093553182 | E164: [-] | G164: Ausnutzungsgrad
A165: Bauteil | D165: =D57 -> AK Rand Max | I165: Seite | J165: =J57+2 -> 3
A166: Kapitel / Vorgang | D166: =D58 -> Kappenverankerung | I166: Archiv-Nr. | J166: =J58 -> 0
A167: Baumaßnahme | D167: =D1 -> x | I167: Bauwerksnummer (ASB)
A168: Straßenbauverwaltung | D168: =D2 -> y | I168: =I2 -> 0
A169: Aufsteller | D169: =D3 -> z | I169: Datum | J169: =J3 -> 2024-05-15
B171: Betonausbruch auf der lastabgewandten Seite
C172: k8 | D172: =Tragwerk!$B$73 -> 2 | E172: [-] | G172: Faktor lt. ETA
C173: VRk,cp | D173: =INDEX(Tragwerk!B74:D74,1,MATCH(Eingabe!$C$4,Tragwerk!$B$14:$D$14)) -> 79.37343585 | E173: [kN] | G173: DIN EN 1992-4
C174: γMc | D174: =Tragwerk!$B$75 -> 1.5 | E174: [-] | G174: DIN EN 1992-4
C175: VRd,cp | D175: =INDEX(Tragwerk!B76:D76,1,MATCH(Eingabe!$C$4,Tragwerk!$B$14:$D$14)) -> 52.9156239 | E175: [kN] | G175: Bemessungswert des Widerstandes
C176: VEd,Mitte | D176: =Tragwerk!$B$93 -> 39.0145425 | E176: [kN] | G176: Bemessungswert der Einwirkung
C177: bV,cp | D177: =D176/D175 -> 0.7372972219 | E177: [-] | G177: Ausnutzungsgrad
B179: Betonkantenbruch
C180: α | D180: =INDEX(Tragwerk!B78:D78,1,MATCH(Eingabe!$C$4,Tragwerk!$B$14:$D$14)) -> 0.02680519574 | E180: [-] | G180: DIN EN 1992-4
C181: β | D181: =INDEX(Tragwerk!B79:D79,1,MATCH(Eingabe!$C$4,Tragwerk!$B$14:$D$14)) -> 0.043066467 | E181: [-] | G181: DIN EN 1992-4
C182: V0Rk,c | D182: =INDEX(Tragwerk!B80:D80,1,MATCH(Eingabe!$C$4,Tragwerk!$B$14:$D$14)) -> 609.4636447 | E182: [kN] | G182: DIN EN 1992-4
C183: A0c,V | D183: =INDEX(Tragwerk!B81:D81,1,MATCH(Eingabe!$C$4,Tragwerk!$B$14:$D$14)) -> 8201250 | E183: [mm²] | G183: DIN EN 1992-4
C184: Ac,V | D184: =INDEX(Tragwerk!B82:D82,1,MATCH(Eingabe!$C$4,Tragwerk!$B$14:$D$14)) -> 1012500 | E184: [mm²] | G184: DIN EN 1992-4
C185: ψh,V | D185: =INDEX(Tragwerk!B84:D84,1,MATCH(Eingabe!$C$4,Tragwerk!$B$14:$D$14)) -> 2.846049894 | E185: [-] | G185: DIN EN 1992-4
C186: ψre,V | D186: =Tragwerk!B87 -> 1.2 | E186: [-] | G186: DIN EN 1992-4
C187: VRk,c | D187: =INDEX(Tragwerk!B88:D88,1,MATCH(Eingabe!$C$4,Tragwerk!$B$14:$D$14)) -> 256.9724358 | E187: [kN] | G187: DIN EN 1992-4
C188: γMc | D188: =Tragwerk!B89 -> 1.5 | E188: [-] | G188: DIN EN 1992-4
C189: VRd,c | D189: =INDEX(Tragwerk!B90:D90,1,MATCH(Eingabe!$C$4,Tragwerk!$B$14:$D$14)) -> 171.3149572 | E189: [kN] | G189: Bemessungswert des Widerstandes
C190: VEd,Mitte | D190: =Tragwerk!B93 -> 39.0145425 | E190: [kN] | G190: Bemessungswert der Einwirkung
C191: bV,c | D191: =D190/D189 -> 0.2277357631 | E191: [-] | G191: Ausnutzungsgrad
A193: Kombinierter Ausnutzungsgrad Zugkraft- und Querkraft-Einwirkung Mittelbereich
C195: bN+V,Stahl | D195: =INDEX(Tragwerk!B98:D98,1,MATCH(Eingabe!$C$4,Tragwerk!$B$14:$D$14)) -> 0.7093553182 | E195: [-] | G195: Ausnutzung Zug-/Querkraft-Einwirkung: Stahl
C196: bN+V,Beton | D196: =INDEX(Tragwerk!B99:D99,1,MATCH(Eingabe!$C$4,Tragwerk!$B$14:$D$14)) -> 0.9613751742 | E196: [-] | G196: Ausnutzung Zug-/Querkraft-Einwirkung: Beton
A200: Mittelbereich Kappe
A202: Zugkraft-Einwirkung
B203: Stahlversagen
C204: NRk,s | D204: =INDEX(Kappe!B17:D17,1,MATCH(Eingabe!$C$4,Kappe!$B$12:$D$12)) -> 171.5 | E204: [kN] | G204: Charakt. Zugtragfähigkeit lt. ETA
C205: γMs | D205: =Kappe!$B$18 -> 1.87 | E205: [-] | G205: Teilsicherheitsbeiwert lt. ETA
C206: NRd,s | D206: =INDEX(Kappe!B19:D19,1,MATCH(Eingabe!$C$4,Kappe!$B$12:$D$12)) -> 91.71122995 | E206: [kN] | G206: Bemessungswert des Widerstandes
C207: NEd,Mitte | D207: =Kappe!$B$53 -> 12.59089999 | E207: [kN] | G207: Bemessungswert der Einwirkung
C208: bN,s | D208: =D207/D206 -> 0.1372885305 | E208: [-] | G208: Ausnutzungsgrad
B210: Herausziehen
C211: AMutter | D211: =INDEX(Kappe!B21:D21,1,MATCH(Eingabe!$C$4,Kappe!$B$12:$D$12)) -> 393 | E211: [mm²] | G211: Kopfbolzenfläche
C212: yred,LWC | D212: =Eingabe!N3 -> 1 | E212: [-] | G212: Abminderung Leichtbeton
C213: NRk,p | D213: =INDEX(Kappe!B22:D22,1,MATCH(Eingabe!$C$4,Kappe!$B$12:$D$12)) -> 117.9 | E213: [kN] | G213: DIN EN 1992-4
C214: γMp | D214: =Kappe!B23 -> 1.5 | E214: [-] | G214: DIN EN 1992-4
C215: NRd,p | D215: =INDEX(Kappe!B24:D24,1,MATCH(Eingabe!$C$4,Kappe!$B$12:$D$12)) -> 78.6 | E215: [kN] | G215: Bemessungswert des Widerstandes
C216: NEd,Mitte | D216: =Kappe!$B$53 -> 12.59089999 | E216: [kN] | G216: Bemessungswert der Einwirkung
C217: bN,p | D217: =D216/D215 -> 0.1601895672 | E217: [-] | G217: Ausnutzungsgrad
A218: Bauteil | D218: =D57 -> AK Rand Max | I218: Seite | J218: =J57+3 -> 4
A219: Kapitel / Vorgang | D219: =D58 -> Kappenverankerung | I219: Archiv-Nr. | J219: =J58 -> 0
A220: Baumaßnahme | D220: =D1 -> x | I220: Bauwerksnummer (ASB)
A221: Straßenbauverwaltung | D221: =D2 -> y | I221: =I2 -> 0
A222: Aufsteller | D222: =D3 -> z | I222: Datum | J222: =J3 -> 2024-05-15
B224: Betonausbruch
C225: N0Rk,c | D225: =INDEX(Kappe!B27:D27,1,MATCH(Eingabe!$C$4,Kappe!$B$12:$D$12)) -> 55.44632857 | E225: [kN] | G225: DIN EN 1992-4
C226: A0c,N | D226: =INDEX(Kappe!B28:D28,1,MATCH(Eingabe!$C$4,Kappe!$B$12:$D$12)) -> 88209 | E226: [mm²] | G226: DIN EN 1992-4
C227: Ac,N | D227: =INDEX(Kappe!B29:D29,1,MATCH(Eingabe!$C$4,Kappe!$B$12:$D$12)) -> 88209 | E227: [mm²] | G227: DIN EN 1992-4 bzw. DAfStb Heft 615
C228: k | D228: =INDEX(Kappe!B26:D26,1,MATCH(Eingabe!$C$4,Kappe!$B$12:$D$12)) -> 8.9 | E228: [-] | G228: DIN EN 1992-4 bzw. DAfStb Heft 615
C229: ys,N | D229: =INDEX(Kappe!B30:D30,1,MATCH(Eingabe!$C$4,Kappe!$B$12:$D$12)) -> 1 | E229: [-] | G229: DIN EN 1992-4
C230: yre,N | D230: =INDEX(Kappe!B31:D31,1,MATCH(Eingabe!$C$4,Kappe!$B$12:$D$12)) -> 1 | E230: [-] | G230: DIN EN 1992-4
C231: yec,N | D231: =INDEX(Kappe!B32:D32,1,MATCH(Eingabe!$C$4,Kappe!$B$12:$D$12)) -> 1 | E231: [-] | G231: DIN EN 1992-4
C232: yucr,N | D232: =INDEX(Kappe!B33:D33,1,MATCH(Eingabe!$C$4,Kappe!$B$12:$D$12)) -> 1 | E232: [-] | G232: DIN EN 1992-4
C233: yred,LWC | D233: =Eingabe!N3 -> 1 | E233: [-] | G233: Abminderung Leichtbeton
C234: NRk,c | D234: =INDEX(Kappe!B34:D34,1,MATCH(Eingabe!$C$4,Kappe!$B$12:$D$12)) -> 55.44632857 | E234: [kN] | G234: DIN EN 1992-4
C235: γMc | D235: =Kappe!$B$35 -> 1.5 | E235: [-] | G235: DIN EN 1992-4
C236: NRd,c | D236: =INDEX(Kappe!B36:D36,1,MATCH(Eingabe!$C$4,Kappe!$B$12:$D$12)) -> 36.96421904 | E236: [kN] | G236: Bemessungswert des Widerstandes
C237: NEd,Mitte | D237: =Kappe!$B$53 -> 12.59089999 | E237: [kN] | G237: Bemessungswert der Einwirkung
C238: bN,c | D238: =D237/D236 -> 0.3406239956 | E238: [-] | G238: Ausnutzungsgrad
A240: Querkraft-Einwirkung
B241: Stahlversagen mit/ohne Hebelarm
C242: MRk,s | D242: =IF(Eingabe!E80=0,"-",INDEX(Kappe!B58:D58,1,MATCH(Eingabe!$C$4,Kappe!$B$12:$D$12))) -> - | E242: [Nm] | G242: Charakt. Quertragfähigkeit lt. ETA
C243: γMs | D243: =Kappe!$B$59 -> 1.56 | E243: [-] | G243: Teilsicherheitsbeiwert lt. ETA
C244: VRd,s | D244: =INDEX(Kappe!B60:D60,1,MATCH(Eingabe!$C$4,Kappe!$B$12:$D$12)) -> 55 | E244: [kN] | G244: Bemessungswert Stahlwiderstand
C245: VEd,Mitte | D245: =Kappe!$B$61 -> 39.0145425 | E245: [kN] | G245: Bemessungswert der Einwirkung
C246: bV,s | D246: =D245/D244 -> 0.7093553182 | E246: [-] | G246: Ausnutzungsgrad
B248: Betonausbruch auf der lastabgewandten Seite
C249: k8 | D249: =Kappe!$B$64 -> 2 | E249: [-] | G249: Z-21.8-2118
C250: VRk,cp | D250: =INDEX(Kappe!B65:D65,1,MATCH(Eingabe!$C$4,Kappe!$B$12:$D$12)) -> 110.8926571 | E250: [kN] | G250: DIN EN 1992-4
... 146 more rows

Sheet Grafiken (hidden)
A2: Dübelreihe 1 | AB2: Ausnutzung Dübel
A3: Tragwerk | B3: α | C3: =Tragwerk!B100 -> 0
A4: Laufende Nummer | B4: 0 | C4: 1 | D4: 2 | E4: 3 | AB4: =Tragwerk!B104 -> Kappenanker HPA M20
A5: Normalkraft | B5: 0 | C5: 0.1873 | D5: 0.4636 | E5: 0.5 | AB5: =Tragwerk!B105 -> 0.7093553182
A6: Querkraft | B6: 0.5 | C6: 0.4636 | D6: 0.1873 | E6: 0 | AB6: =Tragwerk!B106 -> 0.9613751742
A7: Kappe | B7: α | C7: =Kappe!B91 -> 0
A8: Laufende Nummer | B8: 0 | C8: 1 | D8: 2 | E8: 3 | AB8: =Kappe!B95 -> Kappenanker HPA M20
A9: Normalkraft | B9: 0 | C9: 0.1873 | D9: 0.4636 | E9: 0.5 | AB9: =Kappe!B96 -> 0.7093553182
A10: Querkraft | B10: 0.5 | C10: 0.4636 | D10: 0.1873 | E10: 0 | AB10: =Kappe!B97 -> 0.5821722339
A12: Dübelreihe 2
A13: Tragwerk | B13: α | C13: =Tragwerk!G100 -> 0
A14: Laufende Nummer | B14: 0 | C14: 1 | D14: 2 | E14: 3 | AB14: =Tragwerk!G104 -> Kappenanker HPA M20
A15: Normalkraft | B15: 0 | C15: 0.1873 | D15: 0.4636 | E15: 0.5 | AB15: =Tragwerk!G105 -> 0.7093553182
A16: Querkraft | B16: 0.5 | C16: 0.4636 | D16: 0.1873 | E16: 0 | AB16: =Tragwerk!G106 -> 0.8447273998
A17: Kappe | B17: α | C17: =Kappe!G91 -> 0
A18: Laufende Nummer | B18: 0 | C18: 1 | D18: 2 | E18: 3 | AB18: =Kappe!G95 -> Kappenanker HPA M20
A19: Normalkraft | B19: 0 | C19: 0.1873 | D19: 0.4636 | E19: 0.5 | AB19: =Kappe!G96 -> 0.7093553182
A20: Querkraft | B20: 0.5 | C20: 0.4636 | D20: 0.1873 | E20: 0 | AB20: =Kappe!G97 -> 0.5115347791

Sheet Tragwerk (hidden)
A1: Tragwerk | C1: Mittelbereich | O1: Randbereich
A2: Dübel 1 (der Tragwerksachse näher liegend) | F2: Dübel 2 (dem Tragwerksrand näher liegend)
A3: fck,cyl | B3: =Eingabe!F5 -> 30 | C3: [N/mm²] | F3: fck,cyl | G3: =B3 -> 30 | H3: [N/mm²] | L3: fck,cyl | M3: =Eingabe!F5 -> 30 | Q3: fck,cyl | R3: =M3 -> 30
A4: Verb.-Sp. RE 500 V4 | B4: =Eingabe!O8 -> 10 | C4: [-] | F4: Untergrundqualität | H4: [-]
A5: Randabstand cT | B5: =Eingabe!$C$7 -> 1350 | C5: [mm] | F5: Randabstand cT | G5: =Eingabe!$C$7-Eingabe!$C$17 -> 1010 | H5: [mm]
A6: Achsabstand s Mitte | B6: =Eingabe!J28 -> 660 | C6: [mm] | F6: Achsabstand s Mitte | G6: =B6 -> 660 | H6: [mm] | L6: Achsabstand s Rand | M6: =Eingabe!J32 -> 660 | N6: [mm]
A7: Dübelreihenabst. s1 | B7: =Eingabe!C17 -> 340 | C7: [mm] | F7: Dübelreihenabst. s1 | G7: =B7 -> 340 | H7: [mm] | L7: aV für Betonkantenbruch | M7: =IF(Eingabe!C33="Anschlussbewehrung",Eingabe!Q30,Eingabe!O30) -> 10.3004045 | N7: [°]
A8: Untergrunddicke h | B8: =Eingabe!C8 -> 250 | C8: [mm] | F8: Untergrunddicke h | G8: =B8 -> 250 | H8: [mm]
A9: Dübelanzahl | B9: 1 | C9: [Stk] | F9: Dübelanzahl | G9: 1 | H9: [Stk]
A10: Dichtung/Schutzbahn | B10: =IF(Eingabe!E80=1,Eingabe!D80,0) -> 0 | C10: [mm]
A11: Warnung c | B11: =IF($B$5<B16,"c < cmin !","ok") -> ok | C11: =IF($B$5<C16,"c < cmin !","ok") -> ok | D11: =IF($B$5<D16,"c < cmin !","ok") -> ok | F11: Warnung c | G11: =IF($G$5<G16,"c < cmin !","ok") -> ok | H11: =IF($G$5<H16,"c < cmin !","ok") -> ok | I11: =IF($G$5<I16,"c < cmin !","ok") -> ok
A12: Warnung s Mitte 1.R | B12: =IF(Eingabe!$G$5="Einreihige Ankeranordnung",IF($B$6<B17,"s < smin !","ok"),IF(OR($B$7<B17,$B$6<B17),"s < smin !","ok")) -> ok | C12: =IF(Eingabe!$G$5="Einreihige Ankeranordnung",IF($B$6<C17,"s < smin !","ok"),IF(OR($B$7<C17,$B$6<C17),"s < smin !","ok")) -> ok | D12: =IF(Eingabe!$G$5="Einreihige Ankeranordnung",IF($B$6<D17,"s < smin !","ok"),IF(OR($B$7<D17,$B$6<D17),"s < smin !","ok")) -> ok | F12: Warnung s Mitte 2.R | G12: =IF(Eingabe!$G$5="Einreihige Ankeranordnung",IF($G$6<G17,"s < smin !","ok"),IF(OR($G$7<G17,$G$6<G17),"s < smin !","ok")) -> ok | H12: =IF(Eingabe!$G$5="Einreihige Ankeranordnung",IF($G$6<H17,"s < smin !","ok"),IF(OR($G$7<H17,$G$6<H17),"s < smin !","ok")) -> ok | I12: =IF(Eingabe!$G$5="Einreihige Ankeranordnung",IF($G$6<I17,"s < smin !","ok"),IF(OR($G$7<I17,$G$6<I17),"s < smin !","ok")) -> ok | L12: Warnung s Rand 1.R | M12: =IF(Eingabe!$G$5="Einreihige Ankeranordnung",IF($M$6<B17,"s < smin !","ok"),IF(OR($B$7<B17,$M$6<B17),"s < smin !","ok")) -> ok | N12: =IF(Eingabe!$G$5="Einreihige Ankeranordnung",IF($M$6<C17,"s < smin !","ok"),IF(OR($B$7<C17,$M$6<C17),"s < smin !","ok")) -> ok | O12: =IF(Eingabe!$G$5="Einreihige Ankeranordnung",IF($M$6<D17,"s < smin !","ok"),IF(OR($B$7<D17,$M$6<D17),"s < smin !","ok")) -> ok | Q12: Warnung s Rand 2.R | R12: =IF(Eingabe!$G$5="Einreihige Ankeranordnung",IF($M$6<G17,"s < smin !","ok"),IF(OR($G$7<G17,$M$6<G17),"s < smin !","ok")) -> ok | S12: =IF(Eingabe!$G$5="Einreihige Ankeranordnung",IF($M$6<H17,"s < smin !","ok"),IF(OR($G$7<H17,$M$6<H17),"s < smin !","ok")) -> ok | T12: =IF(Eingabe!$G$5="Einreihige Ankeranordnung",IF($M$6<I17,"s < smin !","ok"),IF(OR($G$7<I17,$M$6<I17),"s < smin !","ok")) -> ok
A13: Warnung h | B13: =IF($B$8<B20,"h < hmin !","ok") -> ok | C13: =IF($B$8<C20,"h < hmin !","ok") -> ok | D13: =IF($B$8<D20,"h < hmin !","ok") -> ok | F13: Warnung h | G13: =IF($G$8<G20,"h < hmin !","ok") -> ok | H13: =IF($G$8<H20,"h < hmin !","ok") -> ok | I13: =IF($G$8<I20,"h < hmin !","ok") -> ok
B14: Kappenanker HPA M16 | C14: Kappenanker HPA M20 | D14: Kappenanker HPA M24 | G14: =B14 -> Kappenanker HPA M16 | H14: =C14 -> Kappenanker HPA M20 | I14: =D14 -> Kappenanker HPA M24 | M14: Kappenanker HPA M16 | N14: Kappenanker HPA M20 | O14: Kappenanker HPA M24 | R14: Kappenanker HPA M16 | S14: Kappenanker HPA M20 | T14: Kappenanker HPA M24
A15: hT,ef | B15: =Eingabe!AD83 -> 97 | C15: =Eingabe!AD83 -> 97 | D15: =Eingabe!AD83 -> 97 | E15: [mm] | F15: hT,ef | G15: =B15 -> 97 | H15: =C15 -> 97 | I15: 97 | J15: [mm] | L15: hT,ef | M15: =Eingabe!AD83 -> 97 | N15: =Eingabe!AD83 -> 97 | O15: =Eingabe!AD83 -> 97 | Q15: hT,ef | R15: =M15 -> 97 | S15: 97 | T15: 97
A16: cmin gerissener Beton | B16: 50 | C16: 55 | D16: 60 | E16: [mm] | F16: cmin gerissener Beton | G16: 50 | H16: 55 | I16: 60 | J16: [mm] | L16: cmin gerissener Beton | M16: 50 | N16: 55 | O16: 60 | Q16: cmin gerissener Beton | R16: 50 | S16: 55 | T16: 60
A17: smin gerissener Beton | B17: 75 | C17: 90 | D17: 115 | E17: [mm] | F17: smin gerissener Beton | G17: 75 | H17: 90 | I17: 115 | J17: [mm] | L17: smin gerissener Beton | M17: 75 | N17: 90 | O17: 115 | Q17: smin gerissener Beton | R17: 75 | S17: 90 | T17: 115
A18: cmin ungerissener Beton | B18: 80 | C18: 100 | D18: 120 | E18: [mm] | F18: cmin ungerissener Beton | G18: 80 | H18: 100 | I18: 120 | J18: [mm] | L18: cmin ungerissener Beton | M18: 80 | N18: 100 | O18: 120 | Q18: cmin ungerissener Beton | R18: 80 | S18: 100 | T18: 120
A19: smin ungerissener Beton | B19: 80 | C19: 100 | D19: 120 | E19: [mm] | F19: smin ungerissener Beton | G19: 80 | H19: 100 | I19: 120 | J19: [mm] | L19: smin ungerissener Beton | M19: 80 | N19: 100 | O19: 120 | Q19: smin ungerissener Beton | R19: 80 | S19: 100 | T19: 120
A20: hT,ef + 2 do | B20: =B15+36 -> 133 | C20: =C15+44 -> 141 | D20: =D15+56 -> 153 | E20: [mm] | F20: hT,ef + 2 do | G20: 133 | H20: 141 | I20: 153 | J20: [mm] | L20: hT,ef + 2 do | M20: =M15+36 -> 133 | N20: =N15+44 -> 141 | O20: =O15+56 -> 153 | Q20: hT,ef + 2 do | R20: 133 | S20: 141 | T20: 153
A21: Normalkraftwiderstand Einzeldübel | F21: Normalkraftwiderstand Einzeldübel | L21: Normalkraftwiderstand Einzeldübel | Q21: Normalkraftwiderstand Einzeldübel
A22: Stahlversagen | F22: Stahlversagen | L22: Stahlversagen | Q22: Stahlversagen
A23: NRk,s | B23: 109.9 | C23: 171.5 | D23: 247.1 | E23: [kN] | F23: NRk,s | G23: 109.9 | H23: =C23 -> 171.5 | I23: =D23 -> 247.1 | J23: [kN] | L23: NRk,s | M23: 109.9 | N23: 171.5 | O23: 247.1 | Q23: NRk,s | R23: 109.9 | S23: 171.5 | T23: 247.1
A24: γMs | B24: 1.87 | E24: [-] | F24: γMs | G24: 1.87 | J24: [-] | L24: γMs | M24: 1.87 | Q24: γMs | R24: 1.87
A25: NRd,s | B25: =$B$9*B23/$B$24 -> 58.77005348 | C25: =$B$9*C23/$B$24 -> 91.71122995 | D25: =$B$9*D23/$B$24 -> 132.1390374 | E25: [kN] | F25: NRd,s | G25: =$G$9*G23/$G$24 -> 58.77005348 | H25: =$G$9*H23/$G$24 -> 91.71122995 | I25: =$G$9*I23/$G$24 -> 132.1390374 | J25: [kN] | L25: NRd,s | M25: =$B$9*M23/$M$24 -> 58.77005348 | N25: =$B$9*N23/$M$24 -> 91.71122995 | O25: =$B$9*O23/$M$24 -> 132.1390374 | Q25: NRd,s | R25: =$G$9*R23/$R$24 -> 58.77005348 | S25: =$G$9*S23/$R$24 -> 91.71122995 | T25: =$G$9*T23/$R$24 -> 132.1390374
A26: Kombiniertes Versagen Herausziehen / Betonausbruch | F26: Kombiniertes Versagen Herausziehen / Betonausbruch | L26: Kombiniertes Versagen Herausziehen / Betonausbruch
A27: N0Rk,p | B27: =PI()*16*B15*B4/1000 -> 48.75751798 | C27: =PI()*20*C15*B4/1000 -> 60.94689748 | D27: =PI()*24*D15*B4/1000 -> 73.13627698 | E27: [kN] | F27: NRk,p | G27: =PI()*16*G15*B4/1000 -> 48.75751798 | H27: =PI()*20*H15*B4/1000 -> 60.94689748 | I27: =PI()*24*I15*B4/1000 -> 73.13627698 | J27: [kN] | L27: N0Rk,p | M27: =PI()*16*M15*B4/1000 -> 48.75751798 | N27: =PI()*20*N15*B4/1000 -> 60.94689748 | O27: =PI()*24*O15*B4/1000 -> 73.13627698 | Q27: NRk,p | R27: =PI()*16*R15*B4/1000 -> 48.75751798 | S27: =PI()*20*S15*B4/1000 -> 60.94689748 | T27: =PI()*24*T15*B4/1000 -> 73.13627698
A28: scr,Np | B28: =MIN(3*B15,467) -> 291 | C28: =MIN(3*C15,566) -> 291 | D28: =MIN(3*D15,679) -> 291 | E28: [mm] | F28: scr,Np | G28: =MIN(3*G15,467) -> 291 | H28: =MIN(3*H15,566) -> 291 | I28: =MIN(3*I15,679) -> 291 | J28: [mm] | L28: scr,Np | M28: =MIN(3*M15,467) -> 291 | N28: =MIN(3*N15,566) -> 291 | O28: =MIN(3*O15,679) -> 291 | Q28: scr,Np | R28: =MIN(3*R15,467) -> 291 | S28: =MIN(3*S15,566) -> 291 | T28: =MIN(3*T15,679) -> 291
A29: A0p,N | B29: =B28*B28 -> 84681 | C29: =C28*C28 -> 84681 | D29: =D28*D28 -> 84681 | E29: [mm²] | F29: A0p,N | G29: =G28*G28 -> 84681 | H29: =H28*H28 -> 84681 | I29: =I28*I28 -> 84681 | J29: [mm²] | L29: A0p,N | M29: =M28*M28 -> 84681 | N29: =N28*N28 -> 84681 | O29: =O28*O28 -> 84681 | Q29: A0p,N | R29: =R28*R28 -> 84681 | S29: =S28*S28 -> 84681 | T29: =T28*T28 -> 84681
A30: Ap,N | B30: =MIN((B28),$B$6)*IF(Eingabe!$G$5="Einreihige Ankeranordnung",MIN((B28)/2+MIN((B28)/2,$B$5)),MIN((B28),MIN((B28)/2,$B$5)+MIN((B28)/2,$B$7/2))) -> 84681 | C30: =MIN((C28),$B$6)*IF(Eingabe!$G$5="Einreihige Ankeranordnung",MIN((C28)/2+MIN((C28)/2,$B$5)),MIN((C28),MIN((C28)/2,$B$5)+MIN((C28)/2,$B$7/2))) -> 84681 | D30: =MIN((D28),$B$6)*IF(Eingabe!$G$5="Einreihige Ankeranordnung",MIN((D28)/2+MIN((D28)/2,$B$5)),MIN((D28),MIN((D28)/2,$B$5)+MIN((D28)/2,$B$7/2))) -> 84681 | E30: [mm²] | F30: Ap,N | G30: =MIN((G28),$G$6)*IF(Eingabe!$G$5="Einreihige Ankeranordnung",MIN((G28)/2+MIN((G28)/2,$G$5)),MIN((G28),MIN((G28)/2,$G$5)+MIN((G28)/2,$G$7/2))) -> 84681 | H30: =MIN((H28),$G$6)*IF(Eingabe!$G$5="Einreihige Ankeranordnung",MIN((H28)/2+MIN((H28)/2,$G$5)),MIN((H28),MIN((H28)/2,$G$5)+MIN((H28)/2,$G$7/2))) -> 84681 | I30: =MIN((I28),$G$6)*IF(Eingabe!$G$5="Einreihige Ankeranordnung",MIN((I28)/2+MIN((I28)/2,$G$5)),MIN((I28),MIN((I28)/2,$G$5)+MIN((I28)/2,$G$7/2))) -> 84681 | J30: [mm²] | L30: Ap,N | M30: =MIN((M28),$M$6)*IF(Eingabe!$G$5="Einreihige Ankeranordnung",MIN((M28)/2+MIN((M28)/2,$B$5)),MIN((M28),MIN((M28)/2,$B$5)+MIN((M28)/2,$B$7/2))) -> 84681 | N30: =MIN((N28),$M$6)*IF(Eingabe!$G$5="Einreihige Ankeranordnung",MIN((N28)/2+MIN((N28)/2,$B$5)),MIN((N28),MIN((N28)/2,$B$5)+MIN((N28)/2,$B$7/2))) -> 84681 | O30: =MIN((O28),$M$6)*IF(Eingabe!$G$5="Einreihige Ankeranordnung",MIN((O28)/2+MIN((O28)/2,$B$5)),MIN((O28),MIN((O28)/2,$B$5)+MIN((O28)/2,$B$7/2))) -> 84681 | Q30: Ap,N | R30: =MIN((R28),$M$6)*IF(Eingabe!$G$5="Einreihige Ankeranordnung",MIN((R28)/2+MIN((R28)/2,$G$5)),MIN((R28),MIN((R28)/2,$G$5)+MIN((R28)/2,$G$7/2))) -> 84681 | S30: =MIN((S28),$M$6)*IF(Eingabe!$G$5="Einreihige Ankeranordnung",MIN((S28)/2+MIN((S28)/2,$G$5)),MIN((S28),MIN((S28)/2,$G$5)+MIN((S28)/2,$G$7/2))) -> 84681 | T30: =MIN((T28),$M$6)*IF(Eingabe!$G$5="Einreihige Ankeranordnung",MIN((T28)/2+MIN((T28)/2,$G$5)),MIN((T28),MIN((T28)/2,$G$5)+MIN((T28)/2,$G$7/2))) -> 84681
A31: ψs,Np | B31: =MIN(0.7+((0.3*Eingabe!C7)/(B28/2)),1) -> 1 | C31: =MIN(0.7+((0.3*Eingabe!C7)/(C28/2)),1) -> 1 | D31: =MIN(0.7+((0.3*Eingabe!C7)/(D28/2)),1) -> 1 | E31: [-] | F31: ψs,Np | G31: =MIN(0.7+((0.3*Eingabe!C7)/(G28/2)),1) -> 1 | H31: =MIN(0.7+((0.3*Eingabe!C7)/(H28/2)),1) -> 1 | I31: =MIN(0.7+((0.3*Eingabe!C7)/(I28/2)),1) -> 1 | J31: [-] | L31: ψs,Np | M31: =MIN(0.7+((0.3*Eingabe!C7)/(M28/2)),1) -> 1 | N31: =MIN(0.7+((0.3*Eingabe!C7)/(N28/2)),1) -> 1 | O31: =MIN(0.7+((0.3*Eingabe!C7)/(O28/2)),1) -> 1 | Q31: ψs,Np | R31: =MIN(0.7+((0.3*Eingabe!C7)/(R28/2)),1) -> 1 | S31: =MIN(0.7+((0.3*Eingabe!C7)/(S28/2)),1) -> 1 | T31: =MIN(0.7+((0.3*Eingabe!C7)/(T28/2)),1) -> 1
A32: ψre,N | B32: =MIN(1,0.5+B15/200) -> 0.985 | C32: =MIN(1,0.5+C15/200) -> 0.985 | D32: =MIN(1,0.5+D15/200) -> 0.985 | E32: [-] | F32: ψre,N | G32: =MIN(1,0.5+G15/200) -> 0.985 | H32: =MIN(1,0.5+H15/200) -> 0.985 | I32: =MIN(1,0.5+I15/200) -> 0.985 | J32: [-] | L32: ψre,N | M32: =MIN(1,0.5+M15/200) -> 0.985 | N32: =MIN(1,0.5+N15/200) -> 0.985 | O32: =MIN(1,0.5+O15/200) -> 0.985 | Q32: ψre,N | R32: =MIN(1,0.5+R15/200) -> 0.985 | S32: =MIN(1,0.5+S15/200) -> 0.985 | T32: =MIN(1,0.5+T15/200) -> 0.985
A33: ψc, C30/37 | B33: 1.04 | C33: 1.04 | D33: 1.04 | E33: [-] | F33: ψc, C30/37 | G33: 1.04 | H33: 1.04 | I33: 1.04 | J33: [-] | L33: ψc, C30/37 | M33: 1.04 | N33: 1.04 | O33: 1.04 | Q33: ψc, C30/37 | R33: 1.04 | S33: 1.04 | T33: 1.04
A34: ψc, C35/45 | B34: 1.055 | C34: 1.055 | D34: 1.055 | G34: 1.055 | H34: 1.055 | I34: 1.055 | M34: 1.055 | N34: 1.055 | O34: 1.055 | R34: 1.055 | S34: 1.055 | T34: 1.055
A35: ψc, C40/50 | B35: 1.07 | C35: 1.07 | D35: 1.07 | E35: [-] | F35: ψc, C40/50 | G35: 1.07 | H35: 1.07 | I35: 1.07 | J35: [-] | L35: ψc, C40/50 | M35: 1.07 | N35: 1.07 | O35: 1.07 | Q35: ψc, C40/50 | R35: 1.07 | S35: 1.07 | T35: 1.07
A36: ψc, C45/55 | B36: 1.085 | C36: 1.085 | D36: 1.085 | G36: 1.085 | H36: 1.085 | I36: 1.085 | M36: 1.085 | N36: 1.085 | O36: 1.085 | R36: 1.085 | S36: 1.085 | T36: 1.085
A37: ψc, C50/60 | B37: 1.1 | C37: 1.1 | D37: 1.1 | E37: [-] | F37: ψc, C50/60 | G37: 1.1 | H37: 1.1 | I37: 1.1 | J37: [-] | L37: ψc, C50/60 | M37: 1.1 | N37: 1.1 | O37: 1.1 | Q37: ψc, C50/60 | R37: 1.1 | S37: 1.1 | T37: 1.1
A38: ψc, maßgebend | B38: =(IF($B3="20",1,IF(B3="25",1,IF(B3="30",1.04,IF(B3="35",1.055,IF(B3="40",1.07,IF(B3="45",1.085,IF(B3="50",1.1,"Fehler")))))))) -> 1.04 | C38: =$B$38 -> 1.04 | D38: =$B$38 -> 1.04 | G38: =$B$38 -> 1.04 | H38: =$B$38 -> 1.04 | I38: =$B$38 -> 1.04 | M38: =$B$38 -> 1.04 | N38: =$B$38 -> 1.04 | O38: =$B$38 -> 1.04 | R38: =$B$38 -> 1.04 | S38: =$B$38 -> 1.04 | T38: =$B$38 -> 1.04
A40: γMp | B40: =(IF(OR(Eingabe!C24="Anprall KFZ-Rückhaltesystem",Eingabe!C24="Anprall Schrammbord"),1.2,1.5))*1 -> 1.5 | F40: γMp | G40: =(IF(OR(Eingabe!C24="Anprall KFZ-Rückhaltesystem",Eingabe!C24="Anprall Schrammbord"),1.2,1.5))*1 -> 1.5 | L40: γMp | M40: =(IF(OR(Eingabe!C24="Anprall KFZ-Rückhaltesystem",Eingabe!C24="Anprall Schrammbord"),1.2,1.5))*1 -> 1.5 | Q40: γMp | R40: =(IF(OR(Eingabe!C24="Anprall KFZ-Rückhaltesystem",Eingabe!C24="Anprall Schrammbord"),1.2,1.5))*1 -> 1.5
A41: NRd,p | B41: =(IF(B3="20",1,IF(B3="25",1,IF(B3="30",1.04,IF(B3="35",1.055,IF(B3="40",1.07,IF(B3="45",1.085,IF(B3="50",1.1,"Fehler"))))))))*B27*B30*B31*B32/B29/B40 -> 33.29813428 | C41: =(IF(B3="20",1,IF(B3="25",1,IF(B3="30",1.04,IF(B3="35",1.055,IF(B3="40",1.07,IF(B3="45",1.085,IF(B3="50",1.1,"Fehler"))))))))*C27*C30*C31*C32/C29/B40 -> 41.62266785 | D41: =(IF(B3="20",1,IF(B3="25",1,IF(B3="30",1.04,IF(B3="35",1.055,IF(B3="40",1.07,IF(B3="45",1.085,IF(B3="50",1.1,"Fehler"))))))))*D27*D30*D31*D32/D29/B40 -> 49.94720142 | F41: NRd,p | G41: =(IF(B3="20",1,IF(B3="25",1,IF(B3="30",1.04,IF(B3="35",1.055,IF(B3="40",1.07,IF(B3="45",1.085,IF(B3="50",1.1,"Fehler"))))))))*G27*G30*G31*G32/G29/G40 -> 33.29813428 | H41: =(IF(B3="20",1,IF(B3="25",1,IF(B3="30",1.04,IF(B3="35",1.055,IF(B3="40",1.07,IF(B3="45",1.085,IF(B3="50",1.1,"Fehler"))))))))*H27*H30*H31*H32/H29/G40 -> 41.62266785 | I41: =(IF(B3="20",1,IF(B3="25",1,IF(B3="30",1.04,IF(B3="35",1.055,IF(B3="40",1.07,IF(B3="45",1.085,IF(B3="50",1.1,"Fehler"))))))))*I27*I30*I31*I32/I29/G40 -> 49.94720142 | L41: NRd,p | M41: =(IF(M3="20",1,IF(M3="25",1,IF(M3="30",1.04,IF(M3="35",1.055,IF(M3="40",1.07,IF(M3="45",1.085,IF(M3="50",1.1,"Fehler"))))))))*M27*M30*M31*M32/M29/M40 -> 33.29813428 | N41: =(IF(M3="20",1,IF(M3="25",1,IF(M3="30",1.04,IF(M3="35",1.055,IF(M3="40",1.07,IF(M3="45",1.085,IF(M3="50",1.1,"Fehler"))))))))*N27*N30*N31*N32/N29/M40 -> 41.62266785 | O41: =(IF(M3="20",1,IF(M3="25",1,IF(M3="30",1.04,IF(M3="35",1.055,IF(M3="40",1.07,IF(M3="45",1.085,IF(M3="50",1.1,"Fehler"))))))))*O27*O30*O31*O32/O29/M40 -> 49.94720142 | Q41: NRd,p | R41: =(IF(R3="20",1,IF(R3="25",1,IF(R3="30",1.04,IF(R3="35",1.055,IF(R3="40",1.07,IF(R3="45",1.085,IF(R3="50",1.1,"Fehler"))))))))*R27*R30*R31*R32/R29/R40 -> 33.29813428 | S41: =(IF(R3="20",1,IF(R3="25",1,IF(R3="30",1.04,IF(R3="35",1.055,IF(R3="40",1.07,IF(R3="45",1.085,IF(R3="50",1.1,"Fehler"))))))))*S27*S30*S31*S32/S29/R40 -> 41.62266785 | T41: =(IF(R3="20",1,IF(R3="25",1,IF(R3="30",1.04,IF(R3="35",1.055,IF(R3="40",1.07,IF(R3="45",1.085,IF(R3="50",1.1,"Fehler"))))))))*T27*T30*T31*T32/T29/R40 -> 49.94720142
A42: Betonausbruch | F42: Betonausbruch | L42: Betonausbruch | Q42: Betonausbruch
A43: N0Rk,c | B43: =7.7*SQRT($B$3)*B15^1.5/1000 -> 40.29108419 | C43: =7.7*SQRT($B$3)*C15^1.5/1000 -> 40.29108419 | D43: =7.7*SQRT($B$3)*D15^1.5/1000 -> 40.29108419 | E43: [kN] | F43: N0Rk,c | G43: =7.7*SQRT($G$3)*G15^1.5/1000 -> 40.29108419 | H43: =7.7*SQRT($G$3)*H15^1.5/1000 -> 40.29108419 | I43: =7.7*SQRT($G$3)*I15^1.5/1000 -> 40.29108419 | J43: [kN] | L43: N0Rk,c | M43: =7.7*SQRT($M$3)*M15^1.5/1000 -> 40.29108419 | N43: =7.7*SQRT($M$3)*N15^1.5/1000 -> 40.29108419 | O43: =7.7*SQRT($M$3)*O15^1.5/1000 -> 40.29108419 | Q43: N0Rk,c | R43: =7.7*SQRT($R$3)*R15^1.5/1000 -> 40.29108419 | S43: =7.7*SQRT($R$3)*S15^1.5/1000 -> 40.29108419 | T43: =7.7*SQRT($R$3)*T15^1.5/1000 -> 40.29108419
A44: A0c,N | B44: =(3*B15)^2 -> 84681 | C44: =(3*C15)^2 -> 84681 | D44: =(3*D15)^2 -> 84681 | E44: [mm²] | F44: A0c,N | G44: =(3*G15)^2 -> 84681 | H44: =(3*H15)^2 -> 84681 | I44: =(3*I15)^2 -> 84681 | J44: [mm²] | L44: A0c,N | M44: =(3*M15)^2 -> 84681 | N44: =(3*N15)^2 -> 84681 | O44: =(3*O15)^2 -> 84681 | Q44: A0c,N | R44: =(3*R15)^2 -> 84681 | S44: =(3*S15)^2 -> 84681 | T44: =(3*T15)^2 -> 84681
A45: Ac,N | B45: =MIN((3*B15),$B$6)*IF(Eingabe!$G$5="Einreihige Ankeranordnung",MIN((3*B15)/2+MIN((3*B15)/2,$B$5)),MIN((3*B15),MIN((3*B15)/2,$B$5)+MIN((3*B15)/2,$B$7/2))) -> 84681 | C45: =MIN((3*C15),$B$6)*IF(Eingabe!$G$5="Einreihige Ankeranordnung",MIN((3*C15)/2+MIN((3*C15)/2,$B$5)),MIN((3*C15),MIN((3*C15)/2,$B$5)+MIN((3*C15)/2,$B$7/2))) -> 84681 | D45: =MIN((3*D15),$B$6)*IF(Eingabe!$G$5="Einreihige Ankeranordnung",MIN((3*D15)/2+MIN((3*D15)/2,$B$5)),MIN((3*D15),MIN((3*D15)/2,$B$5)+MIN((3*D15)/2,$B$7/2))) -> 84681 | E45: [mm²] | F45: Ac,N | G45: =MIN((3*G15),$G$6)*IF(Eingabe!$G$5="Einreihige Ankeranordnung",MIN((3*G15)/2+MIN((3*G15)/2,$G$5)),MIN((3*G15),MIN((3*G15)/2,$G$5)+MIN((3*G15)/2,$G$7/2))) -> 84681 | H45: =MIN((3*H15),$G$6)*IF(Eingabe!$G$5="Einreihige Ankeranordnung",MIN((3*H15)/2+MIN((3*H15)/2,$G$5)),MIN((3*H15),MIN((3*H15)/2,$G$5)+MIN((3*H15)/2,$G$7/2))) -> 84681 | I45: =MIN((3*I15),$G$6)*IF(Eingabe!$G$5="Einreihige Ankeranordnung",MIN((3*I15)/2+MIN((3*I15)/2,$G$5)),MIN((3*I15),MIN((3*I15)/2,$G$5)+MIN((3*I15)/2,$G$7/2))) -> 84681 | J45: [mm²] | L45: Ac,N | M45: =MIN((3*M15),$M$6)*IF(Eingabe!$G$5="Einreihige Ankeranordnung",MIN((3*M15)/2+MIN((3*M15)/2,$B$5)),MIN((3*M15),MIN((3*M15)/2,$B$5)+MIN((3*M15)/2,$B$7/2))) -> 84681 | N45: =MIN((3*N15),$M$6)*IF(Eingabe!$G$5="Einreihige Ankeranordnung",MIN((3*N15)/2+MIN((3*N15)/2,$B$5)),MIN((3*N15),MIN((3*N15)/2,$B$5)+MIN((3*N15)/2,$B$7/2))) -> 84681 | O45: =MIN((3*O15),$M$6)*IF(Eingabe!$G$5="Einreihige Ankeranordnung",MIN((3*O15)/2+MIN((3*O15)/2,$B$5)),MIN((3*O15),MIN((3*O15)/2,$B$5)+MIN((3*O15)/2,$B$7/2))) -> 84681 | Q45: Ac,N | R45: =MIN((3*R15),$M$6)*IF(Eingabe!$G$5="Einreihige Ankeranordnung",MIN((3*R15)/2+MIN((3*R15)/2,$G$5)),MIN((3*R15),MIN((3*R15)/2,$G$5)+MIN((3*R15)/2,$G$7/2))) -> 84681 | S45: =MIN((3*S15),$M$6)*IF(Eingabe!$G$5="Einreihige Ankeranordnung",MIN((3*S15)/2+MIN((3*S15)/2,$G$5)),MIN((3*S15),MIN((3*S15)/2,$G$5)+MIN((3*S15)/2,$G$7/2))) -> 84681 | T45: =MIN((3*T15),$M$6)*IF(Eingabe!$G$5="Einreihige Ankeranordnung",MIN((3*T15)/2+MIN((3*T15)/2,$G$5)),MIN((3*T15),MIN((3*T15)/2,$G$5)+MIN((3*T15)/2,$G$7/2))) -> 84681
A46: ψs,N | B46: =MIN(1,0.7+0.3*$B$5/(1.5*B15)) -> 1 | C46: =MIN(1,0.7+0.3*$B$5/(1.5*C15)) -> 1 | D46: =MIN(1,0.7+0.3*$B$5/(1.5*D15)) -> 1 | E46: [-] | F46: ψs,N | G46: =MIN(1,0.7+0.3*$G$5/(1.5*G15)) -> 1 | H46: =MIN(1,0.7+0.3*$G$5/(1.5*H15)) -> 1 | I46: =MIN(1,0.7+0.3*$G$5/(1.5*I15)) -> 1 | J46: [-] | L46: ψs,N | M46: =MIN(1,0.7+0.3*$B$5/(1.5*M15)) -> 1 | N46: =MIN(1,0.7+0.3*$B$5/(1.5*N15)) -> 1 | O46: =MIN(1,0.7+0.3*$B$5/(1.5*O15)) -> 1 | Q46: ψs,N | R46: =MIN(1,0.7+0.3*$G$5/(1.5*R15)) -> 1 | S46: =MIN(1,0.7+0.3*$G$5/(1.5*S15)) -> 1 | T46: =MIN(1,0.7+0.3*$G$5/(1.5*T15)) -> 1
A47: ψre,N | B47: =MIN(1,0.5+B15/200) -> 0.985 | C47: =MIN(1,0.5+C15/200) -> 0.985 | D47: =MIN(1,0.5+D15/200) -> 0.985 | E47: [-] | F47: ψre,N | G47: =MIN(1,0.5+G15/200) -> 0.985 | H47: =MIN(1,0.5+H15/200) -> 0.985 | I47: =MIN(1,0.5+I15/200) -> 0.985 | J47: [-] | L47: ψre,N | M47: =MIN(1,0.5+M15/200) -> 0.985 | N47: =MIN(1,0.5+N15/200) -> 0.985 | O47: =MIN(1,0.5+O15/200) -> 0.985 | Q47: ψre,N | R47: =MIN(1,0.5+R15/200) -> 0.985 | S47: =MIN(1,0.5+S15/200) -> 0.985 | T47: =MIN(1,0.5+T15/200) -> 0.985
A48: ψec,N | B48: 1 | C48: 1 | D48: 1 | E48: [-] | F48: ψec,N | G48: 1 | H48: 1 | I48: 1 | J48: [-] | L48: ψec,N | M48: 1 | N48: 1 | O48: 1 | Q48: ψec,N | R48: 1 | S48: 1 | T48: 1
A50: NRk,c | B50: =B43*B45/B44*B46*B47*B48 -> 39.68671793 | C50: =C43*C45/C44*C46*C47*C48 -> 39.68671793 | D50: =D43*D45/D44*D46*D47*D48 -> 39.68671793 | E50: [kN] | F50: NRk,c | G50: =G43*G45/G44*G46*G47*G48 -> 39.68671793 | H50: =H43*H45/H44*H46*H47*H48 -> 39.68671793 | I50: =I43*I45/I44*I46*I47*I48 -> 39.68671793 | J50: [kN] | L50: NRk,c | M50: =M43*M45/M44*M46*M47*M48 -> 39.68671793 | N50: =N43*N45/N44*N46*N47*N48 -> 39.68671793 | O50: =O43*O45/O44*O46*O47*O48 -> 39.68671793 | Q50: NRk,c | R50: =R43*R45/R44*R46*R47*R48 -> 39.68671793 | S50: =S43*S45/S44*S46*S47*S48 -> 39.68671793 | T50: =T43*T45/T44*T46*T47*T48 -> 39.68671793
A51: γMc | B51: =(IF(OR(Eingabe!C24="Anprall KFZ-Rückhaltesystem",Eingabe!C24="Anprall Schrammbord"),1.2,1.5))*1 -> 1.5 | E51: [-] | F51: γMc | G51: =(IF(OR(Eingabe!C24="Anprall KFZ-Rückhaltesystem",Eingabe!C24="Anprall Schrammbord"),1.2,1.5))*1 -> 1.5 | J51: [-] | L51: γMc | M51: =(IF(OR(Eingabe!C24="Anprall KFZ-Rückhaltesystem",Eingabe!C24="Anprall Schrammbord"),1.2,1.5))*1 -> 1.5 | Q51: γMc | R51: =(IF(OR(Eingabe!C24="Anprall KFZ-Rückhaltesystem",Eingabe!C24="Anprall Schrammbord"),1.2,1.5))*1 -> 1.5
A52: NRd,c | B52: =B50/$B$51 -> 26.45781195 | C52: =C50/$B$51 -> 26.45781195 | D52: =D50/$B$51 -> 26.45781195 | E52: [kN] | F52: NRd,c | G52: =G50/$G$51 -> 26.45781195 | H52: =H50/$G$51 -> 26.45781195 | I52: =I50/$G$51 -> 26.45781195 | J52: [kN] | L52: NRd,c | M52: =M50/$M$51 -> 26.45781195 | N52: =N50/$M$51 -> 26.45781195 | O52: =O50/$M$51 -> 26.45781195 | Q52: NRd,c | R52: =R50/$R$51 -> 26.45781195 | S52: =S50/$R$51 -> 26.45781195 | T52: =T50/$R$51 -> 26.45781195
M58: Dübel 1 | R58: Dübel 2
M59: Kappenanker HPA M16 | N59: Kappenanker HPA M20 | O59: Kappenanker HPA M24 | R59: Kappenanker HPA M16 | S59: Kappenanker HPA M20 | T59: Kappenanker HPA M24
A61: NRd,c,Mitte | B61: =MIN(B52,B41) -> 26.45781195 | C61: =MIN(C41,C52) -> 26.45781195 | D61: =MIN(D41,D52) -> 26.45781195 | F61: NRd | G61: =MIN(G41,G52) -> 26.45781195 | H61: =MIN(H41,H52) -> 26.45781195 | I61: =MIN(I41,I52) -> 26.45781195 | L61: NRd,Rand | M61: =MIN(M52,M41) -> 26.45781195 | N61: =MIN(N41,N52) -> 26.45781195 | O61: =MIN(O41,O52) -> 26.45781195 | Q61: NRd | R61: =MIN(R41,R52) -> 26.45781195 | S61: =MIN(S41,S52) -> 26.45781195 | T61: =MIN(T41,T52) -> 26.45781195
A62: NSd,Mitte | B62: =Eingabe!O20 -> 12.59089999 | F62: NSd,Mitte | G62: =Eingabe!P20 -> 9.396194019 | L62: NSd,Rand | M62: =Eingabe!O25 -> 12.59089999 | Q62: NSd,Rand | R62: =Eingabe!P25 -> 9.396194019
A63: Ausn. N-Stahl, Mitte | B63: =$B$62/B25 -> 0.2142400635 | C63: =$B$62/C25 -> 0.1372885305 | D63: =$B$62/D25 -> 0.09528524068 | F63: Ausnutzung N-Stahl, Mitte 2.R. | G63: =$G$62/G25 -> 0.1598806444 | H63: =$G$62/H25 -> 0.1024541272 | I63: =$G$62/I25 -> 0.07110838857 | L63: Ausn. N-Stahl,Rand 1.R. | M63: =$M$62/M25 -> 0.2142400635 | N63: =$M$62/N25 -> 0.1372885305 | O63: =$M$62/O25 -> 0.09528524068 | Q63: Ausn. N-Stahl,Rand 2.R. | R63: =$R$62/R25 -> 0.1598806444 | S63: =$R$62/S25 -> 0.1024541272 | T63: =$R$62/T25 -> 0.07110838857
A64: Ausn. N-Beton, Mitte | B64: =$B$62/B61 -> 0.4758859126 | C64: =$B$62/C61 -> 0.4758859126 | D64: =$B$62/D61 -> 0.4758859126 | F64: Ausnutzung N-Beton, Mitte 2.R. | G64: =$G$62/G61 -> 0.3551387408 | H64: =$G$62/H61 -> 0.3551387408 | I64: =$G$62/I61 -> 0.3551387408 | L64: Ausn. N-Beton,Rand 1.R. | M64: =$M$62/M61 -> 0.4758859126 | N64: =$M$62/N61 -> 0.4758859126 | O64: =$M$62/O61 -> 0.4758859126 | Q64: Ausn. N-Beton,Rand 2.R. | R64: =$R$62/R61 -> 0.3551387408 | S64: =$R$62/S61 -> 0.3551387408 | T64: =$R$62/T61 -> 0.3551387408
A65: Ausn. Vy-Stahl o. H. Mitte | B65: =B70/B66 -> 1.106481636 | C65: =B70/C66 -> 0.7093553182 | D65: =B70/D66 -> 0.4924213366 | F65: Ausn. Vy-Stahl o. H. Mitte | G65: =G70/G66 -> 1.106481636 | H65: =G70/H66 -> 0.7093553182 | I65: =G70/I66 -> 0.4924213366 | L65: Ausn. Vy-Stahl o. H. Rand | M65: =M70/M66 -> 1.157637866 | N65: =M70/N66 -> 0.7421511121 | O65: =M70/O66 -> 0.5151875699 | Q65: Ausn. Vy-Stahl o. H. Rand | R65: =R70/R66 -> 1.157637866 | S65: =R70/S66 -> 0.7421511121 | T65: =R70/T66 -> 0.5151875699
A66: ="V Stahl m. H. a3= "&Eingabe!AE50&" mm" -> V Stahl m. H. a3= 20 mm | B66: 35.26 | C66: 55 | D66: 79.23 | F66: ="V Stahl m. H. a3 = "&Eingabe!AE50&" mm" -> V Stahl m. H. a3 = 20 mm | G66: 35.26 | H66: 55 | I66: 79.23 | L66: ="V Stahl m. H. a3 = "&Eingabe!AE50&" mm" -> V Stahl m. H. a3 = 20 mm | M66: 35.26 | N66: 55 | O66: 79.23 | Q66: ="V Stahl m. H. a3 = "&Eingabe!AE50&" mm" -> V Stahl m. H. a3 = 20 mm | R66: 35.26 | S66: 55 | T66: 79.23
A67: MRk,s | B67: =IF((233*(1-(B62/B25)))<0,0.1,(233*(1-(B62/B25)))) -> 183.0820652 | C67: =IF((454*(1-(B62/C25)))<0,0.1,(454*(1-(B62/C25)))) -> 391.6710072 | D67: =786*(1-(B62/D25)) -> 711.1058008 | E67: [Nm] | F67: MRk,s | G67: =IF((233*(1-(G62/G25)))<0,0.1,(233*(1-(G62/G25)))) -> 195.7478099 | H67: =IF((454*(1-(G62/H25)))<0,0.01,(454*(1-(G62/H25)))) -> 407.4858262 | I67: =786*(1-(G62/I25)) -> 730.1088066 | J67: [Nm] | L67: MRk,s | M67: =IF((233*(1-(M62/M25)))<0,0.1,(233*(1-(M62/M25)))) -> 183.0820652 | N67: =IF((454*(1-(M62/N25)))<0,0.1,(454*(1-(M62/N25)))) -> 391.6710072 | O67: =786*(1-(M62/O25)) -> 711.1058008 | Q67: MRk,s | R67: =IF((233*(1-(R62/R25)))<0,0.1,(233*(1-(R62/R25)))) -> 195.7478099 | S67: =IF((454*(1-(R62/S25)))<0,0.1,(454*(1-(R62/S25)))) -> 407.4858262 | T67: =786*(1-(R62/T25)) -> 730.1088066 | U67: [Nm]
A68: γMs,V | B68: 1.56 | E68: [-] | F68: γMs,V | G68: 1.56 | J68: [-] | L68: γMs,V | M68: 1.56 | Q68: γMs,V | R68: 1.56 | U68: [-]
A69: VRd,s | B69: =IF(Eingabe!E80=0,B66,MIN(IF(Eingabe!C3="Nachträgliche Kappenverankerung",$B$9*B67*2/B68/(B10),$B$9*B67*2/B68/(B10+10)),35.26)) -> 35.26 | C69: =IF(Eingabe!E80=0,C66,MIN(IF(Eingabe!C3="Nachträgliche Kappenverankerung",$B$9*C67*2/B68/(B10),$B$9*C67*2/B68/(B10+10)),55)) -> 55 | D69: =IF(Eingabe!E80=0,D66,MIN(IF(Eingabe!C3="Nachträgliche Kappenverankerung",$B$9*D67*2/B68/(B10),$B$9*D67*2/B68/(B10+10)),79.23)) -> 79.23 | E69: [kN] | F69: VRd,s | G69: =IF(Eingabe!E80=0,G66,MIN(IF(Eingabe!C3="Nachträgliche Kappenverankerung",$G$9*G67*2/G68/(B10),$G$9*G67*2/G68/(B10+10)),35.26)) -> 35.26 | H69: =IF(Eingabe!E80=0,H66,MIN(IF(Eingabe!C3="Nachträgliche Kappenverankerung",$G$9*H67*2/G68/(B10),$G$9*H67*2/G68/(B10+10)),55)) -> 55 | I69: =IF(Eingabe!E80=0,I66,MIN(IF(Eingabe!C3="Nachträgliche Kappenverankerung",$G$9*I67*2/G68/(B10),$G$9*I67*2/G68/(B10+10)),79.23)) -> 79.23 | J69: [kN] | L69: VRd,s | M69: =IF(Eingabe!E80=0,M66,MIN(IF(Eingabe!C3="Nachträgliche Kappenverankerung",$B$9*M67*2/M68/(B10),$B$9*M67*2/M68/(B10+10)),35.26)) -> 35.26 | N69: =IF(Eingabe!E80=0,N66,MIN(IF(Eingabe!C3="Nachträgliche Kappenverankerung",$B$9*N67*2/M68/(B10),$B$9*N67*2/M68/(B10+10)),55)) -> 55 | O69: =IF(Eingabe!E80=0,O66,MIN(IF(Eingabe!C3="Nachträgliche Kappenverankerung",$B$9*O67*2/M68/(B10),$B$9*O67*2/M68/(B10+10)),79.23)) -> 79.23 | Q69: VRd,s | R69: =IF(Eingabe!E80=0,R66,MIN(IF(Eingabe!C3="Nachträgliche Kappenverankerung",$G$9*R67*2/R68/(B10),$G$9*R67*2/R68/(B10+10)),35.26)) -> 35.26 | S69: =IF(Eingabe!E80=0,S66,MIN(IF(Eingabe!C3="Nachträgliche Kappenverankerung",$G$9*S67*2/R68/(B10),$G$9*S67*2/R68/(B10+10)),55)) -> 55 | T69: =IF(Eingabe!E80=0,T66,MIN(IF(Eingabe!C3="Nachträgliche Kappenverankerung",$G$9*T67*2/R68/(B10),$G$9*T67*2/R68/(B10+10)),79.23)) -> 79.23 | U69: [kN]
A70: VEd,s,y; Mitte | B70: =IF(Eingabe!C33="Kappenverankerung HPA",Eingabe!O21,Eingabe!Q21) -> 39.0145425 | F70: VSd,s,y; Mitte | G70: =IF(Eingabe!C33="Kappenverankerung HPA",Eingabe!P21,Eingabe!R21) -> 39.0145425 | L70: VSd,s,x/y; Rand | M70: =IF(Eingabe!C33="Kappenverankerung HPA",Eingabe!O26,Eingabe!Q26) -> 40.81831117 | Q70: VSd,s,x/y; Rand | R70: =IF(Eingabe!C33="Kappenverankerung HPA",Eingabe!P26,Eingabe!R26) -> 40.81831117
A71: Ausn. Vy-Stahl m. H. Mitte | B71: =$B$70/B69 -> 1.106481636 | C71: =$B$70/C69 -> 0.7093553182 | D71: =$B$70/D69 -> 0.4924213366 | F71: Ausn. Mitte Vy Stahl | G71: =$G$70/G69 -> 1.106481636 | H71: =$G$70/H69 -> 0.7093553182 | I71: =$G$70/I69 -> 0.4924213366 | L71: Ausn. Rand Vxy Stahl 1.R. | M71: =$M$70/M69 -> 1.157637866 | N71: =$M$70/N69 -> 0.7421511121 | O71: =$M$70/O69 -> 0.5151875699 | Q71: Ausn. Rand Vxy Stahl 2.R | R71: =$R$70/R69 -> 1.157637866 | S71: =$R$70/S69 -> 0.7421511121 | T71: =$R$70/T69 -> 0.5151875699
A72: Betonausbruch auf der lastabgewandten Seite | F72: Betonausbruch auf der lastabgewandten Seite | L72: Betonausbruch auf der lastabgewandten Seite | Q72: Betonausbruch auf der lastabgewandten Seite
A73: k | B73: 2 | E73: [-] | F73: k | G73: 2 | J73: [-] | L73: k | M73: 2 | Q73: k | R73: 2
A74: VRk,cp | B74: =MIN(($B$73*B50),($B$73*B41*B40)) -> 79.37343585 | C74: =MIN(($B$73*C50),($B$73*C41*B40)) -> 79.37343585 | D74: =MIN(($B$73*D50),($B$73*D41*B40)) -> 79.37343585 | F74: VRk,cp | G74: =MIN(($B$73*G50),($B$73*G41*G40)) -> 79.37343585 | H74: =MIN(($B$73*H50),($B$73*H41*G40)) -> 79.37343585 | I74: =MIN(($B$73*I50),($B$73*I41*G40)) -> 79.37343585 | L74: VRk,cp | M74: =MIN(($M$73*M50),($M$73*M41*M40)) -> 79.37343585 | N74: =MIN(($M$73*N50),($M$73*N41*M40)) -> 79.37343585 | O74: =MIN(($M$73*O50),($M$73*O41*M40)) -> 79.37343585 | Q74: VRk,cp | R74: =MIN(($R$73*R50),($R$73*R41*R40)) -> 79.37343585 | S74: =MIN(($R$73*S50),($R$73*S41*R40)) -> 79.37343585 | T74: =MIN(($R$73*T50),($R$73*T41*R40)) -> 79.37343585
A75: γMcp | B75: =(IF(OR(Eingabe!C24="Anprall KFZ-Rückhaltesystem",Eingabe!C24="Anprall Schrammbord"),1.2,1.5))*1 -> 1.5 | E75: [-] | F75: γMcp | G75: =(IF(OR(Eingabe!C24="Anprall KFZ-Rückhaltesystem",Eingabe!C24="Anprall Schrammbord"),1.2,1.5))*1 -> 1.5 | J75: [-] | L75: γMcp | M75: =(IF(OR(Eingabe!C24="Anprall KFZ-Rückhaltesystem",Eingabe!C24="Anprall Schrammbord"),1.2,1.5))*1 -> 1.5 | Q75: γMcp | R75: =(IF(OR(Eingabe!C24="Anprall KFZ-Rückhaltesystem",Eingabe!C24="Anprall Schrammbord"),1.2,1.5))*1 -> 1.5 | W75: Nachweis für Bewehrungsstahl
A76: VRd,cp | B76: =B74/$B$75 -> 52.9156239 | C76: =C74/$B$75 -> 52.9156239 | D76: =D74/$B$75 -> 52.9156239 | E76: [kN] | F76: VRd,cp | G76: =G74/$G$75 -> 52.9156239 | H76: =H74/$G$75 -> 52.9156239 | I76: =I74/$G$75 -> 52.9156239 | J76: [kN] | L76: VRd,cp | M76: =M74/$M$75 -> 52.9156239 | N76: =N74/$M$75 -> 52.9156239 | O76: =O74/$M$75 -> 52.9156239 | Q76: VRd,cp | R76: =R74/$R$75 -> 52.9156239 | S76: =S74/$R$75 -> 52.9156239 | T76: =T74/$R$75 -> 52.9156239
A77: Betonkantenbruch: c1 | B77: =B5 -> 1350 | C77: =B5 -> 1350 | D77: =B5 -> 1350 | E77: [mm] | F77: Betonkantenbruch: c1 | G77: =$G$5 -> 1010 | H77: =$G$5 -> 1010 | I77: =$G$5 -> 1010 | J77: [mm] | L77: Betonkantenbr: c1 (a = M7) | M77: =$B$5 -> 1350 | N77: =$B$5 -> 1350 | O77: =$B$5 -> 1350 | Q77: Betonkantenbr: c1 (a = M7) | R77: =$G$5 -> 1010 | S77: =$G$5 -> 1010 | T77: =$G$5 -> 1010 | W77: Streckgrenze Baustahl | Y77: 550 | Z77: [N/mm²]
A78: α | B78: =0.1*(((MIN(B15,12*16))/B77)^0.5) -> 0.02680519574 | C78: =0.1*(((MIN(C15,12*20))/C77)^0.5) -> 0.02680519574 | D78: =0.1*(((MIN(D15,12*24))/D77)^0.5) -> 0.02680519574 | E78: [-] | F78: α | G78: =0.1*(((MIN(G15,12*16))/G77)^0.5) -> 0.03099025717 | H78: =0.1*(((MIN(H15,12*20))/H77)^0.5) -> 0.03099025717 | I78: =0.1*(((MIN(I15,12*24))/I77)^0.5) -> 0.03099025717 | J78: [-] | L78: α | M78: =0.1*(((MIN(M15,12*16))/M77)^0.5) -> 0.02680519574 | N78: =0.1*(((MIN(N15,12*20))/N77)^0.5) -> 0.02680519574 | O78: =0.1*(((MIN(O15,12*24))/O77)^0.5) -> 0.02680519574 | Q78: α | R78: =0.1*(((MIN(R15,12*16))/R77)^0.5) -> 0.03099025717 | S78: =0.1*(((MIN(S15,12*20))/S77)^0.5) -> 0.03099025717 | T78: =0.1*(((MIN(T15,12*24))/T77)^0.5) -> 0.03099025717 | U78: [-] | W78: Teilsicherheitsbeiwert gR | Y78: 1.15 | Z78: [-]
A79: β | B79: =0.1*((16/B77)^0.2) -> 0.04118672337 | C79: =0.1*((20/C77)^0.2) -> 0.043066467 | D79: =0.1*((24/D77)^0.2) -> 0.04466583884 | E79: [-] | F79: β | G79: =0.1*((16/G77)^0.2) -> 0.04364753499 | H79: =0.1*((20/H77)^0.2) -> 0.04563958896 | I79: =0.1*((24/I77)^0.2) -> 0.04733451958 | J79: [-] | L79: β | M79: =0.1*((16/M77)^0.2) -> 0.04118672337 | N79: =0.1*((20/N77)^0.2) -> 0.043066467 | O79: =0.1*((24/O77)^0.2) -> 0.04466583884 | Q79: β | R79: =0.1*((16/R77)^0.2) -> 0.04364753499 | S79: =0.1*((20/S77)^0.2) -> 0.04563958896 | T79: =0.1*((24/T77)^0.2) -> 0.04733451958 | U79: [-] | W79: VSd / m | Y79: =Eingabe!C26 -> 87.8 | Z79: [kN/m]
A80: V0Rk,c | B80: =1.7*16^B78*MIN(B15,12*16)^B79*SQRT($B$3)*$B$77^1.5/1000 -> 600.6417152 | C80: =1.7*20^C78*MIN(C15,12*20)^C79*SQRT($B$3)*$C$77^1.5/1000 -> 609.4636447 | D80: =1.7*24^D78*MIN(D15,12*24)^D79*SQRT($B$3)*$D$77^1.5/1000 -> 616.9470047 | E80: [kN] | F80: V0Rk,c | G80: =1.7*16^G78*MIN(G15,12*16)^G79*SQRT($G$3)*$G$77^1.5/1000 -> 397.6722497 | H80: =1.7*20^H78*MIN(H15,12*20)^H79*SQRT($G$3)*$H$77^1.5/1000 -> 404.0976351 | I80: =1.7*24^I78*MIN(I15,12*24)^I79*SQRT($G$3)*$I$77^1.5/1000 -> 409.5506281 | J80: [kN] | L80: V0Rk,c | M80: =1.7*16^M78*MIN(M15,12*16)^M79*SQRT($B$3)*$B$77^1.5/1000 -> 600.6417152 | N80: =1.7*20^N78*MIN(N15,12*20)^N79*SQRT($B$3)*$C$77^1.5/1000 -> 609.4636447 | O80: =1.7*24^O78*MIN(O15,12*24)^O79*SQRT($B$3)*$D$77^1.5/1000 -> 616.9470047 | Q80: V0Rk,c | R80: =1.7*16^R78*MIN(R15,12*16)^R79*SQRT($G$3)*$G$77^1.5/1000 -> 397.6722497 | S80: =1.7*20^S78*MIN(S15,12*20)^S79*SQRT($G$3)*$H$77^1.5/1000 -> 404.0976351 | T80: =1.7*24^T78*MIN(T15,12*24)^T79*SQRT($G$3)*$I$77^1.5/1000 -> 409.5506281 | U80: [kN] | W80: as | Y80: =Y79*10/Y77*Y78 -> 1.835818182 | Z80: [cm²/m]
A81: A0c,V | B81: =4.5*B77*B77 -> 8201250 | C81: =4.5*C77*C77 -> 8201250 | D81: =4.5*D77*D77 -> 8201250 | E81: [mm²] | F81: A0c,V | G81: =4.5*G77*G77 -> 4590450 | H81: =4.5*H77*H77 -> 4590450 | I81: =4.5*I77*I77 -> 4590450 | J81: [mm²] | L81: A0c,V | M81: =4.5*M77*M77 -> 8201250 | N81: =4.5*N77*N77 -> 8201250 | O81: =4.5*O77*O77 -> 8201250 | Q81: A0c,V | R81: =4.5*R77*R77 -> 4590450 | S81: =4.5*S77*S77 -> 4590450 | T81: =4.5*T77*T77 -> 4590450 | U81: [mm²]
A82: Ac,V | B82: =MIN(1.5*B77,B8)*(3*B77) -> 1012500 | C82: =MIN(1.5*C77,B8)*(3*C77) -> 1012500 | D82: =MIN(1.5*D77,B8)*(3*D77) -> 1012500 | E82: [mm²] | F82: Ac,V | G82: =MIN(1.5*G77,G8)*(3*G77) -> 757500 | H82: =MIN(1.5*H77,G8)*(3*H77) -> 757500 | I82: =MIN(1.5*I77,G8)*(3*I77) -> 757500 | J82: [mm²] | L82: Ac,V | M82: =MIN(1.5*M77,B8)*(3*M77) -> 1012500 | N82: =MIN(1.5*N77,B8)*(3*N77) -> 1012500 | O82: =MIN(1.5*O77,B8)*(3*O77) -> 1012500 | Q82: Ac,V | R82: =MIN(1.5*R77,B8)*(3*R77) -> 757500 | S82: =MIN(1.5*S77,B8)*(3*S77) -> 757500 | T82: =MIN(1.5*T77,B8)*(3*T77) -> 757500 | U82: [mm²]
A83: ψs,V | B83: 1 | E83: [-] | F83: ψs,V | G83: 1 | J83: [-] | L83: ψs,V | M83: 1 | Q83: ψs,V | R83: 1 | U83: [-]
A84: ψh,V | B84: =((1.5*B77/B8)^(1/2)) -> 2.846049894 | C84: =((1.5*C77/B8)^(1/2)) -> 2.846049894 | D84: =((1.5*D77/B8)^(1/2)) -> 2.846049894 | E84: [-] | F84: ψh,V | G84: =((1.5*G77/B8)^(1/2)) -> 2.461706725 | H84: =((1.5*H77/B8)^(1/2)) -> 2.461706725 | I84: =((1.5*I77/B8)^(1/2)) -> 2.461706725 | J84: [-] | L84: ψh,V | M84: =((1.5*M77/B8)^(1/2)) -> 2.846049894 | N84: =((1.5*N77/B8)^(1/2)) -> 2.846049894 | O84: =((1.5*O77/B8)^(1/2)) -> 2.846049894 | Q84: ψh,V | R84: =((1.5*R77/B8)^(1/2)) -> 2.461706725 | S84: =((1.5*S77/B8)^(1/2)) -> 2.461706725 | T84: =((1.5*T77/B8)^(1/2)) -> 2.461706725 | U84: [-]
A85: ψα,V | B85: 1 | E85: [-] | F85: ψα,V | G85: 1 | J85: [-] | L85: ψα,V | M85: =(1/(((COS(M7*PI()/180))^2)+(0.5*(SIN(M7*PI()/180)))^2))^0.5 -> 1.012209802 | Q85: ψα,V | R85: =M85 -> 1.012209802 | U85: [-]
A86: ψec,V | B86: 1 | E86: [-] | F86: ψec,V | G86: 1 | J86: [-] | L86: ψec,V | M86: 1 | Q86: ψec,V | R86: 1 | U86: [-]
A87: ψre,V | B87: 1.2 | E87: [-] | F87: ψre,V | G87: 1.2 | J87: [-] | L87: ψre,V | M87: 1.2 | Q87: ψre,V | R87: 1.2 | U87: [-]
A88: VRk,c | B88: =B80*$B$82/$B$81*$B$83*$B$84*$B$85*$B$86*$B$87 -> 253.2527837 | C88: =C80*$C$82/$C$81*$B$83*$C$84*$B$85*$B$86*$B$87 -> 256.9724358 | D88: =D80*$D$82/$D$81*$B$83*$D$84*$B$85*$B$86*$B$87 -> 260.1276974 | E88: [kN] | F88: VRk,c | G88: =G80*$G$82/$G$81*$G$83*$G$84*$G$85*$G$86*$G$87 -> 193.8519706 | H88: =H80*$H$82/$H$81*$G$83*$H$84*$G$85*$G$86*$G$87 -> 196.9841319 | I88: =I80*$I$82/$I$81*$G$83*$I$84*$G$85*$G$86*$G$87 -> 199.6422842 | J88: [kN] | L88: VRk,c | M88: =M80*$M$82/$M$81*$M$83*$M$84*$M$85*$M$86*$M$87 -> 256.34495 | N88: =N80*$N$82/$N$81*$M$83*$N$84*$M$85*$M$86*$M$87 -> 260.1100183 | O88: =O80*$O$82/$O$81*$M$83*$O$84*$M$85*$M$86*$M$87 -> 263.303805 | Q88: VRk,c | R88: =R80*$R$82/$R$81*$R$83*$R$84*$R$85*$R$86*$R$87 -> 196.2188647 | S88: =S80*$S$82/$S$81*$R$83*$S$84*$R$85*$R$86*$R$87 -> 199.3892691 | T88: =T80*$T$82/$T$81*$R$83*$T$84*$R$85*$R$86*$R$87 -> 202.0798769 | U88: [kN]
A89: γMc | B89: =B75 -> 1.5 | E89: [-] | F89: γMc | G89: =G75 -> 1.5 | J89: [-] | L89: γMc | M89: =M75 -> 1.5 | Q89: γMc | R89: =R75 -> 1.5 | U89: [-]
A90: VRd,c | B90: =B88/$B$89 -> 168.8351891 | C90: =C88/$B$89 -> 171.3149572 | D90: =D88/$B$89 -> 173.4184649 | E90: [kN] | F90: VRd,c | G90: =G88/$B$89 -> 129.234647 | H90: =H88/$B$89 -> 131.3227546 | I90: =I88/$B$89 -> 133.0948562 | J90: [kN] | L90: VRd,c | M90: =M88/$B$89 -> 170.8966333 | N90: =N88/$B$89 -> 173.4066788 | O90: =O88/$B$89 -> 175.53587 | Q90: VRd,c | R90: =R88/$B$89 -> 130.8125765 | S90: =S88/$B$89 -> 132.9261794 | T90: =T88/$B$89 -> 134.719918 | U90: [kN]
A91: Mitte | L91: Rand
A92: VRd,cp/c maßgeb,Mitte | B92: =MIN(B76,B90) -> 52.9156239 | C92: =MIN(C76,C90) -> 52.9156239 | D92: =MIN(D76,D90) -> 52.9156239 | E92: [kN] | F92: VRd,cp/c maßgeb,Mitte | G92: =MIN(G76,G90) -> 52.9156239 | H92: =MIN(H76,H90) -> 52.9156239 | I92: =MIN(I76,I90) -> 52.9156239 | J92: [kN] | L92: VRd,cp/c maßgeb,Rand | M92: =MIN(M76,M90) -> 52.9156239 | N92: =MIN(N76,N90) -> 52.9156239 | O92: =MIN(O76,O90) -> 52.9156239 | Q92: VRd,cp/c maßgeb,Rand | R92: =MIN(R76,R90) -> 52.9156239 | S92: =MIN(S76,S90) -> 52.9156239 | T92: =MIN(T76,T90) -> 52.9156239
A93: VSd,y, Mitte | B93: =IF(Eingabe!C33="Kappenverankerung HPA",Eingabe!O22,Eingabe!Q22) -> 39.0145425 | F93: VSd,y, Mitte | G93: =IF(Eingabe!C33="Kappenverankerung HPA",Eingabe!P22,Eingabe!R22) -> 39.0145425 | L93: VSd,x/y, Rand | M93: =IF(Eingabe!C33="Kappenverankerung HPA",Eingabe!O28,Eingabe!Q28) -> 40.81831117 | Q93: VSd,x/y, Rand | R93: =IF(Eingabe!C33="Kappenverankerung HPA",Eingabe!P28,Eingabe!R28) -> 40.81831117
A94: Ausn Vy Beton Mitte | B94: =$B$93/B92 -> 0.7372972219 | C94: =$B$93/C92 -> 0.7372972219 | D94: =$B$93/D92 -> 0.7372972219 | F94: Ausn V Beton Mitte | G94: =$G$93/G92 -> 0.7372972219 | H94: =$G$93/H92 -> 0.7372972219 | I94: =$G$93/I92 -> 0.7372972219 | L94: Ausn Vxy Beton Rand | M94: =$M$93/M92 -> 0.7713848606 | N94: =$M$93/N92 -> 0.7713848606 | O94: =$M$93/O92 -> 0.7713848606 | Q94: Ausn Vxy Beton Rand | R94: =$R$93/R92 -> 0.7713848606 | S94: =$R$93/S92 -> 0.7713848606 | T94: =$R$93/T92 -> 0.7713848606
A96: Kombinierte Beanspruchung Mitte Reihe 1 | F96: Kombinierte Beanspruchung Mitte Reihe 2 | L96: Kombinierte Beanspruchung Rand Reihe 1 | Q96: Kombinierte Beanspruchung Rand Reihe 2
B97: =B14 -> Kappenanker HPA M16 | C97: =C14 -> Kappenanker HPA M20 | D97: =D14 -> Kappenanker HPA M24 | G97: =G14 -> Kappenanker HPA M16 | H97: =H14 -> Kappenanker HPA M20 | I97: =I14 -> Kappenanker HPA M24 | M97: =M59 -> Kappenanker HPA M16 | N97: =N59 -> Kappenanker HPA M20 | O97: =O59 -> Kappenanker HPA M24 | R97: =R59 -> Kappenanker HPA M16 | S97: =S59 -> Kappenanker HPA M20 | T97: =T59 -> Kappenanker HPA M24
A98: kombi N+V m/o H Stahl Mitte | B98: =MAX(B71,IF(B65=0,B63,B63^2+B65^2)) -> 1.270200417 | C98: =MAX(C71,IF(C65=0,C63,C63^2+C65^2)) -> 0.7093553182 | D98: =MAX(D71,IF(D65=0,D63,D63^2+D65^2)) -> 0.4924213366 | F98: kombi N+V m/o H Stahl Mitte | G98: =MAX(G71,IF(G65=0,G63,G63^2+G65^2)) -> 1.249863432 | H98: =MAX(H71,IF(H65=0,H63,H63^2+H65^2)) -> 0.7093553182 | I98: =MAX(I71,IF(I65=0,I63,I63^2+I65^2)) -> 0.4924213366 | L98: kombi N+V m/o H Stahl Rand | M98: =MAX(M71,IF(M65=0,M63,M63^2+M65^2)) -> 1.386024234 | N98: =MAX(N71,IF(N65=0,N63,N63^2+N65^2)) -> 0.7421511121 | O98: =MAX(O71,IF(O65=0,O63,O63^2+O65^2)) -> 0.5151875699 | Q98: kombi N+V m/o H Stahl Rand | R98: =MAX(R71,IF(R65=0,R63,R63^2+R65^2)) -> 1.36568725 | S98: =MAX(S71,IF(S65=0,S63,S63^2+S65^2)) -> 0.7421511121 | T98: =MAX(T71,IF(T65=0,T63,T63^2+T65^2)) -> 0.5151875699
A99: kombi N+V Beton Mitte | B99: =IF(OR(B64>1,B94>1),MAX(B64,B94),IF(OR(B64=0,B94=0),B64+B94,MIN((B64+B94)/1.2,B64^1.5+B94^1.5))) -> 0.9613751742 | C99: =IF(OR(C64>1,C94>1),MAX(C64,C94),IF(OR(C64=0,C94=0),C64+C94,MIN((C64+C94)/1.2,C64^1.5+C94^1.5))) -> 0.9613751742 | D99: =IF(OR(D64>1,D94>1),MAX(D64,D94),IF(OR(D64=0,D94=0),D64+D94,MIN((D64+D94)/1.2,D64^1.5+D94^1.5))) -> 0.9613751742 | F99: kombi N+V Beton Mitte | G99: =IF(OR(G64>1,G94>1),MAX(G64,G94),IF(OR(G64=0,G94=0),G64+G94,MIN((G64+G94)/1.2,G64^1.5+G94^1.5))) -> 0.8447273998 | H99: =IF(OR(H64>1,H94>1),MAX(H64,H94),IF(OR(H64=0,H94=0),H64+H94,MIN((H64+H94)/1.2,H64^1.5+H94^1.5))) -> 0.8447273998 | I99: =IF(OR(I64>1,I94>1),MAX(I64,I94),IF(OR(I64=0,I94=0),I64+I94,MIN((I64+I94)/1.2,I64^1.5+I94^1.5))) -> 0.8447273998 | L99: kombi N+V Beton Rand | M99: =IF(OR(M64>1,M94>1),MAX(M64,M94),IF(OR(M64=0,M94=0),M64+M94,MIN((M64+M94)/1.2,M64^1.5+M94^1.5))) -> 1.005783337 | N99: =IF(OR(N64>1,N94>1),MAX(N64,N94),IF(OR(N64=0,N94=0),N64+N94,MIN((N64+N94)/1.2,N64^1.5+N94^1.5))) -> 1.005783337 | O99: =IF(OR(O64>1,O94>1),MAX(O64,O94),IF(OR(O64=0,O94=0),O64+O94,MIN((O64+O94)/1.2,O64^1.5+O94^1.5))) -> 1.005783337 | Q99: kombi N+V Beton Rand | R99: =IF(OR(R64>1,R94>1),MAX(R64,R94),IF(OR(R64=0,R94=0),R64+R94,MIN((R64+R94)/1.2,R64^1.5+R94^1.5))) -> 0.8891355625 | S99: =IF(OR(S64>1,S94>1),MAX(S64,S94),IF(OR(S64=0,S94=0),S64+S94,MIN((S64+S94)/1.2,S64^1.5+S94^1.5))) -> 0.8891355625 | T99: =IF(OR(T64>1,T94>1),MAX(T64,T94),IF(OR(T64=0,T94=0),T64+T94,MIN((T64+T94)/1.2,T64^1.5+T94^1.5))) -> 0.8891355625 | U99: V=0 kommt vor, wenn keine indirekten Einw. und Anschlussbew. Vorhanden
A101: Maximum Kombi Mitte | B101: =MAX(B98,B99) -> 1.270200417 | C101: =MAX(C98,C99) -> 0.9613751742 | D101: =MAX(D98,D99) -> 0.9613751742 | F101: Maximum Kombi Mitte | G101: =MAX(G98,G99) -> 1.249863432 | H101: =MAX(H98,H99) -> 0.8447273998 | I101: =MAX(I98,I99) -> 0.8447273998 | L101: Maximum Kombi Rand | M101: =MAX(M98,M99) -> 1.386024234 | N101: =MAX(N98,N99) -> 1.005783337 | O101: =MAX(O98,O99) -> 1.005783337 | Q101: Maximum Kombi Rand | R101: =MAX(R98,R99) -> 1.36568725 | S101: =MAX(S98,S99) -> 0.8891355625 | T101: =MAX(T98,T99) -> 0.8891355625
A102: Warnung Mitte | B102: =IF(MAX(B101,G101)>1.009,"Unzulässig!","ok") -> Unzulässig! | C102: =IF(MAX(C101,H101)>1.009,"Unzulässig!","ok") -> ok | D102: =IF(MAX(D101,I101)>1.009,"Unzulässig!","ok") -> ok | F102: Warnung Mitte | G102: =IF(MAX(B101,G101)>1.009,"Unzulässig!","ok") -> Unzulässig! | H102: =IF(MAX(C101,H101)>1.009,"Unzulässig!","ok") -> ok | I102: =IF(MAX(D101,I101)>1.009,"Unzulässig!","ok") -> ok | L102: Warnung Rand | M102: =IF(MAX(M101,R101)>1.009,"Unzulässig!","ok") -> Unzulässig! | N102: =IF(MAX(N101,S101)>1.009,"Unzulässig!","ok") -> ok | O102: =IF(MAX(O101,T101)>1.009,"Unzulässig!","ok") -> ok | Q102: Warnung Rand | R102: =IF(MAX(M101,R101)>1.009,"Unzulässig!","ok") -> Unzulässig! | S102: =IF(MAX(N101,S101)>1.009,"Unzulässig!","ok") -> ok | T102: =IF(MAX(O101,T101)>1.009,"Unzulässig!","ok") -> ok
A104: Gewählter Dübel | B104: =LEFT(Eingabe!C4,20) -> Kappenanker HPA M20 | F104: Gewählter Dübel | G104: =LEFT(Eingabe!C4,20) -> Kappenanker HPA M20 | L104: Gewählter Dübel | M104: =LEFT(Eingabe!C4,20) -> Kappenanker HPA M20 | Q104: Gewählter Dübel | R104: =LEFT(Eingabe!C4,20) -> Kappenanker HPA M20
A105: Ausnutzung N+V Stahl Mitte | B105: =INDEX(B97:$D$98,2,MATCH($B$104,B97:$D$97)) -> 0.7093553182 | F105: Ausnutzung N Mitte | G105: =INDEX($G97:I$99,2,MATCH($B$104,$G97:I$97)) -> 0.7093553182 | L105: Ausnutzung N Rand | M105: =INDEX($M97:O$98,2,MATCH($M$104,$M97:O$97)) -> 0.7421511121 | Q105: Ausnutzung N Rand | R105: =INDEX($R97:T$99,2,MATCH($R$104,$R97:T$97)) -> 0.7421511121
A106: Ausnutzung N+V Beton Mitte | B106: =INDEX(B97:$D$99,3,MATCH($B$104,B97:D97)) -> 0.9613751742 | F106: Ausnutzung V Mitte | G106: =INDEX($G97:I$99,3,MATCH($B$104,G97:I97)) -> 0.8447273998 | L106: Ausnutzung V Rand | M106: =INDEX($M97:O$99,3,MATCH($M$104,M97:O97)) -> 1.005783337 | Q106: Ausnutzung V Rand | R106: =INDEX($R97:T$99,3,MATCH($R$104,R97:T97)) -> 0.8891355625
A107: Interaktion | B107: =INDEX(B97:$D$101,5,MATCH($B$104,B97:D97)) -> 0.9613751742 | F107: Interaktion | G107: =INDEX($G97:I$101,5,MATCH($G$104,G97:I97)) -> 0.8447273998 | L107: Interaktion | M107: =INDEX($M97:O$101,5,MATCH($M$104,M97:O97)) -> 1.005783337 | Q107: Interaktion | R107: =INDEX($R97:T$101,5,MATCH($R$104,R97:T97)) -> 0.8891355625
A108: =A11 -> Warnung c | B108: ok | C108: ok | D108: ok | F108: =F11 -> Warnung c | G108: =G11 -> ok | H108: =H11 -> ok | I108: =I11 -> ok | L108: =A11 -> Warnung c | M108: ok | N108: ok | O108: ok | Q108: =A11 -> Warnung c | R108: =G11 -> ok | S108: =H11 -> ok | T108: =H11 -> ok
A109: Warnung s Mitte 1.R | B109: ok | C109: ok | D109: ok | F109: =F12 -> Warnung s Mitte 2.R | G109: ok | H109: ok | I109: ok | L109: =L12 -> Warnung s Rand 1.R | M109: ok | N109: ok | O109: ok | Q109: Warnung s Rand 2.R | R109: ok | S109: ok | T109: ok
A110: Warnung h | B110: ok | C110: ok | D110: ok | F110: Warnung h | G110: ok | H110: ok | I110: ok | L110: Warnung h | M110: ok | N110: ok | O110: ok | Q110: =A13 -> Warnung h | R110: =G13 -> ok | S110: =H13 -> ok | T110: =H13 -> ok

Sheet Kappe (hidden)
A1: Kappe | D1: Mittelbereich | O1: Randbereich
A2: Dübel 1 (der Tragwerksachse näher liegend) | F2: Dübel 2 (dem Tragwerksrand näher liegend) | K2: Dübel 1 (der Tragwerksachse näher liegend) | P2: Dübel 2 (dem Tragwerksrand näher liegend)
A3: fck,cyl | B3: =Eingabe!F14 -> 40 | C3: [N/mm²] | D3: Abmind. Leichtbeton | F3: fck,cyl | G3: =B3 -> 40 | H3: [N/mm²] | K3: fck,cyl | L3: =Eingabe!F14 -> 40 | M3: [N/mm²]
A4: Untergrund | C4: [-] | D4: =Eingabe!N3 -> 1 | F4: Untergrund | H4: [-]
A5: Randabstand cK | B5: =Eingabe!C16 -> 200 | C5: [mm] | D5: cT,Dübel 1,1-reihig | E5: =Eingabe!C7 -> 1350 | F5: Randabstand cT,D2 | G5: =Eingabe!C7-B7 -> 1010 | H5: [mm] | AM5: 1. Dübelsystem HIT-RE 500 V3 nach ETA-16/0143 2. Hilti Betonverbinder HPA nach abZ/aBG-21.8-1900 3. Dichtheitsprüfungen mit Berichten der Bautechnischen Versuchsanstalt an der HTL Rankweil 4. Dichtheitsprüfung unter dynamischer Querkraft-Einwirkung; Bericht der Bautechnischen Versuchsanstalt an der HTL Rankweil 5. Gutachten 20-083/1.1.1, Nachträgliche Verankerung von Brückenkappen und Lärmschutzwänden auf Brückenkappen mit Injektionssystem HIT RE 500 V3; Ingenieurbüro Schiessl Gehlen Sodeikat GmbH
A6: Achsabstand sx,Mitte | B6: =Eingabe!T6 -> 660 | C6: [mm] | F6: Achsabstand sx,Mitte | G6: =B6 -> 660 | H6: [mm] | K6: Achsabstand sx,Rand | L6: =Eingabe!T7 -> 660 | M6: [mm]
A7: Dübelreihenabst. s1 | B7: =Eingabe!C17 -> 340 | C7: [mm] | F7: Dübelreihenabst. s1 | G7: =B7 -> 340 | H7: [mm]
A8: Randbalkenhöhe h | B8: =Eingabe!C18 -> 145 | C8: [mm] | F8: Randbalkenhöhe h | G8: =B8 -> 145 | H8: [mm]
A9: Dübelanzahl | B9: 1 | C9: [Stk] | F9: Dübelanzahl | G9: =B9 -> 1 | H9: [Stk]
A10: Kopfbolzendurchmesser | B10: =Eingabe!X50 -> 30
A11: Dicht./Schutzbahn | B11: =IF(Eingabe!E80=1,Eingabe!D80,0) -> 0 | C11: [mm]
B12: Kappenanker HPA M16 | C12: Kappenanker HPA M20 | D12: Kappenanker HPA M24 | G12: =B12 -> Kappenanker HPA M16 | H12: Kappenanker HPA M20 | I12: Kappenanker HPA M24 | L12: Kappenanker HPA M16 | M12: Kappenanker HPA M20 | N12: Kappenanker HPA M24 | Q12: =L12 -> Kappenanker HPA M16 | R12: =M12 -> Kappenanker HPA M20 | S12: =N12 -> Kappenanker HPA M24
A13: Kopfbolzenhöhe hef | B13: =Eingabe!C21 -> 99 | C13: =Eingabe!C21 -> 99 | D13: =Eingabe!C21 -> 99 | E13: [mm] | F13: Kopfbolzenhöhe hef | G13: 99 | H13: 99 | I13: 99 | J13: [mm] | K13: Kopfbolzenhöhe hef | L13: =Eingabe!C21 -> 99 | M13: =Eingabe!C21 -> 99 | N13: =Eingabe!C21 -> 99 | P13: Kopfbolzenhöhe hef | Q13: =Eingabe!C21 -> 99 | R13: =Eingabe!C21 -> 99 | S13: =Eingabe!C21 -> 99
A14: Durchmesser Kopf dp | B14: =IF(Eingabe!$C$15="U-Scheibe 50x3 + Muttern M16",Eingabe!$AB$44,Eingabe!$Z$44) -> 24 | C14: =IF(OR(Eingabe!$C$15="Kopfplatte HPA-K M20x50x16",Eingabe!$C$15="U-Scheibe 60x4 + Muttern M20"),Eingabe!$AB$45,Eingabe!$Z$45) -> 30 | D14: =IF(OR(Eingabe!$C$15="Kopfplatte HPA-K M24x70x19",Eingabe!$C$15="U-Scheibe 72x5 + Muttern M24"),Eingabe!$AB$46,Eingabe!$Z$46) -> 36 | G14: =B14 -> 24 | H14: =C14 -> 30 | I14: =D14 -> 36 | L14: =B14 -> 24 | M14: =C14 -> 30 | N14: =D14 -> 36 | Q14: =B14 -> 24 | R14: =C14 -> 30 | S14: =D14 -> 36
A15: Normalkraftwiderstand Einzeldübel | F15: Normalkraftwiderstand Einzeldübel | K15: Normalkraftwiderstand Einzeldübel | P15: Normalkraftwiderstand Einzeldübel
A16: Stahlversagen | F16: Stahlversagen | K16: Stahlversagen | P16: Stahlversagen
A17: NRk,s | B17: 109.9 | C17: 171.5 | D17: 247.1 | E17: [kN] | F17: NRk,s | G17: 109.9 | H17: 171.5 | I17: 247.1 | J17: [kN] | K17: NRk,s | L17: 109.9 | M17: 171.5 | N17: 247.1 | P17: NRk,s | Q17: 109.9 | R17: 171.5 | S17: 247.1
A18: γMs | B18: 1.87 | E18: [-] | F18: γMs | G18: 1.87 | J18: [-] | K18: γMs | L18: 1.87 | P18: γMs | Q18: 1.87
A19: NRd,s | B19: =$B$9*B17/$B$18 -> 58.77005348 | C19: =$B$9*C17/$B$18 -> 91.71122995 | D19: =$B$9*D17/$B$18 -> 132.1390374 | E19: [kN] | F19: NRd,s | G19: =$G$9*G17/$G$18 -> 58.77005348 | H19: =$G$9*H17/$G$18 -> 91.71122995 | I19: =$G$9*I17/$G$18 -> 132.1390374 | J19: [kN] | K19: NRd,s | L19: =$B$9*L17/$L$18 -> 58.77005348 | M19: =$B$9*M17/$L$18 -> 91.71122995 | N19: =$B$9*N17/$L$18 -> 132.1390374 | P19: NRd,s | Q19: =$G$9*Q17/$Q$18 -> 58.77005348 | R19: =$G$9*R17/$Q$18 -> 91.71122995 | S19: =$G$9*S17/$Q$18 -> 132.1390374
A20: Herausziehen für | B20: =Eingabe!C15 -> Sechskantmutter A4 M20 | F20: Herausziehen | K20: Herausziehen | P20: Herausziehen
A21: AKopf | B21: =IF(Eingabe!$C$15="U-Scheibe 50x3 + Muttern M16",Eingabe!AD44,Eingabe!AA44) -> 251 | C21: =IF(OR(Eingabe!C15="Kopfplatte HPA-K M20x50x16",Eingabe!$C$15="U-Scheibe 60x4 + Muttern M20"),Eingabe!AD45,Eingabe!AA45) -> 393 | D21: =IF(OR(Eingabe!$C$15="U-Scheibe 60x4 + Muttern M20",Eingabe!C15="Kopfplatte HPA-K M24x70x19"),Eingabe!AD46,Eingabe!AA46) -> 565 | F21: AKopf | G21: =B21 -> 251 | H21: =C21 -> 393 | I21: =D21 -> 565 | K21: AKopf | L21: =B21 -> 251 | M21: =C21 -> 393 | N21: =D21 -> 565 | P21: AKopf | Q21: =B21 -> 251 | R21: =C21 -> 393 | S21: =D21 -> 565
A22: NRk,p | B22: =7.5*B3*D4*B21/1000 -> 75.3 | C22: =7.5*B3*D4*C21/1000 -> 117.9 | D22: =7.5*B3*D4*D21/1000 -> 169.5 | E22: [kN] | F22: NRk,p | G22: =7.5*G3*D4*G21/1000 -> 75.3 | H22: =7.5*G3*D4*H21/1000 -> 117.9 | I22: =7.5*G3*D4*I21/1000 -> 169.5 | J22: [kN] | K22: NRk,p | L22: =7.5*L3*D4*L21/1000 -> 75.3 | M22: =7.5*L3*D4*M21/1000 -> 117.9 | N22: =7.5*L3*D4*N21/1000 -> 169.5 | P22: NRk,p | Q22: =7.5*L3*D4*Q21/1000 -> 75.3 | R22: =7.5*L3*D4*R21/1000 -> 117.9 | S22: =7.5*L3*D4*S21/1000 -> 169.5
A23: γMp = gc | B23: =(IF(OR(Eingabe!C24="Anprall KFZ-Rückhaltesystem",Eingabe!C24="Anprall Schrammbord"),1.2,1.5))*1 -> 1.5 | F23: γMp | G23: =(IF(OR(Eingabe!C24="Anprall KFZ-Rückhaltesystem",Eingabe!C24="Anprall Schrammbord"),1.2,1.5))*1 -> 1.5 | K23: γMp = gc | L23: =(IF(OR(Eingabe!C24="Anprall KFZ-Rückhaltesystem",Eingabe!C24="Anprall Schrammbord"),1.2,1.5))*1 -> 1.5 | P23: γMp | Q23: =(IF(OR(Eingabe!C24="Anprall KFZ-Rückhaltesystem",Eingabe!C24="Anprall Schrammbord"),1.2,1.5))*1 -> 1.5 | T23: abhängig von Eingabe C23
A24: NRd,p | B24: =B22/B23 -> 50.2 | C24: =(C22/B23) -> 78.6 | D24: =(D22/B23) -> 113 | F24: NRd,p | G24: =G22/G23 -> 50.2 | H24: =(H22/G23) -> 78.6 | I24: =(I22/G23) -> 113 | K24: NRd,p | L24: =L22/L23 -> 50.2 | M24: =(M22/L23) -> 78.6 | N24: =(N22/L23) -> 113 | P24: NRd,p | Q24: =Q22/Q23 -> 50.2 | R24: =(R22/Q23) -> 78.6 | S24: =(S22/Q23) -> 113
A25: Betonausbruch | B25: Ac,N,Mutter/Bundmutter : | C25: =MIN(3*$B$13,$B$6)*IF(Eingabe!$G$5="Einreihige Ankeranordnung",MIN(1.5*$B$13,$E$5)+MIN(1.5*$B$13,$B$5),MIN(1.5*$B$13,$B$5)+MIN(1.5*$B$13,$B$7/2)) -> 88209 | D25: Ac,N,Kopfpl./Uscheibe : | E25: =MIN(4*C13,$B$6)*IF(Eingabe!$G$5="Einreihige Ankeranordnung",MIN(2*C13,$E$5)+MIN(2*C13,$B$5),MIN(2*C13,$B$5)+MIN(2*C13,$B$7/2)) -> 145728 | F25: Betonausbruch | G25: =B25 -> Ac,N,Mutter/Bundmutter : | H25: =MIN(3*G13,$B$6)*(MIN(G7/2,1.5*G13)+MIN(1.5*G13,$G$5)) -> 88209 | I25: =D25 -> Ac,N,Kopfpl./Uscheibe : | J25: =MIN(4*G13,$B$6)*(MIN(G7/2,2*G13)+MIN(2*G13,$G$5)) -> 145728 | K25: Betonausbruch | L25: =B25 -> Ac,N,Mutter/Bundmutter : | M25: =MIN(3*L13,$L$6)*IF(Eingabe!$G$5="Einreihige Ankeranordnung",MIN(1.5*L13,$E$5)+MIN(1.5*L13,$B$5),MIN(1.5*L13,$B$5)+MIN(1.5*L13,$B$7/2)) -> 88209 | N25: =D25 -> Ac,N,Kopfpl./Uscheibe : | O25: =MIN(4*M13,$L$6)*IF(Eingabe!$G$5="Einreihige Ankeranordnung",MIN(2*M13,$E$5)+MIN(2*M13,$B$5),MIN(2*M13,$B$5)+MIN(2*M13,$B$7/2)) -> 145728 | P25: Betonausbruch | Q25: =B25 -> Ac,N,Mutter/Bundmutter : | R25: =MIN(3*G13,$L$6)*(MIN(G7/2,1.5*G13)+MIN(1.5*G13,$G$5)) -> 88209 | S25: =D25 -> Ac,N,Kopfpl./Uscheibe : | T25: =MIN(4*G13,$L$6)*(MIN(G7/2,2*G13)+MIN(2*G13,$G$5)) -> 145728
A26: Konstante k | B26: 8.9 | C26: =IF(OR(Eingabe!$C$15="Sechskantmutter A4 M20",Eingabe!$C$15="Bundmutter HPA-FN A4 M20",AND(Eingabe!$C$15="Kopfplatte HPA-K M20x50x16",Eingabe!$C$3="Nachträgliche Kappenverankerung"),AND(Eingabe!$C$15="Kopfplatte HPA-K M20x50x16",Eingabe!$C$3="Sonderfall ohne indirekte Einw.")),8.9,7.7) -> 8.9 | D26: =IF(OR(Eingabe!$C$15="Sechskantmutter A4 M24",Eingabe!$C$15="Bundmutter HPA-FN A4 M24",AND(Eingabe!$C$15="Kopfplatte HPA-K M24x70x19",Eingabe!$C$3="Nachträgliche Kappenverankerung"),AND(Eingabe!$C$15="Kopfplatte HPA-K M24x70x19",Eingabe!$C$3="Sonderfall ohne indirekte Einw.")),8.9,7.7) -> 7.7 | F26: Konstante k | G26: =B26 -> 8.9 | H26: =IF(OR(Eingabe!$C$15="Sechskantmutter A4 M20",Eingabe!$C$15="Bundmutter HPA-FN A4 M20",AND(Eingabe!$C$15="Kopfplatte HPA-K M20x50x16",Eingabe!$C$3="Nachträgliche Kappenverankerung"),AND(Eingabe!$C$15="Kopfplatte HPA-K M20x50x16",Eingabe!$C$3="Sonderfall ohne indirekte Einw.")),8.9,7.7) -> 8.9 | I26: =IF(OR(Eingabe!$C$15="Sechskantmutter A4 M24",Eingabe!$C$15="Bundmutter HPA-FN A4 M24",AND(Eingabe!$C$15="Kopfplatte HPA-K M24x70x19",Eingabe!$C$3="Nachträgliche Kappenverankerung"),AND(Eingabe!$C$15="Kopfplatte HPA-K M24x70x19",Eingabe!$C$3="Sonderfall ohne indirekte Einw.")),8.9,7.7) -> 7.7 | K26: Konstante k | L26: 8.9 | M26: =IF(OR(Eingabe!$C$15="Sechskantmutter A4 M20",Eingabe!$C$15="Bundmutter HPA-FN A4 M20",AND(Eingabe!$C$15="Kopfplatte HPA-K M20x50x16",Eingabe!$C$3="Nachträgliche Kappenverankerung"),AND(Eingabe!$C$15="Kopfplatte HPA-K M20x50x16",Eingabe!$C$3="Sonderfall ohne indirekte Einw.")),8.9,7.7) -> 8.9 | N26: =IF(OR(Eingabe!$C$15="Sechskantmutter A4 M24",Eingabe!$C$15="Bundmutter HPA-FN A4 M24",AND(Eingabe!$C$15="Kopfplatte HPA-K M24x70x19",Eingabe!$C$3="Nachträgliche Kappenverankerung"),AND(Eingabe!$C$15="Kopfplatte HPA-K M24x70x19",Eingabe!$C$3="Sonderfall ohne indirekte Einw.")),8.9,7.7) -> 7.7 | P26: Konstante k | Q26: =L26 -> 8.9 | R26: =IF(OR(Eingabe!$C$15="Sechskantmutter A4 M20",Eingabe!$C$15="Bundmutter HPA-FN A4 M20",AND(Eingabe!$C$15="Kopfplatte HPA-K M20x50x16",Eingabe!$C$3="Nachträgliche Kappenverankerung"),AND(Eingabe!$C$15="Kopfplatte HPA-K M20x50x16",Eingabe!$C$3="Sonderfall ohne indirekte Einw.")),8.9,7.7) -> 8.9 | S26: =IF(OR(Eingabe!$C$15="Sechskantmutter A4 M24",Eingabe!$C$15="Bundmutter HPA-FN A4 M24",AND(Eingabe!$C$15="Kopfplatte HPA-K M24x70x19",Eingabe!$C$3="Nachträgliche Kappenverankerung"),AND(Eingabe!$C$15="Kopfplatte HPA-K M24x70x19",Eingabe!$C$3="Sonderfall ohne indirekte Einw.")),8.9,7.7) -> 7.7
A27: N0Rk,c | B27: =$B$26*SQRT($B$3)*D4*B13^1.5/1000 -> 55.44632857 | C27: =$C$26*SQRT($B$3)*D4*C13^1.5/1000 -> 55.44632857 | D27: =$D$26*SQRT($B$3)*D4*D13^1.5/1000 -> 47.9704191 | E27: [kN] | F27: N0Rk,c | G27: =$G$26*SQRT($G$3)*D4*G13^1.5/1000 -> 55.44632857 | H27: =$H$26*SQRT($G$3)*D4*H13^1.5/1000 -> 55.44632857 | I27: =$I$26*SQRT($G$3)*D4*I13^1.5/1000 -> 47.9704191 | J27: [kN] | K27: N0Rk,c | L27: =$L$26*SQRT($L$3)*D4*L13^1.5/1000 -> 55.44632857 | M27: =$M$26*SQRT($L$3)*D4*M13^1.5/1000 -> 55.44632857 | N27: =$N$26*SQRT($L$3)*D4*N13^1.5/1000 -> 47.9704191 | P27: N0Rk,c | Q27: =$Q$26*SQRT($L$3)*D4*Q13^1.5/1000 -> 55.44632857 | R27: =$R$26*SQRT($L$3)*D4*R13^1.5/1000 -> 55.44632857 | S27: =$S$26*SQRT($L$3)*D4*S13^1.5/1000 -> 47.9704191
A28: A0c,N | B28: =(3*B$13)^2 -> 88209 | C28: =(3*B$13)^2 -> 88209 | D28: =(3*B$13)^2 -> 88209 | E28: [mm²] | F28: A0c,N | G28: =(3*B$13)^2 -> 88209 | H28: =(3*B$13)^2 -> 88209 | I28: =(3*B$13)^2 -> 88209 | J28: [mm²] | K28: A0c,N | L28: =(3*B$13)^2 -> 88209 | M28: =(3*B$13)^2 -> 88209 | N28: =(3*B$13)^2 -> 88209 | P28: A0c,N | Q28: =(3*B$13)^2 -> 88209 | R28: =(3*B$13)^2 -> 88209 | S28: =(3*B$13)^2 -> 88209
A29: Ac,N | B29: =IF(Eingabe!C15="U-Scheibe 50x3 + Muttern M16",E25,C25) -> 88209 | C29: =IF(OR(Eingabe!$C$15="Sechskantmutter A4 M20",Eingabe!$C$15="Bundmutter HPA-FN A4 M20",AND(Eingabe!$C$15="Kopfplatte HPA-K M20x50x16",OR(Eingabe!$C$3="Nachträgliche Kappenverankerung",Eingabe!$C$3="Sonderfall ohne indirekte Einw."))),C25,E25) -> 88209 | D29: =IF(OR(Eingabe!$C$15="Sechskantmutter A4 M24",Eingabe!$C$15="Bundmutter HPA-FN A4 M24",AND(Eingabe!$C$15="Kopfplatte HPA-K M24x70x19",OR(Eingabe!$C$3="Nachträgliche Kappenverankerung",Eingabe!$C$3="Sonderfall ohne indirekte Einw."))),C25,E25) -> 145728 | E29: [mm²] | F29: Ac,N | G29: =IF(Eingabe!C15="U-Scheibe 50x3 + Muttern M16",J25,H25) -> 88209 | H29: =IF(OR(Eingabe!$C$15="Sechskantmutter A4 M20",Eingabe!$C$15="Bundmutter HPA-FN A4 M20",AND(Eingabe!$C$15="Kopfplatte HPA-K M20x50x16",OR(Eingabe!$C$3="Nachträgliche Kappenverankerung",Eingabe!$C$3="Sonderfall ohne indirekte Einw."))),H25,J25) -> 88209 | I29: =IF(OR(Eingabe!$C$15="Sechskantmutter A4 M24",Eingabe!$C$15="Bundmutter HPA-FN A4 M24",AND(Eingabe!$C$15="Kopfplatte HPA-K M24x70x19",OR(Eingabe!$C$3="Nachträgliche Kappenverankerung",Eingabe!$C$3="Sonderfall ohne indirekte Einw."))),H25,J25) -> 145728 | J29: [mm²] | K29: Ac,N | L29: =IF(Eingabe!C15="U-Scheibe 50x3 + Muttern M16",O25,M25) -> 88209 | M29: =IF(OR(Eingabe!$C$15="Sechskantmutter A4 M20",Eingabe!$C$15="Bundmutter HPA-FN A4 M20",AND(Eingabe!$C$15="Kopfplatte HPA-K M20x50x16",OR(Eingabe!$C$3="Nachträgliche Kappenverankerung",Eingabe!$C$3="Sonderfall ohne indirekte Einw."))),M25,O25) -> 88209 | N29: =IF(OR(Eingabe!$C$15="Sechskantmutter A4 M24",Eingabe!$C$15="Bundmutter HPA-FN A4 M24",AND(Eingabe!$C$15="Kopfplatte HPA-K M24x70x19",OR(Eingabe!$C$3="Nachträgliche Kappenverankerung",Eingabe!$C$3="Sonderfall ohne indirekte Einw."))),M25,O25) -> 145728 | P29: Ac,N | Q29: =IF(Eingabe!C15="U-Scheibe 50x3 + Muttern M16",T25,R25) -> 88209 | R29: =IF(OR(Eingabe!$C$15="Sechskantmutter A4 M20",Eingabe!$C$15="Bundmutter HPA-FN A4 M20",AND(Eingabe!$C$15="Kopfplatte HPA-K M20x50x16",OR(Eingabe!$C$3="Nachträgliche Kappenverankerung",Eingabe!$C$3="Sonderfall ohne indirekte Einw."))),R25,T25) -> 88209 | S29: =IF(OR(Eingabe!$C$15="Sechskantmutter A4 M24",Eingabe!$C$15="Bundmutter HPA-FN A4 M24",AND(Eingabe!$C$15="Kopfplatte HPA-K M24x70x19",OR(Eingabe!$C$3="Nachträgliche Kappenverankerung",Eingabe!$C$3="Sonderfall ohne indirekte Einw."))),R25,T25) -> 145728
A30: ψs,N | B30: =MIN(1,0.7+0.3*$B$5/(1.5*B13)) -> 1 | C30: =MIN(1,0.7+0.3*$B$5/(1.5*C13)) -> 1 | D30: =MIN(1,0.7+0.3*$B$5/(1.5*D13)) -> 1 | E30: [-] | F30: ψs,N | G30: =MIN(1,0.7+0.3*$G$5/(1.5*G13)) -> 1 | H30: =MIN(1,0.7+0.3*$G$5/(1.5*H13)) -> 1 | I30: =MIN(1,0.7+0.3*$G$5/(1.5*I13)) -> 1 | J30: [-] | K30: ψs,N | L30: =MIN(1,0.7+0.3*$B$5/(1.5*L13)) -> 1 | M30: =MIN(1,0.7+0.3*$B$5/(1.5*M13)) -> 1 | N30: =MIN(1,0.7+0.3*$B$5/(1.5*N13)) -> 1 | P30: ψs,N | Q30: =MIN(1,0.7+0.3*$G$5/(1.5*Q13)) -> 1 | R30: =MIN(1,0.7+0.3*$G$5/(1.5*R13)) -> 1 | S30: =MIN(1,0.7+0.3*$G$5/(1.5*S13)) -> 1
A31: ψre,N | B31: 1 | C31: 1 | D31: 1 | E31: [-] | F31: ψre,N | G31: 1 | H31: 1 | I31: 1 | J31: [-] | K31: ψre,N | L31: 1 | M31: 1 | N31: 1 | P31: ψre,N | Q31: 1 | R31: 1 | S31: 1
A32: ψec,N | B32: 1 | C32: 1 | D32: 1 | E32: [-] | F32: ψec,N | G32: 1 | H32: 1 | I32: 1 | J32: [-] | K32: ψec,N | L32: 1 | M32: 1 | N32: 1 | P32: ψec,N | Q32: 1 | R32: 1 | S32: 1
A33: ψucr,N | B33: 1 | C33: 1 | D33: 1 | E33: [-] | F33: ψucr,N | G33: 1 | H33: 1 | I33: 1 | J33: [-] | K33: ψucr,N | L33: 1 | M33: 1 | N33: 1 | P33: ψucr,N | Q33: 1 | R33: 1 | S33: 1
A34: NRk,c | B34: =B27*B29/B28*B30*B31*B32*B33 -> 55.44632857 | C34: =C27*C29/C28*C30*C31*C32*C33 -> 55.44632857 | D34: =D27*D29/D28*D30*D31*D32*D33 -> 79.25079339 | E34: [kN] | F34: NRk,c | G34: =G27*G29/G28*G30*G31*G32*G33 -> 55.44632857 | H34: =H27*H29/H28*H30*H31*H32*H33 -> 55.44632857 | I34: =I27*I29/I28*I30*I31*I32*I33 -> 79.25079339 | J34: [kN] | K34: NRk,c | L34: =L27*L29/L28*L30*L31*L32*L33 -> 55.44632857 | M34: =M27*M29/M28*M30*M31*M32*M33 -> 55.44632857 | N34: =N27*N29/N28*N30*N31*N32*N33 -> 79.25079339 | P34: NRk,c | Q34: =Q27*Q29/Q28*Q30*Q31*Q32*Q33 -> 55.44632857 | R34: =R27*R29/R28*R30*R31*R32*R33 -> 55.44632857 | S34: =S27*S29/S28*S30*S31*S32*S33 -> 79.25079339
A35: γMc | B35: =(IF(OR(Eingabe!C24="Anprall KFZ-Rückhaltesystem",Eingabe!C24="Anprall Schrammbord"),1.2,1.5))*1 -> 1.5 | E35: [-] | F35: γMc | G35: =(IF(OR(Eingabe!C24="Anprall KFZ-Rückhaltesystem",Eingabe!C24="Anprall Schrammbord"),1.2,1.5))*1 -> 1.5 | J35: [-] | K35: γMc | L35: =(IF(OR(Eingabe!C24="Anprall KFZ-Rückhaltesystem",Eingabe!C24="Anprall Schrammbord"),1.2,1.5))*1 -> 1.5 | P35: γMc | Q35: =(IF(OR(Eingabe!C24="Anprall KFZ-Rückhaltesystem",Eingabe!C24="Anprall Schrammbord"),1.2,1.5))*1 -> 1.5 | T35: abhängig von Eingabe C23
A36: NRd,c | B36: =B34/$B$35 -> 36.96421904 | C36: =C34/$B$35 -> 36.96421904 | D36: =D34/$B$35 -> 52.83386226 | E36: [kN] | F36: NRd,c | G36: =G34/$G$35 -> 36.96421904 | H36: =H34/$G$35 -> 36.96421904 | I36: =I34/$G$35 -> 52.83386226 | J36: [kN] | K36: NRd,c | L36: =L34/$L$35 -> 36.96421904 | M36: =M34/$L$35 -> 36.96421904 | N36: =N34/$L$35 -> 52.83386226 | P36: NRd,c | Q36: =Q34/$Q$35 -> 36.96421904 | R36: =R34/$Q$35 -> 36.96421904 | S36: =S34/$Q$35 -> 52.83386226
B40: keine Zeilen rauslöschen!!! Führt zu Veränderungen in anderen Formeln
A44: Lokale Pressung am Kopfbolzen | F44: Lokale Pressung am Kopfbolzen
A45: da | E45: [mm] | F45: da | J45: [mm]
A46: Schlüsselweite | B46: 24 | C46: 30 | D46: 36 | E46: [mm] | F46: Schlüsselweite | G46: 24 | H46: 30 | I46: 36 | J46: [mm] | K46: Kopfpressung kann entfallen weil gleich mit Herausziehen!
A47: AKopfbolzen | B47: =B21 -> 251 | C47: =C21 -> 393 | D47: =D21 -> 565 | E47: [mm²] | F47: AKopfbolzen | G47: =G21 -> 251 | H47: =H21 -> 393 | I47: =I21 -> 565 | J47: [mm²]
A48: n x fck,cube | B48: =6*B3 -> 240 | C48: =6*B3 -> 240 | D48: =6*B3 -> 240 | E48: [N/mm2] | F48: n x fck,cube | G48: =B48 -> 240 | H48: =C48 -> 240 | I48: =D48 -> 240 | J48: [N/mm2]
A49: γMc | B49: =IF(Eingabe!C24="Wind auf Lärmschutzwand",1.5,1.2) -> 1.5 | E49: [-] | F49: γMc | G49: =IF(Eingabe!C24="Wind auf Lärmschutzwand",1.5,1.2) -> 1.5 | J49: [-]
A50: NRd,L | B50: =B47*B48/$B$49/1000*$B$9 -> 40.16 | C50: =C47*C48/$B$49/1000*$B$9 -> 62.88 | D50: =D47*D48/$B$49/1000*$B$9 -> 90.4 | E50: [kN] | F50: NRd,L | G50: =G47*G48/$G$49/1000*$B$9 -> 40.16 | H50: =H47*H48/$G$49/1000*$B$9 -> 62.88 | I50: =I47*I48/$G$49/1000*$B$9 -> 90.4 | J50: [kN]
A52: NRd,c,Mitte | B52: =MIN(B36,B24) -> 36.96421904 | C52: =MIN(C36,C24) -> 36.96421904 | D52: =MIN(D36,D24) -> 52.83386226 | E52: [kN] | F52: NRd,c,Mitte | G52: =MIN(G36,G24) -> 36.96421904 | H52: =MIN(H36,H24) -> 36.96421904 | I52: =MIN(I36,I24) -> 52.83386226 | J52: [kN] | K52: NRd,c,Rand | L52: =MIN(L36,L24) -> 36.96421904 | M52: =MIN(M36,M24) -> 36.96421904 | N52: =MIN(N36,N24) -> 52.83386226 | P52: NRd,c,Rand | Q52: =MIN(Q36,Q24) -> 36.96421904 | R52: =MIN(R36,R24) -> 36.96421904 | S52: =MIN(S36,S24) -> 52.83386226
A53: NEd, Mitte | B53: =Eingabe!O20 -> 12.59089999 | F53: NEd, Mitte | G53: =Eingabe!P20 -> 9.396194019 | K53: NEd,Rand | L53: =Eingabe!O25 -> 12.59089999 | P53: NEd, Rand | Q53: =Eingabe!P25 -> 9.396194019
A54: Ausn. N-Stahl, Mitte | B54: =$B$53/B19 -> 0.2142400635 | C54: =$B$53/C19 -> 0.1372885305 | D54: =$B$53/D19 -> 0.09528524068 | F54: Ausn. N-Stahl, Mitte | G54: =$G$53/G19 -> 0.1598806444 | H54: =$G$53/H19 -> 0.1024541272 | I54: =$G$53/I19 -> 0.07110838857 | K54: Ausn. N-Stahl, Rand | L54: =$L$53/L19 -> 0.2142400635 | M54: =$L$53/M19 -> 0.1372885305 | N54: =$L$53/N19 -> 0.09528524068 | P54: Ausn. N-Stahl, Rand | Q54: =$Q$53/Q19 -> 0.1598806444 | R54: =$Q$53/R19 -> 0.1024541272 | S54: =$Q$53/S19 -> 0.07110838857
A55: Ausn. N-Beton, Mitte | B55: =$B$53/B52 -> 0.3406239956 | C55: =$B$53/C52 -> 0.3406239956 | D55: =$B$53/D52 -> 0.2383111786 | F55: Ausn. N-Beton, Mitte | G55: =$G$53/G52 -> 0.2541970116 | H55: =$G$53/H52 -> 0.2541970116 | I55: =$G$53/I52 -> 0.1778441631 | K55: Ausn. N-Beton, Rand | L55: =$L$53/L52 -> 0.3406239956 | M55: =$L$53/M52 -> 0.3406239956 | N55: =$L$53/N52 -> 0.2383111786 | P55: Ausn. N-Beton, Rand | Q55: =$Q$53/Q52 -> 0.2541970116 | R55: =$Q$53/R52 -> 0.2541970116 | S55: =$Q$53/S52 -> 0.1778441631
A56: Ausn. Vy-Stahl o. H. Mitte | B56: =$B$61/B57 -> 1.106481636 | C56: =$B$61/C57 -> 0.7093553182 | D56: =$B$61/D57 -> 0.4924213366 | F56: Ausn. Vy-Stahl o. H. Mitte | G56: =$G$61/G57 -> 1.106481636 | H56: =$G$61/H57 -> 0.7093553182 | I56: =$G$61/I57 -> 0.4924213366 | K56: Ausn. Vy-Stahl o. H. Rand | L56: =$L$61/L57 -> 1.157637866 | M56: =$L$61/M57 -> 0.7421511121 | N56: =$L$61/N57 -> 0.5151875699 | P56: Ausn. Vy-Stahl o. H. Rand | Q56: =$Q$61/Q57 -> 1.157637866 | R56: =$Q$61/R57 -> 0.7421511121 | S56: =$Q$61/S57 -> 0.5151875699
A57: Stahlversagen m. H. | B57: 35.26 | C57: 55 | D57: 79.23 | F57: Stahlversagen m. H. | G57: 35.26 | H57: 55 | I57: 79.23 | K57: Stahlversagen m. H. | L57: 35.26 | M57: 55 | N57: 79.23 | P57: Stahlversagen m. H. | Q57: 35.26 | R57: 55 | S57: 79.23
A58: MRk,s | B58: =IF((233*(1-(B53/B19)))<0,0.1,(233*(1-(B53/B19)))) -> 183.0820652 | C58: =IF((454*(1-B53/C19))<1,0.1,(454*(1-B53/C19))) -> 391.6710072 | D58: =IF(786*(1-B53/D19)<1,0.1,786*(1-B53/D19)) -> 711.1058008 | E58: [Nm] | F58: MRk,s | G58: =IF(233*(1-G53/G19)<1,0.1,233*(1-G53/G19)) -> 195.7478099 | H58: =IF(454*(1-G53/H19)<1,0.1,454*(1-G53/H19)) -> 407.4858262 | I58: =IF(786*(1-G53/I19)<1,0.1,786*(1-G53/I19)) -> 730.1088066 | J58: [Nm] | K58: MRk,s | L58: =IF(233*(1-L53/L19)<1,0.1,233*(1-L53/L19)) -> 183.0820652 | M58: =IF(454*(1-L53/M19)<1,0.1,454*(1-L53/M19)) -> 391.6710072 | N58: =IF(786*(1-L53/N19)<1,0.1,786*(1-L53/N19)) -> 711.1058008 | O58: [Nm] | P58: MRk,s | Q58: =IF(233*(1-Q53/Q19)<1,0.1,233*(1-Q53/Q19)) -> 195.7478099 | R58: =IF(454*(1-Q53/R19)<1,0.1,454*(1-Q53/R19)) -> 407.4858262 | S58: =IF(786*(1-Q53/S19)<1,0.1,786*(1-Q53/S19)) -> 730.1088066 | T58: [Nm]
A59: γMs | B59: 1.56 | E59: [-] | F59: γMs | G59: 1.56 | J59: [-] | K59: γMs | L59: 1.56 | O59: [-] | P59: γMs | Q59: 1.56 | T59: [-]
A60: VRd,s | B60: =IF(Eingabe!E80=0,B57,MIN(IF(Eingabe!C3="Nachträgliche Kappenverankerung",$B$9*B58*2/B59/(B11),$B$9*B58*2/B59/(B11+10)),35.26)) -> 35.26 | C60: =IF(Eingabe!E80=0,C57,MIN(IF(Eingabe!C3="Nachträgliche Kappenverankerung",$B$9*C58*2/B59/(B11),$B$9*C58*2/B59/(B11+10)),55)) -> 55 | D60: =IF(Eingabe!E80=0,D57,MIN(IF(Eingabe!C3="Nachträgliche Kappenverankerung",$B$9*D58*2/B59/(B11),$B$9*D58*2/B59/(B11+10)),79.23)) -> 79.23 | E60: [kN] | F60: VRd,s | G60: =IF(Eingabe!E80=0,G57,MIN(IF(Eingabe!C3="Nachträgliche Kappenverankerung",$G$9*G58*2/G59/(B11),$G$9*G58*2/G59/(B11+10)),35.26)) -> 35.26 | H60: =IF(Eingabe!E80=0,H57,MIN(IF(Eingabe!C3="Nachträgliche Kappenverankerung",$G$9*H58*2/G59/(B11),$G$9*H58*2/G59/(B11+10)),55)) -> 55 | I60: =IF(Eingabe!E80=0,I57,MIN(IF(Eingabe!C3="Nachträgliche Kappenverankerung",$G$9*I58*2/G59/(B11),$G$9*I58*2/G59/(B11+10)),79.23)) -> 79.23 | J60: [kN] | K60: VRd,s | L60: =IF(Eingabe!E80=0,L57,MIN(IF(Eingabe!C3="Nachträgliche Kappenverankerung",$B$9*L58*2/L59/(B11),$B$9*L58*2/L59/(B11+10)),35.26)) -> 35.26 | M60: =IF(Eingabe!E80=0,M57,MIN(IF(Eingabe!C3="Nachträgliche Kappenverankerung",$B$9*M58*2/L59/(B11),$B$9*M58*2/L59/(B11+10)),55)) -> 55 | N60: =IF(Eingabe!E80=0,N57,MIN(IF(Eingabe!C3="Nachträgliche Kappenverankerung",$B$9*N58*2/L59/(B11),$B$9*N58*2/L59/(B11+10)),79.23)) -> 79.23 | O60: [kN] | P60: VRd,s | Q60: =IF(Eingabe!E80=0,Q57,MIN(IF(Eingabe!C3="Nachträgliche Kappenverankerung",$G$9*Q58*2/Q59/(B11),$G$9*Q58*2/Q59/(B11+10)),35.26)) -> 35.26 | R60: =IF(Eingabe!E80=0,R57,MIN(IF(Eingabe!C3="Nachträgliche Kappenverankerung",$G$9*R58*2/Q59/(B11),$G$9*R58*2/Q59/(B11+10)),55)) -> 55 | S60: =IF(Eingabe!E80=0,S57,MIN(IF(Eingabe!C3="Nachträgliche Kappenverankerung",$G$9*S58*2/Q59/(B11),$G$9*S58*2/Q59/(B11+10)),79.23)) -> 79.23 | T60: [kN]
A61: VEd,s,y, Mitte | B61: =IF(Eingabe!C33="Kappenverankerung HPA",Eingabe!O21,Eingabe!Q21) -> 39.0145425 | E61: [kN] | F61: VSd,s,y, Mitte | G61: =IF(Eingabe!C33="Kappenverankerung HPA",Eingabe!P21,Eingabe!R21) -> 39.0145425 | J61: [kN] | K61: VSd,s,x/y, Rand | L61: =IF(Eingabe!C33="Kappenverankerung HPA",Eingabe!O26,Eingabe!Q26) -> 40.81831117 | P61: VSd,s,x/y, Rand | Q61: =IF(Eingabe!C33="Kappenverankerung HPA",Eingabe!P26,Eingabe!R26) -> 40.81831117
A62: Ausn Vy-Stahl m.H. Mitte | B62: =$B$61/B60 -> 1.106481636 | C62: =$B$61/C60 -> 0.7093553182 | D62: =$B$61/D60 -> 0.4924213366 | F62: Ausn Vy-Stahl m.H. Mitte | G62: =$G$61/G60 -> 1.106481636 | H62: =$G$61/H60 -> 0.7093553182 | I62: =$G$61/I60 -> 0.4924213366 | K62: Ausn Vy-Stahl m.H. Rand | L62: =$L$61/L60 -> 1.157637866 | M62: =$L$61/M60 -> 0.7421511121 | N62: =$L$61/N60 -> 0.5151875699 | P62: Ausn Vy-Stahl m.H. Rand | Q62: =$Q$61/Q60 -> 1.157637866 | R62: =$Q$61/R60 -> 0.7421511121 | S62: =$Q$61/S60 -> 0.5151875699
A63: Betonausbruch auf der lastabgewandten Seite | F63: Betonausbruch auf der lastabgewandten Seite | K63: Betonausbruch auf der lastabgewandten Seite | P63: Betonausbruch auf der lastabgewandten Seite
A64: k | B64: =IF(Eingabe!C21<60,1,IF(OR(Eingabe!C21<90,Eingabe!C21=90),2,2)) -> 2 | E64: [-] | F64: k | G64: =IF(Eingabe!C21<60,1,IF(OR(Eingabe!C21<90,Eingabe!C21=90),2,2)) -> 2 | J64: [-] | K64: k | L64: =IF(Eingabe!C21<60,1,IF(OR(Eingabe!C21<90,Eingabe!C21=90),2,2)) -> 2 | P64: k | Q64: =IF(Eingabe!C21<60,1,IF(OR(Eingabe!C21<90,Eingabe!C21=90),2,2)) -> 2
A65: VRk,cp | B65: =MIN((B64*B22),(B64*B34)) -> 110.8926571 | C65: =MIN((B64*C22),(B64*C34)) -> 110.8926571 | D65: =MIN((B64*D22),(B64*D34)) -> 158.5015868 | F65: VRk,cp | G65: =MIN((G64*G22),(G64*G34)) -> 110.8926571 | H65: =MIN((G64*H22),(G64*H34)) -> 110.8926571 | I65: =MIN((G64*I22),(G64*I34)) -> 158.5015868 | K65: VRk,cp | L65: =MIN((L64*L22),(L64*L34)) -> 110.8926571 | M65: =MIN((L64*M22),(L64*M34)) -> 110.8926571 | N65: =MIN((L64*N22),(L64*N34)) -> 158.5015868 | P65: VRk,cp | Q65: =MIN((Q64*Q22),(Q64*Q34)) -> 110.8926571 | R65: =MIN((Q64*R22),(Q64*R34)) -> 110.8926571 | S65: =MIN((Q64*S22),(Q64*S34)) -> 158.5015868
A66: γMcp | B66: =(IF(OR(Eingabe!C24="Anprall KFZ-Rückhaltesystem",Eingabe!C24="Anprall Schrammbord"),1.2,1.5))*1 -> 1.5 | E66: [-] | F66: γMcp | G66: =(IF(OR(Eingabe!C24="Anprall KFZ-Rückhaltesystem",Eingabe!C24="Anprall Schrammbord"),1.2,1.5))*1 -> 1.5 | J66: [-] | K66: γMcp | L66: =(IF(OR(Eingabe!C24="Anprall KFZ-Rückhaltesystem",Eingabe!C24="Anprall Schrammbord"),1.2,1.5))*1 -> 1.5 | P66: γMcp | Q66: =(IF(OR(Eingabe!C24="Anprall KFZ-Rückhaltesystem",Eingabe!C24="Anprall Schrammbord"),1.2,1.5))*1 -> 1.5 | T66: abhängig von Eingabe C23
A67: VRd,cp | B67: =B65/$B$66 -> 73.92843809 | C67: =C65/$B$66 -> 73.92843809 | D67: =D65/$B$66 -> 105.6677245 | E67: [kN] | F67: VRd,cp | G67: =G65/$G$66 -> 73.92843809 | H67: =H65/$G$66 -> 73.92843809 | I67: =I65/$G$66 -> 105.6677245 | J67: [kN] | K67: VRd,cp | L67: =L65/$L$66 -> 73.92843809 | M67: =M65/$L$66 -> 73.92843809 | N67: =N65/$L$66 -> 105.6677245 | P67: VRd,cp | Q67: =Q65/$Q$66 -> 73.92843809 | R67: =R65/$Q$66 -> 73.92843809 | S67: =S65/$Q$66 -> 105.6677245
A68: Betonkantenbruch | B68: =IF(AND($B$5<960,$B$5<10*B$13,$B$5>$B$8/1.5,$B$5>$B$6/3),MAX($B$6/3,$B$8/1.5),$B$5) -> 200 | C68: =IF(AND($B$5<1200,$B$5<10*C$13,$B$5>$B$8/1.5,$B$5>$B$6/3),MAX($B$6/3,$B$8/1.5),$B$5) -> 200 | D68: =IF(AND($B$5<1200,$B$5<10*D$13,$B$5>$B$8/1.5,$B$5>$B$6/3),MAX($B$6/3,$B$8/1.5),$B$5) -> 200 | F68: Betonkantenbruch | G68: =IF(AND($G$5<960,$G$5<10*G$13,$G$5>$G$8/1.5,$G$5>$G$6/3),MAX($G$6/3,$G$8/1.5),$G$5) -> 1010 | H68: =IF(AND($G$5<1200,$G$5<10*H$13,$G$5>$G$8/1.5,$G$5>$G$6/3),MAX($G$6/3,$G$8/1.5),$G$5) -> 1010 | I68: =IF(AND($G$5<10*I$13,$G$5>$G$8/1.5,$G$5>$G$6/3),MAX($G$6/3,$G$8/1.5),$G$5) -> 1010
A69: α | B69: =0.1*((B13/B68)^0.5) -> 0.0703562364 | C69: =0.1*((C13/C68)^0.5) -> 0.0703562364 | D69: =0.1*((D13/D68)^0.5) -> 0.0703562364 | E69: [-] | F69: α | G69: =0.1*((G13/G68)^0.5) -> 0.03130811428 | H69: =0.1*((H13/H68)^0.5) -> 0.03130811428 | I69: =0.1*((I13/I68)^0.5) -> 0.03130811428 | J69: [-]
A70: β | B70: =0.1*((16/B68)^0.2) -> 0.06034176337 | C70: =0.1*((20/C68)^0.2) -> 0.06309573445 | D70: =0.1*((24/D68)^0.2) -> 0.06543893899 | E70: [-] | F70: β | G70: =0.1*((16/G68)^0.2) -> 0.04364753499 | H70: =0.1*((20/H68)^0.2) -> 0.04563958896 | I70: =0.1*((24/I68)^0.2) -> 0.04733451958 | J70: [-]
A71: V0Rk,c | B71: =1.7*16^B69*B13^B70*SQRT($B$3)*$B$68^1.5/1000 -> 48.77097158 | C71: =1.7*20^C69*C13^C70*SQRT($B$3)*$C$68^1.5/1000 -> 50.17363346 | D71: =1.7*24^D69*D13^D70*SQRT($B$3)*$D$68^1.5/1000 -> 51.37154516 | E71: [kN] | F71: V0Rk,c | G71: =1.7*16^G69*G13^G70*SQRT($B$3)*$G$68^1.5/1000 -> 460.0068096 | H71: =1.7*20^H69*H13^H70*SQRT($B$3)*$H$68^1.5/1000 -> 467.4915265 | I71: =0.45*SQRT(I70)*(I69/I70)^0.2*SQRT($B$3)*$I$68^1.5/1000 -> 18.29824104 | J71: [kN]
A72: A0c,V | B72: =IF(AND($B$5<960,$B$5<10*B$13,$B$5>$B$8/1.5,$B$5>$B$6/3),4.5*$B$68^2,4.5*$B$5^2) -> 180000 | C72: =IF(AND($B$5<1200,$B$5<10*C$13,$B$5>$B$8/1.5,$B$5>$B$6/3),4.5*$C$68^2,4.5*$B$5^2) -> 180000 | D72: =IF(AND($B$5<1200,$B$5<10*D$13,$B$5>$B$8/1.5,$B$5>$B$6/3),4.5*$D$68^2,4.5*$B$5^2) -> 180000 | E72: [mm²] | F72: A0c,V | G72: =IF(AND($G$5<960,$G$5<10*G$13,$G$5>$G$8/1.5,$G$5>$G$6/3),4.5*$G$68^2,4.5*$G$5^2) -> 4590450 | H72: =IF(AND($G$5<1200,$G$5<10*H$13,$G$5>$G$8/1.5,$G$5>$G$6/3),4.5*$H$68^2,4.5*$G$5^2) -> 4590450 | J72: [mm²]
A73: Ac,V | B73: =MIN(3*B5,B6)*MIN(1.5*B5,B8) -> 87000 | E73: [mm²] | F73: Ac,V | G73: =MIN(3*G5,G6)*MIN(1.5*G5,G8) -> 95700 | J73: [mm²]
A74: ψs,V | B74: 1 | E74: [-] | F74: ψs,V | G74: 1 | J74: [-]
A75: ψh,V | B75: =IF(AND($B$5<960,$B$5<10*B$13,$B$5>$B$8/1.5,$B$5>$B$6/3),MAX(1,(1.5*B68/B8)^(1/2)),MAX(1,(1.5*B5/B8)^(1/2))) -> 1.438389904 | C75: =IF(AND($B$5<1200,$B$5<10*C$13,$B$5>$B$8/1.5,$B$5>$B$6/3),MAX(1,(1.5*C68/B8)^(1/2)),MAX(1,(1.5*B5/B8)^(1/2))) -> 1.438389904 | D75: =IF(AND($B$5<1200,$B$5<10*D$13,$B$5>$B$8/1.5,$B$5>$B$6/3),MAX(1,(1.5*D68/B8)^(1/2)),MAX(1,(1.5*B5/B8)^(1/2))) -> 1.438389904 | E75: [-] | F75: ψh,V | G75: =IF(AND($G$5<960,$G$5<10*G$13,$G$5>$G$8/1.5,$G$5>$G$6/3),MAX(1,(1.5*G68/G8)^(1/2)),MAX(1,(1.5*G5/G8)^(1/2))) -> 3.232379288 | H75: =IF(AND($G$5<1200,$G$5<10*H$13,$G$5>$G$8/1.5,$G$5>$G$6/3),MAX(1,(1.5*H68/G8)^(1/2)),MAX(1,(1.5*G5/G8)^(1/2))) -> 3.232379288 | J75: [-]
A76: ψα,V | B76: 1 | E76: [-] | F76: ψα,V | G76: 1 | J76: [-]
A77: ψec,V | B77: 1 | E77: [-] | F77: ψec,V | G77: 1 | J77: [-]
A78: ψre,V | B78: 1 | E78: [-] | F78: ψre,V | G78: 1 | J78: [-]
A79: VRk,c | B79: =B71*$B$73/$B$72*$B$74*$B$75*$B$76*$B$77*$B$78 -> 33.90664202 | C79: =C71*$B$73/$C$72*$B$74*$C$75*$B$76*$B$77*$B$78 -> 34.88180312 | D79: =D71*$B$73/$D$72*$B$74*$D$75*$B$76*$B$77*$B$78 -> 35.71461744 | E79: [kN] | F79: VRk,c | G79: =G71*$G$73/$G$72*$G$74*$G$75*$G$76*$G$77*$G$78 -> 30.99868368 | H79: =H71*$G$73/$H$72*$G$74*$H$75*$G$76*$G$77*$G$78 -> 31.50305963 | I79: =I71*$G$73/$H$72*$G$74*$H$75*$G$76*$G$77*$G$78 -> 1.233071716 | J79: [kN]
A80: γMc | B80: =B66 -> 1.5 | E80: [-] | F80: γMc | G80: =G66 -> 1.5 | J80: [-]
A81: VRd,c | B81: =IF(AND($B$5>960,$B$5>10*B13),"entfällt",B79/$B$80) -> 22.60442801 | C81: =IF(AND($B$5>1200,$B$5>10*C13),"entfällt",C79/$B$80) -> 23.25453541 | D81: =IF($B$5>10*D13,"c > 10*hef",D79/$B$80) -> 23.80974496 | E81: [kN] | F81: VRd,c | G81: =IF(AND($G$5>960,$G$5>10*G13),"entfällt",G79/$G$80) -> entfällt | H81: =IF(AND($G$5>1200,$G$5>10*H13),"entfällt",H79/$G$80) -> 21.00203975 | I81: =IF($G$5>10*I13,"c > 10*hef",I79/$G$80) -> c > 10*hef | J81: [kN]
A82: VRd,Bew. siehe Zeile 141
A83: VRd,cp | B83: =Kappe!B67 -> 73.92843809 | C83: =Kappe!C67 -> 73.92843809 | D83: =Kappe!D67 -> 105.6677245 | E83: [kN] | F83: VRd,cp | G83: =Kappe!G67 -> 73.92843809 | H83: =Kappe!H67 -> 73.92843809 | I83: =Kappe!I67 -> 105.6677245 | J83: [kN] | K83: VRd,cp | L83: =Kappe!L67 -> 73.92843809 | M83: =Kappe!M67 -> 73.92843809 | N83: =Kappe!N67 -> 105.6677245 | P83: VRd,cp | Q83: =Kappe!Q67 -> 73.92843809 | R83: =Kappe!R67 -> 73.92843809 | S83: =Kappe!S67 -> 105.6677245
A84: VEd,y,Mitte | B84: =IF(Eingabe!C33="Kappenverankerung HPA",Eingabe!O23,Eingabe!Q23) -> 39.0145425 | F84: VEd,y,Mitte | G84: =IF(Eingabe!C33="Kappenverankerung HPA",Eingabe!P23,Eingabe!R23) -> 39.0145425 | K84: VEd,x/y,Rand | L84: =IF(Eingabe!C33="Kappenverankerung HPA",Eingabe!O29,Eingabe!Q29) -> 40.81831117 | P84: VEd,x/y,Rand | Q84: =IF(Eingabe!C33="Kappenverankerung HPA",Eingabe!P29,Eingabe!R29) -> 40.81831117
A85: Ausn Vy Beton Mitte | B85: =$B$84/B83 -> 0.5277338939 | C85: =$B$84/C83 -> 0.5277338939 | D85: =$B$84/D83 -> 0.3692191033 | F85: Ausn Vy Beton Mitte | G85: =$G$84/G83 -> 0.5277338939 | H85: =$G$84/H83 -> 0.5277338939 | I85: =$G$84/I83 -> 0.3692191033 | K85: Ausn V Beton Rand | L85: =$L$84/L83 -> 0.5521327411 | M85: =$L$84/M83 -> 0.5521327411 | N85: =$L$84/N83 -> 0.3862892984 | P85: Ausn V Beton Rand | Q85: =$Q$84/Q83 -> 0.5521327411 | R85: =$Q$84/R83 -> 0.5521327411 | S85: =$Q$84/S83 -> 0.3862892984
A87: Kombinierte Beanspruchung Mitte Reihe 1 | F87: Kombinierte Beanspruchung Mitte Reihe 2 | K87: Kombinierte Beanspruchung Rand Reihe 1 | P87: Kombinierte Beanspruchung Rand Reihe 2
B88: =B12 -> Kappenanker HPA M16 | C88: =C12 -> Kappenanker HPA M20 | D88: =D12 -> Kappenanker HPA M24 | G88: =G12 -> Kappenanker HPA M16 | H88: =H12 -> Kappenanker HPA M20 | I88: =I12 -> Kappenanker HPA M24 | L88: =L12 -> Kappenanker HPA M16 | M88: =M12 -> Kappenanker HPA M20 | N88: =N12 -> Kappenanker HPA M24 | Q88: =Q12 -> Kappenanker HPA M16 | R88: =R12 -> Kappenanker HPA M20 | S88: =S12 -> Kappenanker HPA M24
A89: kombi N+V m/o H Stahl Mitte | B89: =MAX(B62,IF(B56=0,B54,B54^2+B56^2)) -> 1.270200417 | C89: =MAX(C62,IF(C56=0,C54,C54^2+C56^2)) -> 0.7093553182 | D89: =MAX(D62,IF(D56=0,D54,D54^2+D56^2)) -> 0.4924213366 | F89: kombi N+V m/o H Stahl Mitte | G89: =MAX(G62,IF(G56=0,G54,G54^2+G56^2)) -> 1.249863432 | H89: =MAX(H62,IF(H56=0,H54,H54^2+H56^2)) -> 0.7093553182 | I89: =MAX(I62,IF(I56=0,I54,I54^2+I56^2)) -> 0.4924213366 | K89: kombi N+V m/o H Stahl Mitte | L89: =MAX(L62,IF(L56=0,L54,L54^2+L56^2)) -> 1.386024234 | M89: =MAX(M62,IF(M56=0,M54,M54^2+M56^2)) -> 0.7421511121 | N89: =MAX(N62,IF(N56=0,N54,N54^2+N56^2)) -> 0.5151875699 | P89: kombi N+V m/o H Stahl Mitte | Q89: =MAX(Q62,IF(Q56=0,Q54,Q54^2+Q56^2)) -> 1.36568725 | R89: =MAX(R62,IF(R56=0,R54,R54^2+R56^2)) -> 0.7421511121 | S89: =MAX(S62,IF(S56=0,S54,S54^2+S56^2)) -> 0.5151875699
A90: kombi N+V Beton Mitte | B90: =IF(OR(B55>1,B85>1),MAX(B55,B85),IF(OR(B55=0,B85=0),B55+B85,MIN((B55+B85)/1.2,B55^1.5+B85^1.5))) -> 0.5821722339 | C90: =IF(OR(C55>1,C85>1),MAX(C55,C85),IF(OR(C55=0,C85=0),C55+C85,MIN((C55+C85)/1.2,C55^1.5+C85^1.5))) -> 0.5821722339 | D90: =IF(OR(D55>1,D85>1),MAX(D55,D85),IF(OR(D55=0,D85=0),D55+D85,MIN((D55+D85)/1.2,D55^1.5+D85^1.5))) -> 0.3406867566 | F90: kombi N+V Beton Mitte | G90: =IF(OR(G55>1,G85>1),MAX(G55,G85),IF(OR(G55=0,G85=0),G55+G85,MIN((G55+G85)/1.2,G55^1.5+G85^1.5))) -> 0.5115347791 | H90: =IF(OR(H55>1,H85>1),MAX(H55,H85),IF(OR(H55=0,H85=0),H55+H85,MIN((H55+H85)/1.2,H55^1.5+H85^1.5))) -> 0.5115347791 | I90: =IF(OR(I55>1,I85>1),MAX(I55,I85),IF(OR(I55=0,I85=0),I55+I85,MIN((I55+I85)/1.2,I55^1.5+I85^1.5))) -> 0.2993497707 | K90: kombi N+V Beton Mitte | L90: =IF(OR(L55>1,L85>1),MAX(L55,L85),IF(OR(L55=0,L85=0),L55+L85,MIN((L55+L85)/1.2,L55^1.5+L85^1.5))) -> 0.609064128 | M90: =IF(OR(M55>1,M85>1),MAX(M55,M85),IF(OR(M55=0,M85=0),M55+M85,MIN((M55+M85)/1.2,M55^1.5+M85^1.5))) -> 0.609064128 | N90: =IF(OR(N55>1,N85>1),MAX(N55,N85),IF(OR(N55=0,N85=0),N55+N85,MIN((N55+N85)/1.2,N55^1.5+N85^1.5))) -> 0.3564238729 | P90: kombi N+V Beton Mitte | Q90: =IF(OR(Q55>1,Q85>1),MAX(Q55,Q85),IF(OR(Q55=0,Q85=0),Q55+Q85,MIN((Q55+Q85)/1.2,Q55^1.5+Q85^1.5))) -> 0.5384266732 | R90: =IF(OR(R55>1,R85>1),MAX(R55,R85),IF(OR(R55=0,R85=0),R55+R85,MIN((R55+R85)/1.2,R55^1.5+R85^1.5))) -> 0.5384266732 | S90: =IF(OR(S55>1,S85>1),MAX(S55,S85),IF(OR(S55=0,S85=0),S55+S85,MIN((S55+S85)/1.2,S55^1.5+S85^1.5))) -> 0.3150868871
A92: Maximum Kombi Mitte | B92: =MAX(B89,B90) -> 1.270200417 | C92: =MAX(C89,C90) -> 0.7093553182 | D92: =MAX(D89,D90) -> 0.4924213366 | F92: Maximum Kombi Mitte | G92: =MAX(G89,G90) -> 1.249863432 | H92: =MAX(H89,H90) -> 0.7093553182 | I92: =MAX(I89,I90) -> 0.4924213366 | K92: Maximum Kombi Rand | L92: =MAX(L89,L90) -> 1.386024234 | M92: =MAX(M89,M90) -> 0.7421511121 | N92: =MAX(N89,N90) -> 0.5151875699 | P92: Maximum Kombi Rand | Q92: =MAX(Q89,Q90) -> 1.36568725 | R92: =MAX(R89,R90) -> 0.7421511121 | S92: =MAX(S89,S90) -> 0.5151875699
A93: Warnung Mitte | B93: =IF(MAX(B92,G92)>1.009,"Unzulässig !","") -> Unzulässig ! | C93: =IF(MAX(C92,H92)>1.009,"Unzulässig !","") ->  | D93: =IF(MAX(D92,I92)>1.009,"Unzulässig !","") ->  | F93: Warnung Mitte | G93: =IF(MAX(G92,B92)>1.009,"Unzulässig !","") -> Unzulässig ! | H93: =IF(MAX(H92,C92)>1.009,"Unzulässig !","") ->  | I93: =IF(MAX(I92,D92)>1.009,"Unzulässig !","") ->  | K93: Warnung Rand | L93: =IF(MAX(L92,Q92)>1.009,"Unzulässig !","") -> Unzulässig ! | M93: =IF(MAX(M92,R92)>1.009,"Unzulässig !","") ->  | N93: =IF(MAX(N92,S92)>1.009,"Unzulässig !","") ->  | P93: Warnung Rand | Q93: =IF(MAX(Q92,L92)>1.01,"Unzulässig !","") -> Unzulässig ! | R93: =IF(MAX(R92,M92)>1.01,"Unzulässig !","") ->  | S93: =IF(MAX(S92,N92)>1.01,"Unzulässig !","") -> 
A95: Gewählter Dübel | B95: =LEFT(Eingabe!C4,21) -> Kappenanker HPA M20 | F95: Gewählter Dübel | G95: =LEFT(Eingabe!C4,21) -> Kappenanker HPA M20 | K95: Gewählter Dübel | L95: =LEFT(Eingabe!C4,21) -> Kappenanker HPA M20 | P95: Gewählter Dübel | Q95: =LEFT(Eingabe!C4,21) -> Kappenanker HPA M20
A96: Ausnutzung N+V Stahl Mitte | B96: =INDEX(B88:D90,2,MATCH($B$95,B88:D88)) -> 0.7093553182 | F96: Ausnutzung N+V Stahl Mitte | G96: =INDEX(G88:I90,2,MATCH($G$95,G88:I88)) -> 0.7093553182 | K96: Ausnutzung N+V Stahl Rand | L96: =INDEX(L88:N90,2,MATCH($B$95,L88:N88)) -> 0.7421511121 | P96: Ausnutzung N+V Stahl Rand | Q96: =INDEX(Q88:S90,2,MATCH($G$95,Q88:S88)) -> 0.7421511121
A97: Ausnutzung N+V Beton Mitte | B97: =INDEX(B88:D90,3,MATCH($B$95,B88:D88)) -> 0.5821722339 | F97: Ausnutzung N+V Beton Mitte | G97: =INDEX(G88:I90,3,MATCH($G$95,G88:I88)) -> 0.5115347791 | K97: Ausnutzung N+V Beton Rand | L97: =INDEX(L88:N90,3,MATCH($B$95,L88:N88)) -> 0.609064128 | P97: Ausnutzung N+V Beton Rand | Q97: =INDEX(Q88:S90,3,MATCH($G$95,Q88:S88)) -> 0.5384266732
A101: Kappenhöhe h | B101: =B8 -> 145 | C101: mm | F101: =B8 -> 145 | G101: mm | J101: =B8 -> 145 | K101: mm | N101: =B8 -> 145 | O101: mm
A102: Längsabstand HPA sx | B102: =B6 -> 660 | C102: mm | F102: =B6 -> 660 | G102: mm | J102: =B6 -> 660 | K102: mm | N102: =B6 -> 660 | O102: mm
A103: Ø Bügel ds | B103: 10 | C103: mm | F103: 12 | G103: mm | J103: 14 | K103: mm | N103: 16 | O103: mm
A104: Ø Randbewehrung ds,L (fix) | B104: 10 | C104: mm | F104: 10 | G104: mm | J104: 10 | K104: mm | N104: 10 | O104: mm
A105: Bügelquerschnitt Ø10 As | B105: =IF(B103=10,79,IF(B103=12,113,IF(B103=14,154,IF(B103=16,201,"Fehler")))) -> 79 | C105: mm2 | F105: =IF(F103=10,79,IF(F103=12,113,IF(F103=14,154,IF(F103=16,201,"Fehler")))) -> 113 | G105: mm2 | J105: =IF(J103=10,79,IF(J103=12,113,IF(J103=14,154,IF(J103=16,201,"Fehler")))) -> 154 | K105: mm2 | N105: =IF(N103=10,79,IF(N103=12,113,IF(N103=14,154,IF(N103=16,201,"Fehler")))) -> 201 | O105: mm2
A106: Mittelwert Fließgrenze B500B: fym | B106: 560 | C106: N/mm2 | F106: 560 | G106: N/mm2 | J106: 560 | K106: N/mm2 | N106: 560 | O106: N/mm2
A107: Mittelwert Verbundspannung fbm für C25/30 | B107: =IF(B3="25",5.67,6.3) -> 6.3 | C107: N/mm2 | F107: 5.67 | G107: N/mm2 | J107: 5.67 | K107: N/mm2 | N107: 5.67 | O107: N/mm2
A108: Mittlere Betondruckfestigkeit fcm Würfel 200 für C25/30 | B108: =IF(B3="25",33,38) -> 38 | C108: N/mm2 | F108: 33 | G108: N/mm2 | J108: 33 | K108: N/mm2 | N108: 33 | O108: N/mm2
A109: Abstand Bügel (fix) | B109: 200 | C109: mm | F109: 200 | G109: mm | J109: 200 | K109: mm | N109: 200 | O109: mm
A110: geringster Abstand des HPA zum Bügel ei (fix) | B110: 50 | C110: mm | F110: 50 | G110: mm | J110: 50 | K110: mm | N110: 50 | O110: mm
A111: Betondeckung Bügel zum Bauteilrand cc (fix) | B111: 50 | C111: mm | F111: 50 | G111: mm | J111: 50 | K111: mm | N111: 50 | O111: mm
A112: Betondeckung Bügel an Unterseite der Kappe cnom (fix) | B112: 25 | C112: mm | F112: 25 | G112: mm | J112: 25 | K112: mm | N112: 25 | O112: mm
A113: Randabstand c (ck oder ck+s1) ( ≥160 mm lt. Datenprüfung, damit immer ≥ 2 Eisen aktiv) | B113: =B5+B7 -> 540 | C113: mm | F113: =B5+B7 -> 540 | G113: mm | J113: =B5+B7 -> 540 | K113: mm | N113: =B5+B7 -> 540 | O113: mm
A114: relevante Bügel Nr. | B114: Nr. 1 | C114: Nr. 2 | D114: Nr. 3 | E114: Nr. 4 | F114: Nr. 1 | G114: Nr. 2 | H114: Nr. 3 | I114: Nr. 4 | J114: Nr. 1 | K114: Nr. 2 | L114: Nr. 3 | M114: Nr. 4 | N114: Nr. 1 | O114: Nr. 2 | P114: Nr. 3 | Q114: Nr. 4
A115: Bügelart (B1 - B4) | B115: B1 | C115: B1 | D115: B4 | E115: B4 | F115: B1 | G115: B1 | H115: B4 | I115: B4 | J115: B1 | K115: B1 | L115: B4 | M115: B4 | N115: B1 | O115: B1 | P115: B4 | Q115: B4
A116: Abstände HPA zum Bügel | B116: =B110 -> 50 | C116: =B109-B110 -> 150 | D116: =IF(D115="-",0,B109+B110) -> 250 | E116: 350 | F116: =F110 -> 50 | G116: =F109-F110 -> 150 | H116: =IF(H115="-",0,F109+F110) -> 250 | I116: 350 | J116: =J110 -> 50 | K116: =J109-J110 -> 150 | L116: =IF(L115="-",0,J109+J110) -> 250 | M116: 350 | N116: =N110 -> 50 | O116: =N109-N110 -> 150 | P116: =IF(P115="-",0,N109+N110) -> 250 | Q116: 350
A117: Verankerungslänge Bügel: l1,1 in mm | B117: =B113-B111-(0.7*B116) -> 455 | C117: =B113-B111-(0.7*C116) -> 385 | D117: =MAX(0,B113-B110-(0.7*D116)) -> 315 | E117: =MAX(0,B113-B111-(0.7*E116)) -> 245 | F117: =F113-F111-(0.7*F116) -> 455 | G117: =F113-F111-(0.7*G116) -> 385 | H117: =MAX(0,F113-F110-(0.7*H116)) -> 315 | I117: =MAX(0,F113-F110-(0.7*I116)) -> 245 | J117: =J113-J111-(0.7*J116) -> 455 | K117: =J113-J111-(0.7*K116) -> 385 | L117: =MAX(0,J113-J110-(0.7*L116)) -> 315 | M117: =MAX(0,J113-J111-(0.7*M116)) -> 245 | N117: =N113-N111-(0.7*N116) -> 455 | O117: =N113-N111-(0.7*O116) -> 385 | P117: =MAX(0,N113-N110-(0.7*P116)) -> 315 | Q117: =MAX(0,N113-N111-(0.7*Q116)) -> 245
A118: Anzahl aktivierte obere Bügelschenkel | B118: =IF(AND(B117>0,C117>0,D117>0),3,2) -> 3 | C118: =IF(E117>0,1,0) -> 1 | D118: =B118+C118 -> 4 | F118: =IF(AND(F117>0,G117>0,H117>0),3,2) -> 3 | G118: =IF(I117>0,1,0) -> 1 | H118: =F118+G118 -> 4 | J118: =IF(AND(J117>0,K117>0,L117>0),3,2) -> 3 | K118: =IF(M117>0,1,0) -> 1 | L118: =J118+K118 -> 4 | N118: =IF(AND(N117>0,O117>0,P117>0),3,2) -> 3 | O118: =IF(Q117>0,1,0) -> 1 | P118: =N118+O118 -> 4
A120: φ1 für B1 | B120: 0.95 | F120: 0.95 | J120: 0.95 | N120: 0.95
A121: φ2 für B4 | B121: 0.16 | F121: 0.16 | J121: 0.16 | N121: 0.16
A122: φ3 nach Bügel-/Randbew. | B122: =POWER(B104/B103,2/3) -> 1 | F122: =POWER(F104/F103,2/3) -> 0.8855488077 | J122: =POWER(J104/J103,2/3) -> 0.7990635301 | N122: =POWER(N104/N103,2/3) -> 0.7310044346
A123: φ4 für Bügel B1 und B4 | B123: =POWER(B117/B113,0.4)*POWER(10/B103,0.25) -> 0.9337853471 | C123: =POWER(C117/B113,0.4)*POWER(10/B103,0.25) -> 0.8734273517 | D123: =POWER(D117/B113,0.4)*POWER(10/B103,0.25) -> 0.8060587887 | E123: =POWER(E117/B113,0.4)*POWER(10/B103,0.25) -> 0.7289687815 | F123: =POWER(F117/F113,0.4)*POWER(10/F103,0.25) -> 0.8921784794 | G123: =POWER(G117/F113,0.4)*POWER(10/F103,0.25) -> 0.8345098677 | H123: =POWER(H117/F113,0.4)*POWER(10/F103,0.25) -> 0.7701430598 | I123: =POWER(I117/F113,0.4)*POWER(10/F103,0.25) -> 0.696487968 | J123: =POWER(J117/J113,0.4)*POWER(10/J103,0.25) -> 0.8584500807 | K123: =POWER(K117/J113,0.4)*POWER(10/J103,0.25) -> 0.8029616045 | L123: =POWER(L117/J113,0.4)*POWER(10/J103,0.25) -> 0.7410281543 | M123: =POWER(M117/J113,0.4)*POWER(10/J103,0.25) -> 0.6701575595 | N123: =POWER(N117/N113,0.4)*POWER(10/N103,0.25) -> 0.8302656281 | O123: =POWER(O117/N113,0.4)*POWER(10/N103,0.25) -> 0.7765989378 | P123: =POWER(P117/N113,0.4)*POWER(10/N103,0.25) -> 0.7166988736 | Q123: =POWER(Q117/N113,0.4)*POWER(10/N103,0.25) -> 0.6481550874
A124: Vum,c,Haken in kN | B124: =1*(B120*B122*B123*B105*B106*(POWER(B108/30,0.1)))/1000 -> 40.18389335 | C124: =1*(B120*B122*C123*B105*B106*(POWER(B108/30,0.1)))/1000 -> 37.58648779 | D124: =1*(B121*B122*D123*B105*B106*(POWER(B108/30,0.1)))/1000 -> 5.842087438 | E124: =1*(B121*B122*E123*B105*B106*(POWER(B108/30,0.1)))/1000 -> 5.283360743 | F124: =1*(F120*F122*F123*F105*F106*(POWER(F108/30,0.1)))/1000 -> 47.95054969 | G124: =1*(F120*F122*G123*F105*F106*(POWER(F108/30,0.1)))/1000 -> 44.85112318 | H124: =1*(F121*F122*H123*F105*F106*(POWER(F108/30,0.1)))/1000 -> 6.971233513 | I124: =1*(F121*F122*I123*F105*F106*(POWER(F108/30,0.1)))/1000 -> 6.304517326 | J124: =1*(J120*J122*J123*J105*J106*(POWER(J108/30,0.1)))/1000 -> 56.73721014 | K124: =1*(J120*J122*K123*J105*J106*(POWER(J108/30,0.1)))/1000 -> 53.06983167 | L124: =1*(J121*J122*L123*J105*J106*(POWER(J108/30,0.1)))/1000 -> 8.248671669 | M124: =1*(J121*J122*M123*J105*J106*(POWER(J108/30,0.1)))/1000 -> 7.459783603 | N124: =1*(N120*N122*N123*N105*N106*(POWER(N108/30,0.1)))/1000 -> 65.52152981 | O124: =1*(N120*N122*O123*N105*N106*(POWER(N108/30,0.1)))/1000 -> 61.2863507 | P124: =1*(N121*N122*P123*N105*N106*(POWER(N108/30,0.1)))/1000 -> 9.525769514 | Q124: =1*(N121*N122*Q123*N105*N106*(POWER(N108/30,0.1)))/1000 -> 8.614742117
A125: Vum,c,Verbund in kN | B125: =(1*(PI()*B103*B117*B107)/1000) -> 90.05375342 | C125: =(1*(PI()*B103*C117*B107)/1000) -> 76.19932981 | D125: =(1*(PI()*B103*D117*B107)/1000) -> 62.34490621 | E125: =(1*(PI()*B103*E117*B107)/1000) -> 48.49048261 | F125: =(1*(PI()*F103*F117*F107)/1000) -> 97.25805369 | G125: =(1*(PI()*F103*G117*F107)/1000) -> 82.2952762 | H125: =(1*(PI()*F103*H117*F107)/1000) -> 67.33249871 | I125: =(1*(PI()*F103*I117*F107)/1000) -> 52.36972122 | J125: =(1*(PI()*J103*J117*J107)/1000) -> 113.4677293 | K125: =(1*(PI()*J103*K117*J107)/1000) -> 96.01115556 | L125: =(1*(PI()*J103*L117*J107)/1000) -> 78.55458183 | M125: =(1*(PI()*J103*M117*J107)/1000) -> 61.09800809 | N125: =(1*(PI()*N103*N117*N107)/1000) -> 129.6774049 | O125: =(1*(PI()*N103*O117*N107)/1000) -> 109.7270349 | P125: =(1*(PI()*N103*P117*N107)/1000) -> 89.77666494 | Q125: =(1*(PI()*N103*Q117*N107)/1000) -> 69.82629496
A126: Stahlwiderstand der aktivierten Bügelschenkel As * fym | B126: =B105*B106/1000 -> 44.24 | C126: =B105*B106/1000 -> 44.24 | D126: =IF(D117=0,0,B105*B106/1000) -> 44.24 | E126: =IF(E117=0,0,B105*B106/1000) -> 44.24 | F126: =F105*F106/1000 -> 63.28 | G126: =F105*F106/1000 -> 63.28 | H126: =IF(H117=0,0,F105*F106/1000) -> 63.28 | I126: =IF(I117=0,0,F105*F106/1000) -> 63.28 | J126: =J105*J106/1000 -> 86.24 | K126: =J105*J106/1000 -> 86.24 | L126: =IF(L117=0,0,J105*J106/1000) -> 86.24 | M126: =IF(M117=0,0,J105*J106/1000) -> 86.24 | N126: =N105*N106/1000 -> 112.56 | O126: =N105*N106/1000 -> 112.56 | P126: =IF(P117=0,0,N105*N106/1000) -> 112.56 | Q126: =IF(Q117=0,0,N105*N106/1000) -> 112.56
A127: maßgebender Wert (Stahl oder Haken/Verbund) | B127: =MIN(B124+B125,B126) -> 44.24 | C127: =MIN(C124+C125,C126) -> 44.24 | D127: =MIN(D124+D125,D126) -> 44.24 | E127: =MIN(E124+E125,E126) -> 44.24 | F127: =MIN(F124+F125,F126) -> 63.28 | G127: 63.28 | H127: 63.28 | I127: 58.67423854 | J127: 86.24 | K127: 86.24 | L127: 86.24 | M127: 68.55779169 | N127: 112.56 | O127: 112.56 | P127: 99.30243446 | Q127: 78.44103707
A128: Widerstand der aktivierten Bügelschenkel Vum,c,re in kN | B128: =SUM(B124:E124)+SUM(B125:E125) -> 365.9843014 | F128: =SUM(F124:I124)+SUM(F125:I125) -> 405.3329735 | J128: =SUM(J124:M124)+SUM(J125:M125) -> 474.6469719 | N128: =SUM(N124:Q124)+SUM(N125:Q125) -> 543.9557919
A129: Stahlwiderstand der aktivierten Bügelschenkel ∑ As * fym in kN | B129: =D118*B105*B106/1000 -> 176.96 | F129: =H118*F105*F106/1000 -> 253.12 | J129: =L118*J105*J106/1000 -> 344.96 | N129: =P118*N105*N106/1000 -> 450.24
A130: maßgebender mittlerer Querkraft-Widerstand der Bügelbewehrung Vum,c,re in kN | B130: =SUM(B127:E127) -> 176.96 | F130: =SUM(F127:I127) -> 248.5142385 | J130: =SUM(J127:M127) -> 327.2777917 | N130: =SUM(N127:Q127) -> 402.8634715
A131: Abstand zw. Querkraft und Bewehrung f = cnom + ds/2 in mm | B131: =B112+B103/2 -> 30 | F131: =F112+F103/2 -> 31 | J131: =J112+J103/2 -> 32 | N131: =N112+N103/2 -> 33
A132: innerer Hebelarm z in mm | B132: =0.85*(B101-B131) -> 97.75 | F132: =0.85*(F101-F131) -> 96.9 | J132: =0.85*(J101-J131) -> 96.05 | N132: =0.85*(N101-N131) -> 95.2
A133: Faktor x für Querkrafterhöhung aus Hebelarm | B133: =(B131/B132)+1 -> 1.306905371 | F133: =(F131/F132)+1 -> 1.319917441 | J133: =(J131/J132)+1 -> 1.333159813 | N133: =(N131/N132)+1 -> 1.346638655
A134: mittlerer Querkraft-Widerstand Vum,Bewehrung in kN | B134: =B130/B133 -> 135.4038356 | F134: =F130/F133 -> 188.2801385 | J134: =J130/J133 -> 245.490292 | N134: =N130/N133 -> 299.1622659
A135: charakteristischer Querkraft-Widerstand VRk,re,Bewehrung in kN | B135: =B134 -> 135.4038356 | F135: =F134 -> 188.2801385 | J135: =J134 -> 245.490292 | N135: =N134 -> 299.1622659
A136: Teilsicherheit gMs,re | B136: 1 | F136: 1 | J136: 1 | N136: 1
A137: Bemessung-Querkraft-Widerstand VRd,s,aktiv. Bew. in kN | B137: =B135/B136 -> 135.4038356 | F137: =F135/F136 -> 188.2801385 | J137: =J135/J136 -> 245.490292 | N137: =N135/N136 -> 299.1622659
A138: Bemessungs-Einwirkung auf Dübel/Bügel VEd,direkt mit g=1,25 in kN/m | B138: =Eingabe!C26*B6/1000 -> 57.948 | F138: =Eingabe!C26*B6/1000 -> 57.948 | J138: =Eingabe!C26*B6/1000 -> 57.948 | N138: =Eingabe!C26*B6/1000 -> 57.948
A139: Bemessungs-Einwirkung auf Dübel(gruppe)/Bügel VEd,Gruppe/Bügel inkl. indirekte Einw. in kN | B139: =L84+Q84 -> 81.63662233 | F139: =B139 -> 81.63662233 | J139: =B139 -> 81.63662233 | N139: =B139 -> 81.63662233
A140: Auslastung der Zusatz- bewehrung auf Basis theoretischer Bemessungseinwirkung in % | B140: =B139/B137*100 -> 60.29121846 | F140: =F139/F137*100 -> 43.35912592 | J140: =J139/J137*100 -> 33.25452166 | N140: =N139/N137*100 -> 27.28840888
A141: Gesamtsicherheit gges auf Basis charakteristische Werte | B141: =(1/B140*100)*B136*1.25 -> 2.073270423 | F141: =(1/F140*100)*F136*1.25 -> 2.882899444 | J141: =(1/J140*100)*J136*1.25 -> 3.758887326 | N141: =(1/N140*100)*N136*1.25 -> 4.580699467
A142: Bewehrungs-Ø | B142: 10 (0,79 cm2 x 5 = 3,93 cm2/m)) | E142: 12 (1,13 cm2 x 5 =5,65 cm2/m) | H142: 14 (1,54 cm2 x 5 = 7,7 cm2/m) | K142: 16 (2,01 cm2 x 5 = 10,1 cm2/m)
A143: Bemessung-Querkraft-Widerstand VRd,s,aktiv. Bew. pro Dübel(gruppe) in kN | B143: =B137 -> 135.4038356 | E143: =F137 -> 188.2801385 | H143: =J137 -> 245.490292 | K143: =N137 -> 299.1622659
B144: Reihe 1 | E144: Reihe 2
A145: HPA | B145: M16 | C145: M20 | D145: M24 | E145: M16 | F145: M20 | G145: M24
A146: maximal mögliche Einwirkung auf Zusatzbewehrung aus maßgeb. Querkraftwiderstand HPA-(Gruppe) | B146: =MIN(B60,B67) -> 35.26 | C146: =MIN(C60,C67) -> 55 | D146: =MIN(D60,D67) -> 79.23 | E146: =MIN(G60,G67) -> 35.26 | F146: =MIN(H60,H67) -> 55 | G146: =MIN(I60,I67) -> 79.23
A147: Für Ausgabe im Ausdruck | B147: =IF(B140<110,"Ø10/200 bzw. ≥ 3.93 cm2/m",IF(F140<110,"Ø12/200 bzw. ≥ 5.65 cm2/m",IF(J140<110,"Ø14/200 bzw. ≥ 7,7 cm2/m",IF(N140<110,"Ø16/200 bzw. ≥ 10,1 cm2/m","Ø20/200 bzw. ≥ 15,7 cm2/m")))) -> Ø10/200 bzw. ≥ 3.93 cm2/m
A148: Text für Ausdruck | B148: Unter den vorhandenen Bedingungen ist der Nachweis Betonkantenbruch nach DIN EN 1992-4 nicht möglich. Nach [6] kann ein Nachweis erfolgreich geführt werden, wenn die untere Kappenbewehrung quer die gesamte Querkrafteinwirkung aufnehmen kann.
B149: ="Dafür sollte eine Kappenbewehrung quer ≥ "&B147&" vorhanden sein." -> Dafür sollte eine Kappenbewehrung quer ≥ Ø10/200 bzw. ≥ 3.93 cm2/m vorhanden sein.
B152: Wo überall im Ausdruck muss dieser Hinweis stehen?
B153: 1. Beim Nachweis Betonkantenbruch in der Kappe, wenn Einwirkung Stahl-FRS ausgewählt ist
B154: Text im Eingabeblatt nur für Anprall an FRS und Querkräfte über HPA einblenden!
B155: Text im Ausdruck 1-reihig und 2-reihig und nur für Anprall an FRS und einblenden!

Sheet Ausschreibungstext
A2: Ausschreibungstexte für Hilti Kappenverankerung mit HPA für statische Einwirkungen:
A3: Ausschreibungstexte für Hilti Kappenverankerung Ausschreibungstexte zum Download - AUSSCHREIBEN.DE
A5: Pos. | B5: Bezeichnung | C5: Menge | D5: Einheit | E5: EP | F5: GP
B6: Herstellerinformation
A8: 1. | B8: Hilti Kappenverankerung (Ortbetonkappe) Kappenverankerung entsprechend statischen und konstruktiven Erfordernissen nach Unterlagen des AG einschließlich Abdichtung und Zubehör herstellen. Die Anforderungen lt. RE-ING, Teil 2, Abschnitt 2, Absatz 3.3.6 sind zu beachten. Insbesondere Satz (5) bzgl. Momentenbeanspruchung der Kappenverankerungen. Injektionsdübel zugelassen für gerissenen Beton. Bei Verwendung Hohlbohrer mit Staubsauger kann Bohrlochreinigung entfallen. Ein Prüfbericht zur Dichtheit des Kappenankers in der Abdichtungsschicht ist vorzulegen. Einbau zwischen den Querspanngliedern im eingemessenen Bereich. Querspannglieder und deren Verankerungen dürfen nicht beschädigt werden. Einbauort = Außenkappe/ Mittelkappe Verbunddübel M16 / M20 / M24 aus nichtrostendem Stahl (Korr.-Widerstandskl. III) Verankerungslänge im Tragwerk = ... cm, Verankerungslänge in Kappe (Kopfbolzen) = ... cm in hammergebohrten Löchern mit automatischer Selbstreinigung (staubfreie Bohrlocherstellung) - SAFEset oder in hammergebohrten Löchern mit Bohrlochreinigung Einbau und Montage gem. Europäisch Technischer Bewertung ETA-20/0541 und Z-21.8-2118 Lieferung und Montage Erzeugnis: Hilti Kappenverankerung bestehend aus: HPA M... x .... mit Bundmutter M16 / M20 oder Sechskantmutter M16 / M20 / M24, Stauscheibe HIW, Injektionsmörtel-System HIT-RE 500 V4 oder gleichwertiges Erzeugnis
C9: 0 | D9: Stk | E9: 0 | F9: =(E9*C9) -> 0
D10: Gesamt Netto | F10: =SUM(F9:F9) -> 0
D11: MwSt. | E11: 0.19 | F11: =(F10*E11) -> 0
D12: Gesamt Brutto | F12: =(F10+F11) -> 0
A14: 2. | B14: Hilti Kappenverankerung (Fertigteilkappe / Nachträgliche Kappenverankerung) Kappenverankerung entsprechend statischen und konstruktiven Erfordernissen nach Unterlagen des AG einschließlich Abdichtung und Zubehör herstellen. Die Anforderungen lt. RE-ING, Teil 2, Abschnitt 2, Absatz 3.3.6 sind zu beachten. Insbesondere Satz (5) bzgl. Momentenbeanspruchung der Kappenverankerungen. Injektionsdübel zugelassen für gerissenen Beton. Bei Verwendung Hohlbohrer mit Staubsauger kann Bohrlochreinigung entfallen. Ein Prüfbericht zur Dichtheit des Kappenankers in der Abdichtungsschicht ist vorzulegen. Einbau zwischen den Querspanngliedern im eingemessenen Bereich. Querspannglieder und deren Verankerungen dürfen nicht beschädigt werden. Einbauort = Außenkappe/ Mittelkappe Verbunddübel M16 / M20 / M24 aus nichtrostendem Stahl (Korr.-Widerstandskl. III) Verankerungslänge im Tragwerk = ... cm, Verankerungslänge in Kappe (Kopfbolzen) = ... cm Senkungsbohrung in Kappe: Durchmesser ...mm, Tiefe ...mm Die Senkung ist mit Injektionsmörtel Hilti HIT oder einem schwindarmen, frost- und tausalzbeständigen Mörtel zu schließen. in hammergebohrten Löchern mit automatischer Selbstreinigung (staubfreie Bohrlocherstellung) - SAFEset oder in hammergebohrten Löchern mit Bohrlochreinigung Einbau und Montage gem. Europäisch Technischer Bewertung ETA-20/0541 und Z-21.8-2118 Lieferung und Montage Erzeugnis: Hilti Kappenverankerung bestehend aus: HPA M... x .... , Sechskantmutter M16 / M 20 / M24 Injektionsmörtel-System HIT-RE 500 V4 oder gleichwertiges Erzeugnis
C15: 0 | D15: Stk | E15: 0 | F15: =(E15*C15) -> 0
D16: Gesamt Netto | F16: =SUM(F15:F15) -> 0
D17: MwSt. | E17: 0.19 | F17: =(F16*E17) -> 0
D18: Gesamt Brutto | F18: =(F16+F17) -> 0

Sheet Technische Dokumente
A2: Download: | B2: Technische Bewertung Hilti HIT-RE 500 V4 | F2: BIM/CAD Bibliothek
A4: Download: | B4: Zulassung Z-21.8-2118 Hilti Betonverbinder HPA
A6: Auszüge aus ETA-20/0541, Z-21.8-2118 und Verwendbarkeitsnachweise zur Dichtheit der Kappenverankerung HPA:
A7: Die Nachweise können Sie beim Hilti Engineering-Service unter: Tel. 0800 - 888 55 22 oder e-mail: Planer-Support@hilti.com anfordern.

Sheet Lastan (hidden)

Sheet Tabelle2 (hidden)
